{"text_format":"1","workbook":"xlsx","n_sheets":3,"sheets":["tamponV4","HistoriquePrêt","personnel"],"not_rendered":{"charts":0,"images":1,"macros":1,"external_links":2,"defined_names":16,"comments":1,"pivot_tables":0},"unopened":[],"bounds":{"document_bytes":16777216,"sheet_cells":100000,"rows_first":2000,"rows_last":500,"rows_between":2000,"halvings":0,"cell_chars":16384,"cell_head_chars":4096},"cells_cut":0,"cells_raw":0,"read":"whole","date_system":"1900"}

{"sheet":"tamponV4","index":0,"n_rows":10,"n_cols":8,"rows_kept":10,"cut":false,"hidden":false,"merged":[[0,1,0,7]]}
[null,"PRÊT TAMPON V4"]
["DESIGNATION","REFERENCE","NOM DE L'AJUSTEUR","DATE DU PRÊT","STATUT","POSTE MSN","date de contrôle","ETAT"]
["NOMINAL"]
["NOMINAL V4 (1)","4.155            code 2            4.158","pierre","2017-03-10T19:55:46","Emprunté"]
["NOMINAL V4 (2)","4.815            code 3            4.845"]
["NOMINAL V4 (3)","5.544            code 3A          5.574",null,"2017-03-10T20:08:17","Emprunté"]
["NOMINAL V4 (4)","6.339            code 4            6.377"]
["NOMINAL V4 (4)","6.339            code 4            6.377"]
["NOMINAL V4 (5)","7.927            code 5            7.964"]
["NOMINAL V4 (6)","9.514            code 6            9.552"]

{"sheet":"HistoriquePrêt","index":1,"n_rows":55836,"n_cols":8,"rows_kept":4500,"cut":true,"hidden":false,"merged":[],"bounds":{"rows_first":2000,"rows_last":500,"rows_between":2000,"halvings":0}}
["DESIGNATION","REFERENCE","NOM AJUSTEUR","DATE PRÊT","STATUT","localisation"]
["NOMINAL V4 (3)","5.544            code 3A          5.574","Manquant","2017-03-10T18:59:13","Rendu"]
["NOMINAL V4 (1)","4.155            code 2            4.158",null,"2017-03-10T18:59:54","Emprunté"]
["NOMINAL V4 (1)","4.155            code 2            4.158",null,"2017-03-10T19:55:32","Emprunté"]
["NOMINAL V4 (1)","4.155            code 2            4.158","pierre","2017-03-10T19:55:46","Emprunté"]
["NOMINAL V4 (3)","5.544            code 3A          5.574",null,"2017-03-10T20:08:17","Emprunté"]
[]
[]
[]
[]
[]
[]
[]
[]
[]
[]
[]
[]
[]
[]
[]
[]
[]
[]
[]
[]
[]
[]
[]
[]
[]
[]
[]
[]
[]
[]
[]
[]
[]
[]
[]
[]
[]
[]
[]
[]
[]
[]
[]
[]
[]
[]
[]
[]
[]
[]
[]
[]
[]
[]
[]
[]
[]
[]
[]
[]
[]
[]
[]
[]
[]
[]
[]
[]
[]
[]
[]
[]
[]
[]
[]
[]
[]
[]
[]
[]
[]
[]
[]
[]
[]
[]
[]
[]
[]
[]
[]
[]
[]
[]
[]
[]
[]
[]
[]
[]
[]
[]
[]
[]
[]
[]
[]
[]
[]
[]
[]
[]
[]
[]
[]
[]
[]
[]
[]
[]
[]
[]
[]
[]
[]
[]
[]
[]
[]
[]
[]
[]
[]
[]
[]
[]
[]
[]
[]
[]
[]
[]
[]
[]
[]
[]
[]
[]
[]
[]
[]
[]
[]
[]
[]
[]
[]
[]
[]
[]
[]
[]
[]
[]
[]
[]
[]
[]
[]
[]
[]
[]
[]
[]
[]
[]
[]
[]
[]
[]
[]
[]
[]
[]
[]
[]
[]
[]
[]
[]
[]
[]
[]
[]
[]
[]
[]
[]
[]
[]
[]
[]
[]
[]
[]
[]
[]
[]
[]
[]
[]
[]
[]
[]
[]
[]
[]
[]
[]
[]
[]
[]
[]
[]
[]
[]
[]
[]
[]
[]
[]
[]
[]
[]
[]
[]
[]
[]
[]
[]
[]
[]
[]
[]
[]
[]
[]
[]
[]
[]
[]
[]
[]
[]
[]
[]
[]
[]
[]
[]
[]
[]
[]
[]
[]
[]
[]
[]
[]
[]
[]
[]
[]
[]
[]
[]
[]
[]
[]
[]
[]
[]
[]
[]
[]
[]
[]
[]
[]
[]
[]
[]
[]
[]
[]
[]
[]
[]
[]
[]
[]
[]
[]
[]
[]
[]
[]
[]
[]
[]
[]
[]
[]
[]
[]
[]
[]
[]
[]
[]
[]
[]
[]
[]
[]
[]
[]
[]
[]
[]
[]
[]
[]
[]
[]
[]
[]
[]
[]
[]
[]
[]
[]
[]
[]
[]
[]
[]
[]
[]
[]
[]
[]
[]
[]
[]
[]
[]
[]
[]
[]
[]
[]
[]
[]
[]
[]
[]
[]
[]
[]
[]
[]
[]
[]
[]
[]
[]
[]
[]
[]
[]
[]
[]
[]
[]
[]
[]
[]
[]
[]
[]
[]
[]
[]
[]
[]
[]
[]
[]
[]
[]
[]
[]
[]
[]
[]
[]
[]
[]
[]
[]
[]
[]
[]
[]
[]
[]
[]
[]
[]
[]
[]
[]
[]
[]
[]
[]
[]
[]
[]
[]
[]
[]
[]
[]
[]
[]
[]
[]
[]
[]
[]
[]
[]
[]
[]
[]
[]
[]
[]
[]
[]
[]
[]
[]
[]
[]
[]
[]
[]
[]
[]
[]
[]
[]
[]
[]
[]
[]
[]
[]
[]
[]
[]
[]
[]
[]
[]
[]
[]
[]
[]
[]
[]
[]
[]
[]
[]
[]
[]
[]
[]
[]
[]
[]
[]
[]
[]
[]
[]
[]
[]
[]
[]
[]
[]
[]
[]
[]
[]
[]
[]
[]
[]
[]
[]
[]
[]
[]
[]
[]
[]
[]
[]
[]
[]
[]
[]
[]
[]
[]
[]
[]
[]
[]
[]
[]
[]
[]
[]
[]
[]
[]
[]
[]
[]
[]
[]
[]
[]
[]
[]
[]
[]
[]
[]
[]
[]
[]
[]
[]
[]
[]
[]
[]
[]
[]
[]
[]
[]
[]
[]
[]
[]
[]
[]
[]
[]
[]
[]
[]
[]
[]
[]
[]
[]
[]
[]
[]
[]
[]
[]
[]
[]
[]
[]
[]
[]
[]
[]
[]
[]
[]
[]
[]
[]
[]
[]
[]
[]
[]
[]
[]
[]
[]
[]
[]
[]
[]
[]
[]
[]
[]
[]
[]
[]
[]
[]
[]
[]
[]
[]
[]
[]
[]
[]
[]
[]
[]
[]
[]
[]
[]
[]
[]
[]
[]
[]
[]
[]
[]
[]
[]
[]
[]
[]
[]
[]
[]
[]
[]
[]
[]
[]
[]
[]
[]
[]
[]
[]
[]
[]
[]
[]
[]
[]
[]
[]
[]
[]
[]
[]
[]
[]
[]
[]
[]
[]
[]
[]
[]
[]
[]
[]
[]
[]
[]
[]
[]
[]
[]
[]
[]
[]
[]
[]
[]
[]
[]
[]
[]
[]
[]
[]
[]
[]
[]
[]
[]
[]
[]
[]
[]
[]
[]
[]
[]
[]
[]
[]
[]
[]
[]
[]
[]
[]
[]
[]
[]
[]
[]
[]
[]
[]
[]
[]
[]
[]
[]
[]
[]
[]
[]
[]
[]
[]
[]
[]
[]
[]
[]
[]
[]
[]
[]
[]
[]
[]
[]
[]
[]
[]
[]
[]
[]
[]
[]
[]
[]
[]
[]
[]
[]
[]
[]
[]
[]
[]
[]
[]
[]
[]
[]
[]
[]
[]
[]
[]
[]
[]
[]
[]
[]
[]
[]
[]
[]
[]
[]
[]
[]
[]
[]
[]
[]
[]
[]
[]
[]
[]
[]
[]
[]
[]
[]
[]
[]
[]
[]
[]
[]
[]
[]
[]
[]
[]
[]
[]
[]
[]
[]
[]
[]
[]
[]
[]
[]
[]
[]
[]
[]
[]
[]
[]
[]
[]
[]
[]
[]
[]
[]
[]
[]
[]
[]
[]
[]
[]
[]
[]
[]
[]
[]
[]
[]
[]
[]
[]
[]
[]
[]
[]
[]
[]
[]
[]
[]
[]
[]
[]
[]
[]
[]
[]
[]
[]
[]
[]
[]
[]
[]
[]
[]
[]
[]
[]
[]
[]
[]
[]
[]
[]
[]
[]
[]
[]
[]
[]
[]
[]
[]
[]
[]
[]
[]
[]
[]
[]
[]
[]
[]
[]
[]
[]
[]
[]
[]
[]
[]
[]
[]
[]
[]
[]
[]
[]
[]
[]
[]
[]
[]
[]
[]
[]
[]
[]
[]
[]
[]
[]
[]
[]
[]
[]
[]
[]
[]
[]
[]
[]
[]
[]
[]
[]
[]
[]
[]
[]
[]
[]
[]
[]
[]
[]
[]
[]
[]
[]
[]
[]
[]
[]
[]
[]
[]
[]
[]
[]
[]
[]
[]
[]
[]
[]
[]
[]
[]
[]
[]
[]
[]
[]
[]
[]
[]
[]
[]
[]
[]
[]
[]
[]
[]
[]
[]
[]
[]
[]
[]
[]
[]
[]
[]
[]
[]
[]
[]
[]
[]
[]
[]
[]
[]
[]
[]
[]
[]
[]
[]
[]
[]
[]
[]
[]
[]
[]
[]
[]
[]
[]
[]
[]
[]
[]
[]
[]
[]
[]
[]
[]
[]
[]
[]
[]
[]
[]
[]
[]
[]
[]
[]
[]
[]
[]
[]
[]
[]
[]
[]
[]
[]
[]
[]
[]
[]
[]
[]
[]
[]
[]
[]
[]
[]
[]
[]
[]
[]
[]
[]
[]
[]
[]
[]
[]
[]
[]
[]
[]
[]
[]
[]
[]
[]
[]
[]
[]
[]
[]
[]
[]
[]
[]
[]
[]
[]
[]
[]
[]
[]
[]
[]
[]
[]
[]
[]
[]
[]
[]
[]
[]
[]
[]
[]
[]
[]
[]
[]
[]
[]
[]
[]
[]
[]
[]
[]
[]
[]
[]
[]
[]
[]
[]
[]
[]
[]
[]
[]
[]
[]
[]
[]
[]
[]
[]
[]
[]
[]
[]
[]
[]
[]
[]
[]
[]
[]
[]
[]
[]
[]
[]
[]
[]
[]
[]
[]
[]
[]
[]
[]
[]
[]
[]
[]
[]
[]
[]
[]
[]
[]
[]
[]
[]
[]
[]
[]
[]
[]
[]
[]
[]
[]
[]
[]
[]
[]
[]
[]
[]
[]
[]
[]
[]
[]
[]
[]
[]
[]
[]
[]
[]
[]
[]
[]
[]
[]
[]
[]
[]
[]
[]
[]
[]
[]
[]
[]
[]
[]
[]
[]
[]
[]
[]
[]
[]
[]
[]
[]
[]
[]
[]
[]
[]
[]
[]
[]
[]
[]
[]
[]
[]
[]
[]
[]
[]
[]
[]
[]
[]
[]
[]
[]
[]
[]
[]
[]
[]
[]
[]
[]
[]
[]
[]
[]
[]
[]
[]
[]
[]
[]
[]
[]
[]
[]
[]
[]
[]
[]
[]
[]
[]
[]
[]
[]
[]
[]
[]
[]
[]
[]
[]
[]
[]
[]
[]
[]
[]
[]
[]
[]
[]
[]
[]
[]
[]
[]
[]
[]
[]
[]
[]
[]
[]
[]
[]
[]
[]
[]
[]
[]
[]
[]
[]
[]
[]
[]
[]
[]
[]
[]
[]
[]
[]
[]
[]
[]
[]
[]
[]
[]
[]
[]
[]
[]
[]
[]
[]
[]
[]
[]
[]
[]
[]
[]
[]
[]
[]
[]
[]
[]
[]
[]
[]
[]
[]
[]
[]
[]
[]
[]
[]
[]
[]
[]
[]
[]
[]
[]
[]
[]
[]
[]
[]
[]
[]
[]
[]
[]
[]
[]
[]
[]
[]
[]
[]
[]
[]
[]
[]
[]
[]
[]
[]
[]
[]
[]
[]
[]
[]
[]
[]
[]
[]
[]
[]
[]
[]
[]
[]
[]
[]
[]
[]
[]
[]
[]
[]
[]
[]
[]
[]
[]
[]
[]
[]
[]
[]
[]
[]
[]
[]
[]
[]
[]
[]
[]
[]
[]
[]
[]
[]
[]
[]
[]
[]
[]
[]
[]
[]
[]
[]
[]
[]
[]
[]
[]
[]
[]
[]
[]
[]
[]
[]
[]
[]
[]
[]
[]
[]
[]
[]
[]
[]
[]
[]
[]
[]
[]
[]
[]
[]
[]
[]
[]
[]
[]
[]
[]
[]
[]
[]
[]
[]
[]
[]
[]
[]
[]
[]
[]
[]
[]
[]
[]
[]
[]
[]
[]
[]
[]
[]
[]
[]
[]
[]
[]
[]
[]
[]
[]
[]
[]
[]
[]
[]
[]
[]
[]
[]
[]
[]
[]
[]
[]
[]
[]
[]
[]
[]
[]
[]
[]
[]
[]
[]
[]
[]
[]
[]
[]
[]
[]
[]
[]
[]
[]
[]
[]
[]
[]
[]
[]
[]
[]
[]
[]
[]
[]
[]
[]
[]
[]
[]
[]
[]
[]
[]
[]
[]
[]
[]
[]
[]
[]
[]
[]
[]
[]
[]
[]
[]
[]
[]
[]
[]
[]
[]
[]
[]
[]
[]
[]
[]
[]
[]
[]
[]
[]
[]
[]
[]
[]
[]
[]
[]
[]
[]
[]
[]
[]
[]
[]
[]
[]
[]
[]
[]
[]
[]
[]
[]
[]
[]
[]
[]
[]
[]
[]
[]
[]
[]
[]
[]
[]
[]
[]
[]
[]
[]
[]
[]
[]
[]
[]
[]
[]
[]
[]
[]
[]
[]
[]
[]
[]
[]
[]
[]
[]
[]
[]
[]
[]
[]
[]
[]
[]
[]
[]
[]
[]
[]
[]
[]
[]
[]
[]
[]
[]
[]
[]
[]
[]
[]
[]
[]
[]
[]
[]
[]
[]
[]
[]
[]
[]
[]
[]
[]
[]
[]
[]
[]
[]
[]
[]
[]
[]
[]
[]
[]
[]
[]
[]
[]
[]
[]
[]
[]
[]
[]
[]
[]
[]
[]
[]
[]
[]
[]
[]
[]
[]
[]
[]
[]
[]
[]
[]
[]
[]
[]
[]
[]
[]
[]
[]
[]
[]
[]
[]
[]
[]
[]
[]
[]
[]
[]
[]
[]
[]
[]
[]
[]
[]
[]
[]
[]
[]
[]
[]
[]
[]
[]
[]
[]
[]
[]
[]
[]
[]
[]
[]
[]
[]
[]
[]
[]
[]
[]
[]
[]
[]
[]
[]
[]
[]
[]
[]
[]
[]
[]
[]
[]
[]
[]
[]
[]
[]
[]
[]
[]
[]
[]
[]
[]
[]
[]
[]
[]
[]
[]
[]
[]
[]
[]
[]
[]
[]
[]
[]
[]
[]
[]
[]
[]
[]
[]
[]
[]
[]
[]
[]
[]
[]
[]
[]
[]
[]
[]
[]
[]
[]
[]
[]
[]
[]
[]
[]
[]
[]
[]
[]
[]
[]
[]
[]
[]
[]
[]
[]
[]
[]
[]
[]
[]
[]
[]
[]
[]
[]
[]
[]
[]
[]
[]
[]
[]
[]
[]
[]
[]
[]
[]
[]
[]
[]
[]
[]
[]
[]
[]
[]
[]
[]
[]
[]
[]
[]
[]
[]
[]
[]
[]
[]
[]
[]
[]
[]
[]
[]
[]
[]
[]
[]
[]
[]
[]
[]
[]
[]
[]
[]
[]
[]
[]
[]
[]
[]
[]
[]
[]
[]
[]
[]
[]
[]
[]
[]
[]
[]
[]
[]
[]
[]
[]
[]
[]
[]
[]
[]
[]
[]
[]
[]
[]
[]
[]
[]
[]
[]
[]
[]
[]
[]
[]
[]
[]
[]
[]
[]
[]
[]
[]
[]
[]
[]
[]
[]
[]
[]
[]
[]
[]
[]
[]
[]
[]
[]
[]
[]
[]
[]
[]
[]
[]
[]
[]
[]
[]
[]
[]
[]
[]
[]
[]
[]
[]
[]
[]
[]
[]
[]
[]
[]
[]
[]
[]
[]
[]
[]
[]
[]
[]
[]
[]
[]
[]
[]
[]
[]
[]
[]
[]
[]
[]
[]
[]
[]
[]
[]
[]
[]
[]
[]
[]
[]
[]
[]
[]
[]
[]
[]
[]
[]
[]
[]
[]
[]
[]
[]
[]
[]
[]
[]
[]
[]
[]
[]
[]
[]
[]
[]
[]
[]
[]
[]
[]
[]
[]
[]
[]
[]
[]
[]
[]
[]
[]
[]
[]
[]
[]
[]
[]
[]
[]
[]
[]
[]
[]
[]
[]
[]
[]
[]
[]
[]
[]
[]
[]
[]
[]
[]
[]
[]
[]
[]
[]
[]
[]
[]
[]
[]
[]
[]
[]
[]
[]
[]
[]
[]
[]
[]
[]
[]
[]
[]
[]
[]
[]
[]
[]
[]
[]
[]
[]
[]
[]
[]
[]
[]
[]
[]
[]
[]
[]
[]
[]
[]
[]
[]
[]
[]
[]
[]
[]
[]
[]
[]
[]
[]
[]
[]
[]
[]
[]
[]
[]
[]
[]
[]
[]
[]
[]
[]
[]
[]
[]
[]
[]
[]
[]
[]
[]
[]
[]
[]
[]
[]
[]
[]
[]
[]
[]
[]
[]
[]
[]
[]
[]
[]
[]
[]
[]
[]
[]
[]
[]
[]
[]
[]
[]
[]
[]
[]
[]
[]
[]
[]
[]
[]
[]
[]
[]
[]
[]
[]
[]
[]
[]
[]
[]
[]
[]
[]
[]
[]
[]
[]
[]
[]
[]
[]
[]
[]
[]
[]
[]
[]
[]
[]
[]
[]
[]
[]
[]
[]
[]
[]
[]
[]
[]
[]
[]
[]
[]
[]
[]
[]
[]
[]
[]
[]
[]
[]
[]
[]
[]
[]
[]
[]
[]
[]
[]
[]
[]
[]
[]
[]
[]
[]
[]
[]
[]
[]
[]
[]
[]
[]
[]
[]
[]
[]
[]
[]
[]
[]
[]
[]
[]
[]
[]
[]
[]
[]
[]
[]
[]
[]
[]
[]
[]
[]
[]
[]
[]
[]
[]
[]
[]
[]
[]
[]
[]
[]
[]
[]
[]
[]
[]
[]
[]
[]
[]
[]
[]
[]
[]
[]
[]
[]
[]
[]
[]
[]
[]
[]
[]
[]
[]
[]
[]
[]
[]
[]
[]
[]
[]
[]
[]
[]
[]
[]
[]
[]
[]
[]
[]
[]
[]
[]
[]
[]
[]
[]
[]
[]
[]
[]
[]
[]
[]
[]
[]
[]
[]
[]
[]
[]
[]
[]
[]
[]
[]
[]
[]
[]
[]
[]
[]
[]
[]
[]
[]
[]
[]
[]
[]
[]
[]
[]
[]
[]
[]
[]
[]
[]
[]
[]
[]
[]
[]
[]
[]
[]
[]
[]
[]
[]
[]
[]
[]
[]
[]
[]
[]
[]
[]
[]
[]
[]
[]
[]
[]
[]
[]
[]
[]
[]
[]
[]
[]
[]
[]
[]
[]
[]
[]
[]
[]
[]
[]
[]
[]
[]
[]
[]
[]
[]
[]
[]
[]
[]
[]
[]
[]
[]
[]
[]
[]
[]
[]
[]
[]
[]
[]
[]
[]
[]
[]
[]
[]
[]
[]
[]
[]
[]
[]
[]
[]
[]
[]
[]
[]
[]
[]
[]
[]
[]
[]
[]
[]
[]
[]
[]
[]
[]
[]
[]
[]
[]
[]
[]
[]
[]
[]
[]
[]
[]
[]
[]
[]
[]
[]
[]
[]
[]
[]
[]
[]
[]
[]
[]
[]
[]
[]
[]
[]
[]
[]
[]
[]
[]
[]
[]
[]
[]
[]
[]
[]
[]
[]
[]
[]
[]
[]
[]
[]
[]
[]
[]
[]
[]
[]
[]
[]
[]
[null,null,null,null,null,null,null,{"$f":"VLOOKUP(C:C,[2]Ajus!A$3:B$222,2,TRUE)","v":{"$error":"#N/A"}}]
[null,null,null,null,null,null,null,{"$f":"VLOOKUP(C:C,[2]Ajus!A$3:B$222,2,TRUE)","v":{"$error":"#N/A"}}]
[null,null,null,null,null,null,null,{"$f":"VLOOKUP(C:C,[2]Ajus!A$3:B$222,2,TRUE)","v":{"$error":"#N/A"}}]
[null,null,null,null,null,null,null,{"$f":"VLOOKUP(C:C,[2]Ajus!A$3:B$222,2,TRUE)","v":{"$error":"#N/A"}}]
[null,null,null,null,null,null,null,{"$f":"VLOOKUP(C:C,[2]Ajus!A$3:B$222,2,TRUE)","v":{"$error":"#N/A"}}]
[null,null,null,null,null,null,null,{"$f":"VLOOKUP(C:C,[2]Ajus!A$3:B$222,2,TRUE)","v":{"$error":"#N/A"}}]
[null,null,null,null,null,null,null,{"$f":"VLOOKUP(C:C,[2]Ajus!A$3:B$222,2,TRUE)","v":{"$error":"#N/A"}}]
[null,null,null,null,null,null,null,{"$f":"VLOOKUP(C:C,[2]Ajus!A$3:B$222,2,TRUE)","v":{"$error":"#N/A"}}]
[null,null,null,null,null,null,null,{"$f":"VLOOKUP(C:C,[2]Ajus!A$3:B$222,2,TRUE)","v":{"$error":"#N/A"}}]
[null,null,null,null,null,null,null,{"$f":"VLOOKUP(C:C,[2]Ajus!A$3:B$222,2,TRUE)","v":{"$error":"#N/A"}}]
[null,null,null,null,null,null,null,{"$f":"VLOOKUP(C:C,[2]Ajus!A$3:B$222,2,TRUE)","v":{"$error":"#N/A"}}]
[null,null,null,null,null,null,null,{"$f":"VLOOKUP(C:C,[2]Ajus!A$3:B$222,2,TRUE)","v":{"$error":"#N/A"}}]
[null,null,null,null,null,null,null,{"$f":"VLOOKUP(C:C,[2]Ajus!A$3:B$222,2,TRUE)","v":{"$error":"#N/A"}}]
[null,null,null,null,null,null,null,{"$f":"VLOOKUP(C:C,[2]Ajus!A$3:B$222,2,TRUE)","v":{"$error":"#N/A"}}]
[null,null,null,null,null,null,null,{"$f":"VLOOKUP(C:C,[2]Ajus!A$3:B$222,2,TRUE)","v":{"$error":"#N/A"}}]
[null,null,null,null,null,null,null,{"$f":"VLOOKUP(C:C,[2]Ajus!A$3:B$222,2,TRUE)","v":{"$error":"#N/A"}}]
[null,null,null,null,null,null,null,{"$f":"VLOOKUP(C:C,[2]Ajus!A$3:B$222,2,TRUE)","v":{"$error":"#N/A"}}]
[null,null,null,null,null,null,null,{"$f":"VLOOKUP(C:C,[2]Ajus!A$3:B$222,2,TRUE)","v":{"$error":"#N/A"}}]
[null,null,null,null,null,null,null,{"$f":"VLOOKUP(C:C,[2]Ajus!A$3:B$222,2,TRUE)","v":{"$error":"#N/A"}}]
[null,null,null,null,null,null,null,{"$f":"VLOOKUP(C:C,[2]Ajus!A$3:B$222,2,TRUE)","v":{"$error":"#N/A"}}]
[null,null,null,null,null,null,null,{"$f":"VLOOKUP(C:C,[2]Ajus!A$3:B$222,2,TRUE)","v":{"$error":"#N/A"}}]
[null,null,null,null,null,null,null,{"$f":"VLOOKUP(C:C,[2]Ajus!A$3:B$222,2,TRUE)","v":{"$error":"#N/A"}}]
[null,null,null,null,null,null,null,{"$f":"VLOOKUP(C:C,[2]Ajus!A$3:B$222,2,TRUE)","v":{"$error":"#N/A"}}]
[null,null,null,null,null,null,null,{"$f":"VLOOKUP(C:C,[2]Ajus!A$3:B$222,2,TRUE)","v":{"$error":"#N/A"}}]
[null,null,null,null,null,null,null,{"$f":"VLOOKUP(C:C,[2]Ajus!A$3:B$222,2,TRUE)","v":{"$error":"#N/A"}}]
[null,null,null,null,null,null,null,{"$f":"VLOOKUP(C:C,[2]Ajus!A$3:B$222,2,TRUE)","v":{"$error":"#N/A"}}]
[null,null,null,null,null,null,null,{"$f":"VLOOKUP(C:C,[2]Ajus!A$3:B$222,2,TRUE)","v":{"$error":"#N/A"}}]
[null,null,null,null,null,null,null,{"$f":"VLOOKUP(C:C,[2]Ajus!A$3:B$222,2,TRUE)","v":{"$error":"#N/A"}}]
[null,null,null,null,null,null,null,{"$f":"VLOOKUP(C:C,[2]Ajus!A$3:B$222,2,TRUE)","v":{"$error":"#N/A"}}]
[null,null,null,null,null,null,null,{"$f":"VLOOKUP(C:C,[2]Ajus!A$3:B$222,2,TRUE)","v":{"$error":"#N/A"}}]
[null,null,null,null,null,null,null,{"$f":"VLOOKUP(C:C,[2]Ajus!A$3:B$222,2,TRUE)","v":{"$error":"#N/A"}}]
[null,null,null,null,null,null,null,{"$f":"VLOOKUP(C:C,[2]Ajus!A$3:B$222,2,TRUE)","v":{"$error":"#N/A"}}]
[null,null,null,null,null,null,null,{"$f":"VLOOKUP(C:C,[2]Ajus!A$3:B$222,2,TRUE)","v":{"$error":"#N/A"}}]
[null,null,null,null,null,null,null,{"$f":"VLOOKUP(C:C,[2]Ajus!A$3:B$222,2,TRUE)","v":{"$error":"#N/A"}}]
[null,null,null,null,null,null,null,{"$f":"VLOOKUP(C:C,[2]Ajus!A$3:B$222,2,TRUE)","v":{"$error":"#N/A"}}]
[null,null,null,null,null,null,null,{"$f":"VLOOKUP(C:C,[2]Ajus!A$3:B$222,2,TRUE)","v":{"$error":"#N/A"}}]
[null,null,null,null,null,null,null,{"$f":"VLOOKUP(C:C,[2]Ajus!A$3:B$222,2,TRUE)","v":{"$error":"#N/A"}}]
[null,null,null,null,null,null,null,{"$f":"VLOOKUP(C:C,[2]Ajus!A$3:B$222,2,TRUE)","v":{"$error":"#N/A"}}]
[null,null,null,null,null,null,null,{"$f":"VLOOKUP(C:C,[2]Ajus!A$3:B$222,2,TRUE)","v":{"$error":"#N/A"}}]
[null,null,null,null,null,null,null,{"$f":"VLOOKUP(C:C,[2]Ajus!A$3:B$222,2,TRUE)","v":{"$error":"#N/A"}}]
[null,null,null,null,null,null,null,{"$f":"VLOOKUP(C:C,[2]Ajus!A$3:B$222,2,TRUE)","v":{"$error":"#N/A"}}]
[null,null,null,null,null,null,null,{"$f":"VLOOKUP(C:C,[2]Ajus!A$3:B$222,2,TRUE)","v":{"$error":"#N/A"}}]
[null,null,null,null,null,null,null,{"$f":"VLOOKUP(C:C,[2]Ajus!A$3:B$222,2,TRUE)","v":{"$error":"#N/A"}}]
[null,null,null,null,null,null,null,{"$f":"VLOOKUP(C:C,[2]Ajus!A$3:B$222,2,TRUE)","v":{"$error":"#N/A"}}]
[null,null,null,null,null,null,null,{"$f":"VLOOKUP(C:C,[2]Ajus!A$3:B$222,2,TRUE)","v":{"$error":"#N/A"}}]
[null,null,null,null,null,null,null,{"$f":"VLOOKUP(C:C,[2]Ajus!A$3:B$222,2,TRUE)","v":{"$error":"#N/A"}}]
[null,null,null,null,null,null,null,{"$f":"VLOOKUP(C:C,[2]Ajus!A$3:B$222,2,TRUE)","v":{"$error":"#N/A"}}]
[null,null,null,null,null,null,null,{"$f":"VLOOKUP(C:C,[2]Ajus!A$3:B$222,2,TRUE)","v":{"$error":"#N/A"}}]
[null,null,null,null,null,null,null,{"$f":"VLOOKUP(C:C,[2]Ajus!A$3:B$222,2,TRUE)","v":{"$error":"#N/A"}}]
[null,null,null,null,null,null,null,{"$f":"VLOOKUP(C:C,[2]Ajus!A$3:B$222,2,TRUE)","v":{"$error":"#N/A"}}]
[null,null,null,null,null,null,null,{"$f":"VLOOKUP(C:C,[2]Ajus!A$3:B$222,2,TRUE)","v":{"$error":"#N/A"}}]
[null,null,null,null,null,null,null,{"$f":"VLOOKUP(C:C,[2]Ajus!A$3:B$222,2,TRUE)","v":{"$error":"#N/A"}}]
[null,null,null,null,null,null,null,{"$f":"VLOOKUP(C:C,[2]Ajus!A$3:B$222,2,TRUE)","v":{"$error":"#N/A"}}]
[null,null,null,null,null,null,null,{"$f":"VLOOKUP(C:C,[2]Ajus!A$3:B$222,2,TRUE)","v":{"$error":"#N/A"}}]
[null,null,null,null,null,null,null,{"$f":"VLOOKUP(C:C,[2]Ajus!A$3:B$222,2,TRUE)","v":{"$error":"#N/A"}}]
[null,null,null,null,null,null,null,{"$f":"VLOOKUP(C:C,[2]Ajus!A$3:B$222,2,TRUE)","v":{"$error":"#N/A"}}]
[null,null,null,null,null,null,null,{"$f":"VLOOKUP(C:C,[2]Ajus!A$3:B$222,2,TRUE)","v":{"$error":"#N/A"}}]
[null,null,null,null,null,null,null,{"$f":"VLOOKUP(C:C,[2]Ajus!A$3:B$222,2,TRUE)","v":{"$error":"#N/A"}}]
[null,null,null,null,null,null,null,{"$f":"VLOOKUP(C:C,[2]Ajus!A$3:B$222,2,TRUE)","v":{"$error":"#N/A"}}]
[null,null,null,null,null,null,null,{"$f":"VLOOKUP(C:C,[2]Ajus!A$3:B$222,2,TRUE)","v":{"$error":"#N/A"}}]
[null,null,null,null,null,null,null,{"$f":"VLOOKUP(C:C,[2]Ajus!A$3:B$222,2,TRUE)","v":{"$error":"#N/A"}}]
[null,null,null,null,null,null,null,{"$f":"VLOOKUP(C:C,[2]Ajus!A$3:B$222,2,TRUE)","v":{"$error":"#N/A"}}]
[null,null,null,null,null,null,null,{"$f":"VLOOKUP(C:C,[2]Ajus!A$3:B$222,2,TRUE)","v":{"$error":"#N/A"}}]
[null,null,null,null,null,null,null,{"$f":"VLOOKUP(C:C,[2]Ajus!A$3:B$222,2,TRUE)","v":{"$error":"#N/A"}}]
[null,null,null,null,null,null,null,{"$f":"VLOOKUP(C:C,[2]Ajus!A$3:B$222,2,TRUE)","v":{"$error":"#N/A"}}]
[null,null,null,null,null,null,null,{"$f":"VLOOKUP(C:C,[2]Ajus!A$3:B$222,2,TRUE)","v":{"$error":"#N/A"}}]
[null,null,null,null,null,null,null,{"$f":"VLOOKUP(C:C,[2]Ajus!A$3:B$222,2,TRUE)","v":{"$error":"#N/A"}}]
[null,null,null,null,null,null,null,{"$f":"VLOOKUP(C:C,[2]Ajus!A$3:B$222,2,TRUE)","v":{"$error":"#N/A"}}]
[null,null,null,null,null,null,null,{"$f":"VLOOKUP(C:C,[2]Ajus!A$3:B$222,2,TRUE)","v":{"$error":"#N/A"}}]
[null,null,null,null,null,null,null,{"$f":"VLOOKUP(C:C,[2]Ajus!A$3:B$222,2,TRUE)","v":{"$error":"#N/A"}}]
[null,null,null,null,null,null,null,{"$f":"VLOOKUP(C:C,[2]Ajus!A$3:B$222,2,TRUE)","v":{"$error":"#N/A"}}]
[null,null,null,null,null,null,null,{"$f":"VLOOKUP(C:C,[2]Ajus!A$3:B$222,2,TRUE)","v":{"$error":"#N/A"}}]
[null,null,null,null,null,null,null,{"$f":"VLOOKUP(C:C,[2]Ajus!A$3:B$222,2,TRUE)","v":{"$error":"#N/A"}}]
[null,null,null,null,null,null,null,{"$f":"VLOOKUP(C:C,[2]Ajus!A$3:B$222,2,TRUE)","v":{"$error":"#N/A"}}]
[null,null,null,null,null,null,null,{"$f":"VLOOKUP(C:C,[2]Ajus!A$3:B$222,2,TRUE)","v":{"$error":"#N/A"}}]
[null,null,null,null,null,null,null,{"$f":"VLOOKUP(C:C,[2]Ajus!A$3:B$222,2,TRUE)","v":{"$error":"#N/A"}}]
[null,null,null,null,null,null,null,{"$f":"VLOOKUP(C:C,[2]Ajus!A$3:B$222,2,TRUE)","v":{"$error":"#N/A"}}]
[null,null,null,null,null,null,null,{"$f":"VLOOKUP(C:C,[2]Ajus!A$3:B$222,2,TRUE)","v":{"$error":"#N/A"}}]
[null,null,null,null,null,null,null,{"$f":"VLOOKUP(C:C,[2]Ajus!A$3:B$222,2,TRUE)","v":{"$error":"#N/A"}}]
[null,null,null,null,null,null,null,{"$f":"VLOOKUP(C:C,[2]Ajus!A$3:B$222,2,TRUE)","v":{"$error":"#N/A"}}]
[null,null,null,null,null,null,null,{"$f":"VLOOKUP(C:C,[2]Ajus!A$3:B$222,2,TRUE)","v":{"$error":"#N/A"}}]
[null,null,null,null,null,null,null,{"$f":"VLOOKUP(C:C,[2]Ajus!A$3:B$222,2,TRUE)","v":{"$error":"#N/A"}}]
[null,null,null,null,null,null,null,{"$f":"VLOOKUP(C:C,[2]Ajus!A$3:B$222,2,TRUE)","v":{"$error":"#N/A"}}]
[null,null,null,null,null,null,null,{"$f":"VLOOKUP(C:C,[2]Ajus!A$3:B$222,2,TRUE)","v":{"$error":"#N/A"}}]
[null,null,null,null,null,null,null,{"$f":"VLOOKUP(C:C,[2]Ajus!A$3:B$222,2,TRUE)","v":{"$error":"#N/A"}}]
[null,null,null,null,null,null,null,{"$f":"VLOOKUP(C:C,[2]Ajus!A$3:B$222,2,TRUE)","v":{"$error":"#N/A"}}]
[null,null,null,null,null,null,null,{"$f":"VLOOKUP(C:C,[2]Ajus!A$3:B$222,2,TRUE)","v":{"$error":"#N/A"}}]
[null,null,null,null,null,null,null,{"$f":"VLOOKUP(C:C,[2]Ajus!A$3:B$222,2,TRUE)","v":{"$error":"#N/A"}}]
[null,null,null,null,null,null,null,{"$f":"VLOOKUP(C:C,[2]Ajus!A$3:B$222,2,TRUE)","v":{"$error":"#N/A"}}]
[null,null,null,null,null,null,null,{"$f":"VLOOKUP(C:C,[2]Ajus!A$3:B$222,2,TRUE)","v":{"$error":"#N/A"}}]
[null,null,null,null,null,null,null,{"$f":"VLOOKUP(C:C,[2]Ajus!A$3:B$222,2,TRUE)","v":{"$error":"#N/A"}}]
[null,null,null,null,null,null,null,{"$f":"VLOOKUP(C:C,[2]Ajus!A$3:B$222,2,TRUE)","v":{"$error":"#N/A"}}]
[null,null,null,null,null,null,null,{"$f":"VLOOKUP(C:C,[2]Ajus!A$3:B$222,2,TRUE)","v":{"$error":"#N/A"}}]
[null,null,null,null,null,null,null,{"$f":"VLOOKUP(C:C,[2]Ajus!A$3:B$222,2,TRUE)","v":{"$error":"#N/A"}}]
[null,null,null,null,null,null,null,{"$f":"VLOOKUP(C:C,[2]Ajus!A$3:B$222,2,TRUE)","v":{"$error":"#N/A"}}]
[null,null,null,null,null,null,null,{"$f":"VLOOKUP(C:C,[2]Ajus!A$3:B$222,2,TRUE)","v":{"$error":"#N/A"}}]
[null,null,null,null,null,null,null,{"$f":"VLOOKUP(C:C,[2]Ajus!A$3:B$222,2,TRUE)","v":{"$error":"#N/A"}}]
[null,null,null,null,null,null,null,{"$f":"VLOOKUP(C:C,[2]Ajus!A$3:B$222,2,TRUE)","v":{"$error":"#N/A"}}]
[null,null,null,null,null,null,null,{"$f":"VLOOKUP(C:C,[2]Ajus!A$3:B$222,2,TRUE)","v":{"$error":"#N/A"}}]
[null,null,null,null,null,null,null,{"$f":"VLOOKUP(C:C,[2]Ajus!A$3:B$222,2,TRUE)","v":{"$error":"#N/A"}}]
[null,null,null,null,null,null,null,{"$f":"VLOOKUP(C:C,[2]Ajus!A$3:B$222,2,TRUE)","v":{"$error":"#N/A"}}]
[null,null,null,null,null,null,null,{"$f":"VLOOKUP(C:C,[2]Ajus!A$3:B$222,2,TRUE)","v":{"$error":"#N/A"}}]
[null,null,null,null,null,null,null,{"$f":"VLOOKUP(C:C,[2]Ajus!A$3:B$222,2,TRUE)","v":{"$error":"#N/A"}}]
[null,null,null,null,null,null,null,{"$f":"VLOOKUP(C:C,[2]Ajus!A$3:B$222,2,TRUE)","v":{"$error":"#N/A"}}]
[null,null,null,null,null,null,null,{"$f":"VLOOKUP(C:C,[2]Ajus!A$3:B$222,2,TRUE)","v":{"$error":"#N/A"}}]
[null,null,null,null,null,null,null,{"$f":"VLOOKUP(C:C,[2]Ajus!A$3:B$222,2,TRUE)","v":{"$error":"#N/A"}}]
[null,null,null,null,null,null,null,{"$f":"VLOOKUP(C:C,[2]Ajus!A$3:B$222,2,TRUE)","v":{"$error":"#N/A"}}]
[null,null,null,null,null,null,null,{"$f":"VLOOKUP(C:C,[2]Ajus!A$3:B$222,2,TRUE)","v":{"$error":"#N/A"}}]
[null,null,null,null,null,null,null,{"$f":"VLOOKUP(C:C,[2]Ajus!A$3:B$222,2,TRUE)","v":{"$error":"#N/A"}}]
[null,null,null,null,null,null,null,{"$f":"VLOOKUP(C:C,[2]Ajus!A$3:B$222,2,TRUE)","v":{"$error":"#N/A"}}]
[null,null,null,null,null,null,null,{"$f":"VLOOKUP(C:C,[2]Ajus!A$3:B$222,2,TRUE)","v":{"$error":"#N/A"}}]
[null,null,null,null,null,null,null,{"$f":"VLOOKUP(C:C,[2]Ajus!A$3:B$222,2,TRUE)","v":{"$error":"#N/A"}}]
[null,null,null,null,null,null,null,{"$f":"VLOOKUP(C:C,[2]Ajus!A$3:B$222,2,TRUE)","v":{"$error":"#N/A"}}]
[null,null,null,null,null,null,null,{"$f":"VLOOKUP(C:C,[2]Ajus!A$3:B$222,2,TRUE)","v":{"$error":"#N/A"}}]
[null,null,null,null,null,null,null,{"$f":"VLOOKUP(C:C,[2]Ajus!A$3:B$222,2,TRUE)","v":{"$error":"#N/A"}}]
[null,null,null,null,null,null,null,{"$f":"VLOOKUP(C:C,[2]Ajus!A$3:B$222,2,TRUE)","v":{"$error":"#N/A"}}]
[null,null,null,null,null,null,null,{"$f":"VLOOKUP(C:C,[2]Ajus!A$3:B$222,2,TRUE)","v":{"$error":"#N/A"}}]
[null,null,null,null,null,null,null,{"$f":"VLOOKUP(C:C,[2]Ajus!A$3:B$222,2,TRUE)","v":{"$error":"#N/A"}}]
[null,null,null,null,null,null,null,{"$f":"VLOOKUP(C:C,[2]Ajus!A$3:B$222,2,TRUE)","v":{"$error":"#N/A"}}]
[null,null,null,null,null,null,null,{"$f":"VLOOKUP(C:C,[2]Ajus!A$3:B$222,2,TRUE)","v":{"$error":"#N/A"}}]
[null,null,null,null,null,null,null,{"$f":"VLOOKUP(C:C,[2]Ajus!A$3:B$222,2,TRUE)","v":{"$error":"#N/A"}}]
[null,null,null,null,null,null,null,{"$f":"VLOOKUP(C:C,[2]Ajus!A$3:B$222,2,TRUE)","v":{"$error":"#N/A"}}]
[null,null,null,null,null,null,null,{"$f":"VLOOKUP(C:C,[2]Ajus!A$3:B$222,2,TRUE)","v":{"$error":"#N/A"}}]
[null,null,null,null,null,null,null,{"$f":"VLOOKUP(C:C,[2]Ajus!A$3:B$222,2,TRUE)","v":{"$error":"#N/A"}}]
[null,null,null,null,null,null,null,{"$f":"VLOOKUP(C:C,[2]Ajus!A$3:B$222,2,TRUE)","v":{"$error":"#N/A"}}]
[null,null,null,null,null,null,null,{"$f":"VLOOKUP(C:C,[2]Ajus!A$3:B$222,2,TRUE)","v":{"$error":"#N/A"}}]
[null,null,null,null,null,null,null,{"$f":"VLOOKUP(C:C,[2]Ajus!A$3:B$222,2,TRUE)","v":{"$error":"#N/A"}}]
[null,null,null,null,null,null,null,{"$f":"VLOOKUP(C:C,[2]Ajus!A$3:B$222,2,TRUE)","v":{"$error":"#N/A"}}]
[null,null,null,null,null,null,null,{"$f":"VLOOKUP(C:C,[2]Ajus!A$3:B$222,2,TRUE)","v":{"$error":"#N/A"}}]
[null,null,null,null,null,null,null,{"$f":"VLOOKUP(C:C,[2]Ajus!A$3:B$222,2,TRUE)","v":{"$error":"#N/A"}}]
[null,null,null,null,null,null,null,{"$f":"VLOOKUP(C:C,[2]Ajus!A$3:B$222,2,TRUE)","v":{"$error":"#N/A"}}]
[null,null,null,null,null,null,null,{"$f":"VLOOKUP(C:C,[2]Ajus!A$3:B$222,2,TRUE)","v":{"$error":"#N/A"}}]
[null,null,null,null,null,null,null,{"$f":"VLOOKUP(C:C,[2]Ajus!A$3:B$222,2,TRUE)","v":{"$error":"#N/A"}}]
[null,null,null,null,null,null,null,{"$f":"VLOOKUP(C:C,[2]Ajus!A$3:B$222,2,TRUE)","v":{"$error":"#N/A"}}]
[null,null,null,null,null,null,null,{"$f":"VLOOKUP(C:C,[2]Ajus!A$3:B$222,2,TRUE)","v":{"$error":"#N/A"}}]
[null,null,null,null,null,null,null,{"$f":"VLOOKUP(C:C,[2]Ajus!A$3:B$222,2,TRUE)","v":{"$error":"#N/A"}}]
[null,null,null,null,null,null,null,{"$f":"VLOOKUP(C:C,[2]Ajus!A$3:B$222,2,TRUE)","v":{"$error":"#N/A"}}]
[null,null,null,null,null,null,null,{"$f":"VLOOKUP(C:C,[2]Ajus!A$3:B$222,2,TRUE)","v":{"$error":"#N/A"}}]
[null,null,null,null,null,null,null,{"$f":"VLOOKUP(C:C,[2]Ajus!A$3:B$222,2,TRUE)","v":{"$error":"#N/A"}}]
[null,null,null,null,null,null,null,{"$f":"VLOOKUP(C:C,[2]Ajus!A$3:B$222,2,TRUE)","v":{"$error":"#N/A"}}]
[null,null,null,null,null,null,null,{"$f":"VLOOKUP(C:C,[2]Ajus!A$3:B$222,2,TRUE)","v":{"$error":"#N/A"}}]
[null,null,null,null,null,null,null,{"$f":"VLOOKUP(C:C,[2]Ajus!A$3:B$222,2,TRUE)","v":{"$error":"#N/A"}}]
[null,null,null,null,null,null,null,{"$f":"VLOOKUP(C:C,[2]Ajus!A$3:B$222,2,TRUE)","v":{"$error":"#N/A"}}]
[null,null,null,null,null,null,null,{"$f":"VLOOKUP(C:C,[2]Ajus!A$3:B$222,2,TRUE)","v":{"$error":"#N/A"}}]
[null,null,null,null,null,null,null,{"$f":"VLOOKUP(C:C,[2]Ajus!A$3:B$222,2,TRUE)","v":{"$error":"#N/A"}}]
[null,null,null,null,null,null,null,{"$f":"VLOOKUP(C:C,[2]Ajus!A$3:B$222,2,TRUE)","v":{"$error":"#N/A"}}]
[null,null,null,null,null,null,null,{"$f":"VLOOKUP(C:C,[2]Ajus!A$3:B$222,2,TRUE)","v":{"$error":"#N/A"}}]
[null,null,null,null,null,null,null,{"$f":"VLOOKUP(C:C,[2]Ajus!A$3:B$222,2,TRUE)","v":{"$error":"#N/A"}}]
[null,null,null,null,null,null,null,{"$f":"VLOOKUP(C:C,[2]Ajus!A$3:B$222,2,TRUE)","v":{"$error":"#N/A"}}]
[null,null,null,null,null,null,null,{"$f":"VLOOKUP(C:C,[2]Ajus!A$3:B$222,2,TRUE)","v":{"$error":"#N/A"}}]
[null,null,null,null,null,null,null,{"$f":"VLOOKUP(C:C,[2]Ajus!A$3:B$222,2,TRUE)","v":{"$error":"#N/A"}}]
[null,null,null,null,null,null,null,{"$f":"VLOOKUP(C:C,[2]Ajus!A$3:B$222,2,TRUE)","v":{"$error":"#N/A"}}]
[null,null,null,null,null,null,null,{"$f":"VLOOKUP(C:C,[2]Ajus!A$3:B$222,2,TRUE)","v":{"$error":"#N/A"}}]
[null,null,null,null,null,null,null,{"$f":"VLOOKUP(C:C,[2]Ajus!A$3:B$222,2,TRUE)","v":{"$error":"#N/A"}}]
[null,null,null,null,null,null,null,{"$f":"VLOOKUP(C:C,[2]Ajus!A$3:B$222,2,TRUE)","v":{"$error":"#N/A"}}]
[null,null,null,null,null,null,null,{"$f":"VLOOKUP(C:C,[2]Ajus!A$3:B$222,2,TRUE)","v":{"$error":"#N/A"}}]
[null,null,null,null,null,null,null,{"$f":"VLOOKUP(C:C,[2]Ajus!A$3:B$222,2,TRUE)","v":{"$error":"#N/A"}}]
[null,null,null,null,null,null,null,{"$f":"VLOOKUP(C:C,[2]Ajus!A$3:B$222,2,TRUE)","v":{"$error":"#N/A"}}]
[null,null,null,null,null,null,null,{"$f":"VLOOKUP(C:C,[2]Ajus!A$3:B$222,2,TRUE)","v":{"$error":"#N/A"}}]
[null,null,null,null,null,null,null,{"$f":"VLOOKUP(C:C,[2]Ajus!A$3:B$222,2,TRUE)","v":{"$error":"#N/A"}}]
[null,null,null,null,null,null,null,{"$f":"VLOOKUP(C:C,[2]Ajus!A$3:B$222,2,TRUE)","v":{"$error":"#N/A"}}]
[null,null,null,null,null,null,null,{"$f":"VLOOKUP(C:C,[2]Ajus!A$3:B$222,2,TRUE)","v":{"$error":"#N/A"}}]
[null,null,null,null,null,null,null,{"$f":"VLOOKUP(C:C,[2]Ajus!A$3:B$222,2,TRUE)","v":{"$error":"#N/A"}}]
[null,null,null,null,null,null,null,{"$f":"VLOOKUP(C:C,[2]Ajus!A$3:B$222,2,TRUE)","v":{"$error":"#N/A"}}]
[null,null,null,null,null,null,null,{"$f":"VLOOKUP(C:C,[2]Ajus!A$3:B$222,2,TRUE)","v":{"$error":"#N/A"}}]
[null,null,null,null,null,null,null,{"$f":"VLOOKUP(C:C,[2]Ajus!A$3:B$222,2,TRUE)","v":{"$error":"#N/A"}}]
[null,null,null,null,null,null,null,{"$f":"VLOOKUP(C:C,[2]Ajus!A$3:B$222,2,TRUE)","v":{"$error":"#N/A"}}]
[null,null,null,null,null,null,null,{"$f":"VLOOKUP(C:C,[2]Ajus!A$3:B$222,2,TRUE)","v":{"$error":"#N/A"}}]
[null,null,null,null,null,null,null,{"$f":"VLOOKUP(C:C,[2]Ajus!A$3:B$222,2,TRUE)","v":{"$error":"#N/A"}}]
[null,null,null,null,null,null,null,{"$f":"VLOOKUP(C:C,[2]Ajus!A$3:B$222,2,TRUE)","v":{"$error":"#N/A"}}]
[null,null,null,null,null,null,null,{"$f":"VLOOKUP(C:C,[2]Ajus!A$3:B$222,2,TRUE)","v":{"$error":"#N/A"}}]
[null,null,null,null,null,null,null,{"$f":"VLOOKUP(C:C,[2]Ajus!A$3:B$222,2,TRUE)","v":{"$error":"#N/A"}}]
[null,null,null,null,null,null,null,{"$f":"VLOOKUP(C:C,[2]Ajus!A$3:B$222,2,TRUE)","v":{"$error":"#N/A"}}]
[null,null,null,null,null,null,null,{"$f":"VLOOKUP(C:C,[2]Ajus!A$3:B$222,2,TRUE)","v":{"$error":"#N/A"}}]
[null,null,null,null,null,null,null,{"$f":"VLOOKUP(C:C,[2]Ajus!A$3:B$222,2,TRUE)","v":{"$error":"#N/A"}}]
[null,null,null,null,null,null,null,{"$f":"VLOOKUP(C:C,[2]Ajus!A$3:B$222,2,TRUE)","v":{"$error":"#N/A"}}]
[null,null,null,null,null,null,null,{"$f":"VLOOKUP(C:C,[2]Ajus!A$3:B$222,2,TRUE)","v":{"$error":"#N/A"}}]
[null,null,null,null,null,null,null,{"$f":"VLOOKUP(C:C,[2]Ajus!A$3:B$222,2,TRUE)","v":{"$error":"#N/A"}}]
[null,null,null,null,null,null,null,{"$f":"VLOOKUP(C:C,[2]Ajus!A$3:B$222,2,TRUE)","v":{"$error":"#N/A"}}]
[null,null,null,null,null,null,null,{"$f":"VLOOKUP(C:C,[2]Ajus!A$3:B$222,2,TRUE)","v":{"$error":"#N/A"}}]
[null,null,null,null,null,null,null,{"$f":"VLOOKUP(C:C,[2]Ajus!A$3:B$222,2,TRUE)","v":{"$error":"#N/A"}}]
[null,null,null,null,null,null,null,{"$f":"VLOOKUP(C:C,[2]Ajus!A$3:B$222,2,TRUE)","v":{"$error":"#N/A"}}]
[null,null,null,null,null,null,null,{"$f":"VLOOKUP(C:C,[2]Ajus!A$3:B$222,2,TRUE)","v":{"$error":"#N/A"}}]
[null,null,null,null,null,null,null,{"$f":"VLOOKUP(C:C,[2]Ajus!A$3:B$222,2,TRUE)","v":{"$error":"#N/A"}}]
[null,null,null,null,null,null,null,{"$f":"VLOOKUP(C:C,[2]Ajus!A$3:B$222,2,TRUE)","v":{"$error":"#N/A"}}]
[null,null,null,null,null,null,null,{"$f":"VLOOKUP(C:C,[2]Ajus!A$3:B$222,2,TRUE)","v":{"$error":"#N/A"}}]
[null,null,null,null,null,null,null,{"$f":"VLOOKUP(C:C,[2]Ajus!A$3:B$222,2,TRUE)","v":{"$error":"#N/A"}}]
[null,null,null,null,null,null,null,{"$f":"VLOOKUP(C:C,[2]Ajus!A$3:B$222,2,TRUE)","v":{"$error":"#N/A"}}]
[null,null,null,null,null,null,null,{"$f":"VLOOKUP(C:C,[2]Ajus!A$3:B$222,2,TRUE)","v":{"$error":"#N/A"}}]
[null,null,null,null,null,null,null,{"$f":"VLOOKUP(C:C,[2]Ajus!A$3:B$222,2,TRUE)","v":{"$error":"#N/A"}}]
[null,null,null,null,null,null,null,{"$f":"VLOOKUP(C:C,[2]Ajus!A$3:B$222,2,TRUE)","v":{"$error":"#N/A"}}]
[null,null,null,null,null,null,null,{"$f":"VLOOKUP(C:C,[2]Ajus!A$3:B$222,2,TRUE)","v":{"$error":"#N/A"}}]
[null,null,null,null,null,null,null,{"$f":"VLOOKUP(C:C,[2]Ajus!A$3:B$222,2,TRUE)","v":{"$error":"#N/A"}}]
[null,null,null,null,null,null,null,{"$f":"VLOOKUP(C:C,[2]Ajus!A$3:B$222,2,TRUE)","v":{"$error":"#N/A"}}]
[null,null,null,null,null,null,null,{"$f":"VLOOKUP(C:C,[2]Ajus!A$3:B$222,2,TRUE)","v":{"$error":"#N/A"}}]
[null,null,null,null,null,null,null,{"$f":"VLOOKUP(C:C,[2]Ajus!A$3:B$222,2,TRUE)","v":{"$error":"#N/A"}}]
[null,null,null,null,null,null,null,{"$f":"VLOOKUP(C:C,[2]Ajus!A$3:B$222,2,TRUE)","v":{"$error":"#N/A"}}]
[null,null,null,null,null,null,null,{"$f":"VLOOKUP(C:C,[2]Ajus!A$3:B$222,2,TRUE)","v":{"$error":"#N/A"}}]
[null,null,null,null,null,null,null,{"$f":"VLOOKUP(C:C,[2]Ajus!A$3:B$222,2,TRUE)","v":{"$error":"#N/A"}}]
[null,null,null,null,null,null,null,{"$f":"VLOOKUP(C:C,[2]Ajus!A$3:B$222,2,TRUE)","v":{"$error":"#N/A"}}]
[null,null,null,null,null,null,null,{"$f":"VLOOKUP(C:C,[2]Ajus!A$3:B$222,2,TRUE)","v":{"$error":"#N/A"}}]
[null,null,null,null,null,null,null,{"$f":"VLOOKUP(C:C,[2]Ajus!A$3:B$222,2,TRUE)","v":{"$error":"#N/A"}}]
[null,null,null,null,null,null,null,{"$f":"VLOOKUP(C:C,[2]Ajus!A$3:B$222,2,TRUE)","v":{"$error":"#N/A"}}]
[null,null,null,null,null,null,null,{"$f":"VLOOKUP(C:C,[2]Ajus!A$3:B$222,2,TRUE)","v":{"$error":"#N/A"}}]
[null,null,null,null,null,null,null,{"$f":"VLOOKUP(C:C,[2]Ajus!A$3:B$222,2,TRUE)","v":{"$error":"#N/A"}}]
[null,null,null,null,null,null,null,{"$f":"VLOOKUP(C:C,[2]Ajus!A$3:B$222,2,TRUE)","v":{"$error":"#N/A"}}]
[null,null,null,null,null,null,null,{"$f":"VLOOKUP(C:C,[2]Ajus!A$3:B$222,2,TRUE)","v":{"$error":"#N/A"}}]
[null,null,null,null,null,null,null,{"$f":"VLOOKUP(C:C,[2]Ajus!A$3:B$222,2,TRUE)","v":{"$error":"#N/A"}}]
[null,null,null,null,null,null,null,{"$f":"VLOOKUP(C:C,[2]Ajus!A$3:B$222,2,TRUE)","v":{"$error":"#N/A"}}]
[null,null,null,null,null,null,null,{"$f":"VLOOKUP(C:C,[2]Ajus!A$3:B$222,2,TRUE)","v":{"$error":"#N/A"}}]
[null,null,null,null,null,null,null,{"$f":"VLOOKUP(C:C,[2]Ajus!A$3:B$222,2,TRUE)","v":{"$error":"#N/A"}}]
[null,null,null,null,null,null,null,{"$f":"VLOOKUP(C:C,[2]Ajus!A$3:B$222,2,TRUE)","v":{"$error":"#N/A"}}]
[null,null,null,null,null,null,null,{"$f":"VLOOKUP(C:C,[2]Ajus!A$3:B$222,2,TRUE)","v":{"$error":"#N/A"}}]
[null,null,null,null,null,null,null,{"$f":"VLOOKUP(C:C,[2]Ajus!A$3:B$222,2,TRUE)","v":{"$error":"#N/A"}}]
[null,null,null,null,null,null,null,{"$f":"VLOOKUP(C:C,[2]Ajus!A$3:B$222,2,TRUE)","v":{"$error":"#N/A"}}]
[null,null,null,null,null,null,null,{"$f":"VLOOKUP(C:C,[2]Ajus!A$3:B$222,2,TRUE)","v":{"$error":"#N/A"}}]
[null,null,null,null,null,null,null,{"$f":"VLOOKUP(C:C,[2]Ajus!A$3:B$222,2,TRUE)","v":{"$error":"#N/A"}}]
[null,null,null,null,null,null,null,{"$f":"VLOOKUP(C:C,[2]Ajus!A$3:B$222,2,TRUE)","v":{"$error":"#N/A"}}]
[null,null,null,null,null,null,null,{"$f":"VLOOKUP(C:C,[2]Ajus!A$3:B$222,2,TRUE)","v":{"$error":"#N/A"}}]
[null,null,null,null,null,null,null,{"$f":"VLOOKUP(C:C,[2]Ajus!A$3:B$222,2,TRUE)","v":{"$error":"#N/A"}}]
[null,null,null,null,null,null,null,{"$f":"VLOOKUP(C:C,[2]Ajus!A$3:B$222,2,TRUE)","v":{"$error":"#N/A"}}]
[null,null,null,null,null,null,null,{"$f":"VLOOKUP(C:C,[2]Ajus!A$3:B$222,2,TRUE)","v":{"$error":"#N/A"}}]
[null,null,null,null,null,null,null,{"$f":"VLOOKUP(C:C,[2]Ajus!A$3:B$222,2,TRUE)","v":{"$error":"#N/A"}}]
[null,null,null,null,null,null,null,{"$f":"VLOOKUP(C:C,[2]Ajus!A$3:B$222,2,TRUE)","v":{"$error":"#N/A"}}]
[null,null,null,null,null,null,null,{"$f":"VLOOKUP(C:C,[2]Ajus!A$3:B$222,2,TRUE)","v":{"$error":"#N/A"}}]
[null,null,null,null,null,null,null,{"$f":"VLOOKUP(C:C,[2]Ajus!A$3:B$222,2,TRUE)","v":{"$error":"#N/A"}}]
[null,null,null,null,null,null,null,{"$f":"VLOOKUP(C:C,[2]Ajus!A$3:B$222,2,TRUE)","v":{"$error":"#N/A"}}]
[null,null,null,null,null,null,null,{"$f":"VLOOKUP(C:C,[2]Ajus!A$3:B$222,2,TRUE)","v":{"$error":"#N/A"}}]
[null,null,null,null,null,null,null,{"$f":"VLOOKUP(C:C,[2]Ajus!A$3:B$222,2,TRUE)","v":{"$error":"#N/A"}}]
[null,null,null,null,null,null,null,{"$f":"VLOOKUP(C:C,[2]Ajus!A$3:B$222,2,TRUE)","v":{"$error":"#N/A"}}]
[null,null,null,null,null,null,null,{"$f":"VLOOKUP(C:C,[2]Ajus!A$3:B$222,2,TRUE)","v":{"$error":"#N/A"}}]
[null,null,null,null,null,null,null,{"$f":"VLOOKUP(C:C,[2]Ajus!A$3:B$222,2,TRUE)","v":{"$error":"#N/A"}}]
[null,null,null,null,null,null,null,{"$f":"VLOOKUP(C:C,[2]Ajus!A$3:B$222,2,TRUE)","v":{"$error":"#N/A"}}]
[null,null,null,null,null,null,null,{"$f":"VLOOKUP(C:C,[2]Ajus!A$3:B$222,2,TRUE)","v":{"$error":"#N/A"}}]
[null,null,null,null,null,null,null,{"$f":"VLOOKUP(C:C,[2]Ajus!A$3:B$222,2,TRUE)","v":{"$error":"#N/A"}}]
[null,null,null,null,null,null,null,{"$f":"VLOOKUP(C:C,[2]Ajus!A$3:B$222,2,TRUE)","v":{"$error":"#N/A"}}]
[null,null,null,null,null,null,null,{"$f":"VLOOKUP(C:C,[2]Ajus!A$3:B$222,2,TRUE)","v":{"$error":"#N/A"}}]
[null,null,null,null,null,null,null,{"$f":"VLOOKUP(C:C,[2]Ajus!A$3:B$222,2,TRUE)","v":{"$error":"#N/A"}}]
[null,null,null,null,null,null,null,{"$f":"VLOOKUP(C:C,[2]Ajus!A$3:B$222,2,TRUE)","v":{"$error":"#N/A"}}]
[null,null,null,null,null,null,null,{"$f":"VLOOKUP(C:C,[2]Ajus!A$3:B$222,2,TRUE)","v":{"$error":"#N/A"}}]
[null,null,null,null,null,null,null,{"$f":"VLOOKUP(C:C,[2]Ajus!A$3:B$222,2,TRUE)","v":{"$error":"#N/A"}}]
[null,null,null,null,null,null,null,{"$f":"VLOOKUP(C:C,[2]Ajus!A$3:B$222,2,TRUE)","v":{"$error":"#N/A"}}]
[null,null,null,null,null,null,null,{"$f":"VLOOKUP(C:C,[2]Ajus!A$3:B$222,2,TRUE)","v":{"$error":"#N/A"}}]
[null,null,null,null,null,null,null,{"$f":"VLOOKUP(C:C,[2]Ajus!A$3:B$222,2,TRUE)","v":{"$error":"#N/A"}}]
[null,null,null,null,null,null,null,{"$f":"VLOOKUP(C:C,[2]Ajus!A$3:B$222,2,TRUE)","v":{"$error":"#N/A"}}]
[null,null,null,null,null,null,null,{"$f":"VLOOKUP(C:C,[2]Ajus!A$3:B$222,2,TRUE)","v":{"$error":"#N/A"}}]
[null,null,null,null,null,null,null,{"$f":"VLOOKUP(C:C,[2]Ajus!A$3:B$222,2,TRUE)","v":{"$error":"#N/A"}}]
[null,null,null,null,null,null,null,{"$f":"VLOOKUP(C:C,[2]Ajus!A$3:B$222,2,TRUE)","v":{"$error":"#N/A"}}]
[null,null,null,null,null,null,null,{"$f":"VLOOKUP(C:C,[2]Ajus!A$3:B$222,2,TRUE)","v":{"$error":"#N/A"}}]
[null,null,null,null,null,null,null,{"$f":"VLOOKUP(C:C,[2]Ajus!A$3:B$222,2,TRUE)","v":{"$error":"#N/A"}}]
[null,null,null,null,null,null,null,{"$f":"VLOOKUP(C:C,[2]Ajus!A$3:B$222,2,TRUE)","v":{"$error":"#N/A"}}]
[null,null,null,null,null,null,null,{"$f":"VLOOKUP(C:C,[2]Ajus!A$3:B$222,2,TRUE)","v":{"$error":"#N/A"}}]
[null,null,null,null,null,null,null,{"$f":"VLOOKUP(C:C,[2]Ajus!A$3:B$222,2,TRUE)","v":{"$error":"#N/A"}}]
[null,null,null,null,null,null,null,{"$f":"VLOOKUP(C:C,[2]Ajus!A$3:B$222,2,TRUE)","v":{"$error":"#N/A"}}]
[null,null,null,null,null,null,null,{"$f":"VLOOKUP(C:C,[2]Ajus!A$3:B$222,2,TRUE)","v":{"$error":"#N/A"}}]
[null,null,null,null,null,null,null,{"$f":"VLOOKUP(C:C,[2]Ajus!A$3:B$222,2,TRUE)","v":{"$error":"#N/A"}}]
[null,null,null,null,null,null,null,{"$f":"VLOOKUP(C:C,[2]Ajus!A$3:B$222,2,TRUE)","v":{"$error":"#N/A"}}]
[null,null,null,null,null,null,null,{"$f":"VLOOKUP(C:C,[2]Ajus!A$3:B$222,2,TRUE)","v":{"$error":"#N/A"}}]
[null,null,null,null,null,null,null,{"$f":"VLOOKUP(C:C,[2]Ajus!A$3:B$222,2,TRUE)","v":{"$error":"#N/A"}}]
[null,null,null,null,null,null,null,{"$f":"VLOOKUP(C:C,[2]Ajus!A$3:B$222,2,TRUE)","v":{"$error":"#N/A"}}]
[null,null,null,null,null,null,null,{"$f":"VLOOKUP(C:C,[2]Ajus!A$3:B$222,2,TRUE)","v":{"$error":"#N/A"}}]
[null,null,null,null,null,null,null,{"$f":"VLOOKUP(C:C,[2]Ajus!A$3:B$222,2,TRUE)","v":{"$error":"#N/A"}}]
[null,null,null,null,null,null,null,{"$f":"VLOOKUP(C:C,[2]Ajus!A$3:B$222,2,TRUE)","v":{"$error":"#N/A"}}]
[null,null,null,null,null,null,null,{"$f":"VLOOKUP(C:C,[2]Ajus!A$3:B$222,2,TRUE)","v":{"$error":"#N/A"}}]
[null,null,null,null,null,null,null,{"$f":"VLOOKUP(C:C,[2]Ajus!A$3:B$222,2,TRUE)","v":{"$error":"#N/A"}}]
[null,null,null,null,null,null,null,{"$f":"VLOOKUP(C:C,[2]Ajus!A$3:B$222,2,TRUE)","v":{"$error":"#N/A"}}]
[null,null,null,null,null,null,null,{"$f":"VLOOKUP(C:C,[2]Ajus!A$3:B$222,2,TRUE)","v":{"$error":"#N/A"}}]
[null,null,null,null,null,null,null,{"$f":"VLOOKUP(C:C,[2]Ajus!A$3:B$222,2,TRUE)","v":{"$error":"#N/A"}}]
[null,null,null,null,null,null,null,{"$f":"VLOOKUP(C:C,[2]Ajus!A$3:B$222,2,TRUE)","v":{"$error":"#N/A"}}]
[null,null,null,null,null,null,null,{"$f":"VLOOKUP(C:C,[2]Ajus!A$3:B$222,2,TRUE)","v":{"$error":"#N/A"}}]
[null,null,null,null,null,null,null,{"$f":"VLOOKUP(C:C,[2]Ajus!A$3:B$222,2,TRUE)","v":{"$error":"#N/A"}}]
[null,null,null,null,null,null,null,{"$f":"VLOOKUP(C:C,[2]Ajus!A$3:B$222,2,TRUE)","v":{"$error":"#N/A"}}]
[null,null,null,null,null,null,null,{"$f":"VLOOKUP(C:C,[2]Ajus!A$3:B$222,2,TRUE)","v":{"$error":"#N/A"}}]
[null,null,null,null,null,null,null,{"$f":"VLOOKUP(C:C,[2]Ajus!A$3:B$222,2,TRUE)","v":{"$error":"#N/A"}}]
[null,null,null,null,null,null,null,{"$f":"VLOOKUP(C:C,[2]Ajus!A$3:B$222,2,TRUE)","v":{"$error":"#N/A"}}]
[null,null,null,null,null,null,null,{"$f":"VLOOKUP(C:C,[2]Ajus!A$3:B$222,2,TRUE)","v":{"$error":"#N/A"}}]
[null,null,null,null,null,null,null,{"$f":"VLOOKUP(C:C,[2]Ajus!A$3:B$222,2,TRUE)","v":{"$error":"#N/A"}}]
[null,null,null,null,null,null,null,{"$f":"VLOOKUP(C:C,[2]Ajus!A$3:B$222,2,TRUE)","v":{"$error":"#N/A"}}]
[null,null,null,null,null,null,null,{"$f":"VLOOKUP(C:C,[2]Ajus!A$3:B$222,2,TRUE)","v":{"$error":"#N/A"}}]
[null,null,null,null,null,null,null,{"$f":"VLOOKUP(C:C,[2]Ajus!A$3:B$222,2,TRUE)","v":{"$error":"#N/A"}}]
[null,null,null,null,null,null,null,{"$f":"VLOOKUP(C:C,[2]Ajus!A$3:B$222,2,TRUE)","v":{"$error":"#N/A"}}]
[null,null,null,null,null,null,null,{"$f":"VLOOKUP(C:C,[2]Ajus!A$3:B$222,2,TRUE)","v":{"$error":"#N/A"}}]
[null,null,null,null,null,null,null,{"$f":"VLOOKUP(C:C,[2]Ajus!A$3:B$222,2,TRUE)","v":{"$error":"#N/A"}}]
[null,null,null,null,null,null,null,{"$f":"VLOOKUP(C:C,[2]Ajus!A$3:B$222,2,TRUE)","v":{"$error":"#N/A"}}]
[null,null,null,null,null,null,null,{"$f":"VLOOKUP(C:C,[2]Ajus!A$3:B$222,2,TRUE)","v":{"$error":"#N/A"}}]
[null,null,null,null,null,null,null,{"$f":"VLOOKUP(C:C,[2]Ajus!A$3:B$222,2,TRUE)","v":{"$error":"#N/A"}}]
[null,null,null,null,null,null,null,{"$f":"VLOOKUP(C:C,[2]Ajus!A$3:B$222,2,TRUE)","v":{"$error":"#N/A"}}]
[null,null,null,null,null,null,null,{"$f":"VLOOKUP(C:C,[2]Ajus!A$3:B$222,2,TRUE)","v":{"$error":"#N/A"}}]
[null,null,null,null,null,null,null,{"$f":"VLOOKUP(C:C,[2]Ajus!A$3:B$222,2,TRUE)","v":{"$error":"#N/A"}}]
[null,null,null,null,null,null,null,{"$f":"VLOOKUP(C:C,[2]Ajus!A$3:B$222,2,TRUE)","v":{"$error":"#N/A"}}]
[null,null,null,null,null,null,null,{"$f":"VLOOKUP(C:C,[2]Ajus!A$3:B$222,2,TRUE)","v":{"$error":"#N/A"}}]
[null,null,null,null,null,null,null,{"$f":"VLOOKUP(C:C,[2]Ajus!A$3:B$222,2,TRUE)","v":{"$error":"#N/A"}}]
[null,null,null,null,null,null,null,{"$f":"VLOOKUP(C:C,[2]Ajus!A$3:B$222,2,TRUE)","v":{"$error":"#N/A"}}]
[null,null,null,null,null,null,null,{"$f":"VLOOKUP(C:C,[2]Ajus!A$3:B$222,2,TRUE)","v":{"$error":"#N/A"}}]
[null,null,null,null,null,null,null,{"$f":"VLOOKUP(C:C,[2]Ajus!A$3:B$222,2,TRUE)","v":{"$error":"#N/A"}}]
[null,null,null,null,null,null,null,{"$f":"VLOOKUP(C:C,[2]Ajus!A$3:B$222,2,TRUE)","v":{"$error":"#N/A"}}]
[null,null,null,null,null,null,null,{"$f":"VLOOKUP(C:C,[2]Ajus!A$3:B$222,2,TRUE)","v":{"$error":"#N/A"}}]
[null,null,null,null,null,null,null,{"$f":"VLOOKUP(C:C,[2]Ajus!A$3:B$222,2,TRUE)","v":{"$error":"#N/A"}}]
[null,null,null,null,null,null,null,{"$f":"VLOOKUP(C:C,[2]Ajus!A$3:B$222,2,TRUE)","v":{"$error":"#N/A"}}]
[null,null,null,null,null,null,null,{"$f":"VLOOKUP(C:C,[2]Ajus!A$3:B$222,2,TRUE)","v":{"$error":"#N/A"}}]
[null,null,null,null,null,null,null,{"$f":"VLOOKUP(C:C,[2]Ajus!A$3:B$222,2,TRUE)","v":{"$error":"#N/A"}}]
[null,null,null,null,null,null,null,{"$f":"VLOOKUP(C:C,[2]Ajus!A$3:B$222,2,TRUE)","v":{"$error":"#N/A"}}]
[null,null,null,null,null,null,null,{"$f":"VLOOKUP(C:C,[2]Ajus!A$3:B$222,2,TRUE)","v":{"$error":"#N/A"}}]
[null,null,null,null,null,null,null,{"$f":"VLOOKUP(C:C,[2]Ajus!A$3:B$222,2,TRUE)","v":{"$error":"#N/A"}}]
[null,null,null,null,null,null,null,{"$f":"VLOOKUP(C:C,[2]Ajus!A$3:B$222,2,TRUE)","v":{"$error":"#N/A"}}]
[null,null,null,null,null,null,null,{"$f":"VLOOKUP(C:C,[2]Ajus!A$3:B$222,2,TRUE)","v":{"$error":"#N/A"}}]
[null,null,null,null,null,null,null,{"$f":"VLOOKUP(C:C,[2]Ajus!A$3:B$222,2,TRUE)","v":{"$error":"#N/A"}}]
[null,null,null,null,null,null,null,{"$f":"VLOOKUP(C:C,[2]Ajus!A$3:B$222,2,TRUE)","v":{"$error":"#N/A"}}]
[null,null,null,null,null,null,null,{"$f":"VLOOKUP(C:C,[2]Ajus!A$3:B$222,2,TRUE)","v":{"$error":"#N/A"}}]
[null,null,null,null,null,null,null,{"$f":"VLOOKUP(C:C,[2]Ajus!A$3:B$222,2,TRUE)","v":{"$error":"#N/A"}}]
[null,null,null,null,null,null,null,{"$f":"VLOOKUP(C:C,[2]Ajus!A$3:B$222,2,TRUE)","v":{"$error":"#N/A"}}]
[null,null,null,null,null,null,null,{"$f":"VLOOKUP(C:C,[2]Ajus!A$3:B$222,2,TRUE)","v":{"$error":"#N/A"}}]
[null,null,null,null,null,null,null,{"$f":"VLOOKUP(C:C,[2]Ajus!A$3:B$222,2,TRUE)","v":{"$error":"#N/A"}}]
[null,null,null,null,null,null,null,{"$f":"VLOOKUP(C:C,[2]Ajus!A$3:B$222,2,TRUE)","v":{"$error":"#N/A"}}]
[null,null,null,null,null,null,null,{"$f":"VLOOKUP(C:C,[2]Ajus!A$3:B$222,2,TRUE)","v":{"$error":"#N/A"}}]
[null,null,null,null,null,null,null,{"$f":"VLOOKUP(C:C,[2]Ajus!A$3:B$222,2,TRUE)","v":{"$error":"#N/A"}}]
[null,null,null,null,null,null,null,{"$f":"VLOOKUP(C:C,[2]Ajus!A$3:B$222,2,TRUE)","v":{"$error":"#N/A"}}]
[null,null,null,null,null,null,null,{"$f":"VLOOKUP(C:C,[2]Ajus!A$3:B$222,2,TRUE)","v":{"$error":"#N/A"}}]
[null,null,null,null,null,null,null,{"$f":"VLOOKUP(C:C,[2]Ajus!A$3:B$222,2,TRUE)","v":{"$error":"#N/A"}}]
[null,null,null,null,null,null,null,{"$f":"VLOOKUP(C:C,[2]Ajus!A$3:B$222,2,TRUE)","v":{"$error":"#N/A"}}]
[null,null,null,null,null,null,null,{"$f":"VLOOKUP(C:C,[2]Ajus!A$3:B$222,2,TRUE)","v":{"$error":"#N/A"}}]
[null,null,null,null,null,null,null,{"$f":"VLOOKUP(C:C,[2]Ajus!A$3:B$222,2,TRUE)","v":{"$error":"#N/A"}}]
[null,null,null,null,null,null,null,{"$f":"VLOOKUP(C:C,[2]Ajus!A$3:B$222,2,TRUE)","v":{"$error":"#N/A"}}]
[null,null,null,null,null,null,null,{"$f":"VLOOKUP(C:C,[2]Ajus!A$3:B$222,2,TRUE)","v":{"$error":"#N/A"}}]
[null,null,null,null,null,null,null,{"$f":"VLOOKUP(C:C,[2]Ajus!A$3:B$222,2,TRUE)","v":{"$error":"#N/A"}}]
[null,null,null,null,null,null,null,{"$f":"VLOOKUP(C:C,[2]Ajus!A$3:B$222,2,TRUE)","v":{"$error":"#N/A"}}]
[null,null,null,null,null,null,null,{"$f":"VLOOKUP(C:C,[2]Ajus!A$3:B$222,2,TRUE)","v":{"$error":"#N/A"}}]
[null,null,null,null,null,null,null,{"$f":"VLOOKUP(C:C,[2]Ajus!A$3:B$222,2,TRUE)","v":{"$error":"#N/A"}}]
[null,null,null,null,null,null,null,{"$f":"VLOOKUP(C:C,[2]Ajus!A$3:B$222,2,TRUE)","v":{"$error":"#N/A"}}]
[null,null,null,null,null,null,null,{"$f":"VLOOKUP(C:C,[2]Ajus!A$3:B$222,2,TRUE)","v":{"$error":"#N/A"}}]
[null,null,null,null,null,null,null,{"$f":"VLOOKUP(C:C,[2]Ajus!A$3:B$222,2,TRUE)","v":{"$error":"#N/A"}}]
[null,null,null,null,null,null,null,{"$f":"VLOOKUP(C:C,[2]Ajus!A$3:B$222,2,TRUE)","v":{"$error":"#N/A"}}]
[null,null,null,null,null,null,null,{"$f":"VLOOKUP(C:C,[2]Ajus!A$3:B$222,2,TRUE)","v":{"$error":"#N/A"}}]
[null,null,null,null,null,null,null,{"$f":"VLOOKUP(C:C,[2]Ajus!A$3:B$222,2,TRUE)","v":{"$error":"#N/A"}}]
[null,null,null,null,null,null,null,{"$f":"VLOOKUP(C:C,[2]Ajus!A$3:B$222,2,TRUE)","v":{"$error":"#N/A"}}]
[null,null,null,null,null,null,null,{"$f":"VLOOKUP(C:C,[2]Ajus!A$3:B$222,2,TRUE)","v":{"$error":"#N/A"}}]
[null,null,null,null,null,null,null,{"$f":"VLOOKUP(C:C,[2]Ajus!A$3:B$222,2,TRUE)","v":{"$error":"#N/A"}}]
[null,null,null,null,null,null,null,{"$f":"VLOOKUP(C:C,[2]Ajus!A$3:B$222,2,TRUE)","v":{"$error":"#N/A"}}]
[null,null,null,null,null,null,null,{"$f":"VLOOKUP(C:C,[2]Ajus!A$3:B$222,2,TRUE)","v":{"$error":"#N/A"}}]
[null,null,null,null,null,null,null,{"$f":"VLOOKUP(C:C,[2]Ajus!A$3:B$222,2,TRUE)","v":{"$error":"#N/A"}}]
[null,null,null,null,null,null,null,{"$f":"VLOOKUP(C:C,[2]Ajus!A$3:B$222,2,TRUE)","v":{"$error":"#N/A"}}]
[null,null,null,null,null,null,null,{"$f":"VLOOKUP(C:C,[2]Ajus!A$3:B$222,2,TRUE)","v":{"$error":"#N/A"}}]
[null,null,null,null,null,null,null,{"$f":"VLOOKUP(C:C,[2]Ajus!A$3:B$222,2,TRUE)","v":{"$error":"#N/A"}}]
[null,null,null,null,null,null,null,{"$f":"VLOOKUP(C:C,[2]Ajus!A$3:B$222,2,TRUE)","v":{"$error":"#N/A"}}]
[null,null,null,null,null,null,null,{"$f":"VLOOKUP(C:C,[2]Ajus!A$3:B$222,2,TRUE)","v":{"$error":"#N/A"}}]
[null,null,null,null,null,null,null,{"$f":"VLOOKUP(C:C,[2]Ajus!A$3:B$222,2,TRUE)","v":{"$error":"#N/A"}}]
[null,null,null,null,null,null,null,{"$f":"VLOOKUP(C:C,[2]Ajus!A$3:B$222,2,TRUE)","v":{"$error":"#N/A"}}]
[null,null,null,null,null,null,null,{"$f":"VLOOKUP(C:C,[2]Ajus!A$3:B$222,2,TRUE)","v":{"$error":"#N/A"}}]
[null,null,null,null,null,null,null,{"$f":"VLOOKUP(C:C,[2]Ajus!A$3:B$222,2,TRUE)","v":{"$error":"#N/A"}}]
[null,null,null,null,null,null,null,{"$f":"VLOOKUP(C:C,[2]Ajus!A$3:B$222,2,TRUE)","v":{"$error":"#N/A"}}]
[null,null,null,null,null,null,null,{"$f":"VLOOKUP(C:C,[2]Ajus!A$3:B$222,2,TRUE)","v":{"$error":"#N/A"}}]
[null,null,null,null,null,null,null,{"$f":"VLOOKUP(C:C,[2]Ajus!A$3:B$222,2,TRUE)","v":{"$error":"#N/A"}}]
[null,null,null,null,null,null,null,{"$f":"VLOOKUP(C:C,[2]Ajus!A$3:B$222,2,TRUE)","v":{"$error":"#N/A"}}]
[null,null,null,null,null,null,null,{"$f":"VLOOKUP(C:C,[2]Ajus!A$3:B$222,2,TRUE)","v":{"$error":"#N/A"}}]
[null,null,null,null,null,null,null,{"$f":"VLOOKUP(C:C,[2]Ajus!A$3:B$222,2,TRUE)","v":{"$error":"#N/A"}}]
[null,null,null,null,null,null,null,{"$f":"VLOOKUP(C:C,[2]Ajus!A$3:B$222,2,TRUE)","v":{"$error":"#N/A"}}]
[null,null,null,null,null,null,null,{"$f":"VLOOKUP(C:C,[2]Ajus!A$3:B$222,2,TRUE)","v":{"$error":"#N/A"}}]
[null,null,null,null,null,null,null,{"$f":"VLOOKUP(C:C,[2]Ajus!A$3:B$222,2,TRUE)","v":{"$error":"#N/A"}}]
[null,null,null,null,null,null,null,{"$f":"VLOOKUP(C:C,[2]Ajus!A$3:B$222,2,TRUE)","v":{"$error":"#N/A"}}]
[null,null,null,null,null,null,null,{"$f":"VLOOKUP(C:C,[2]Ajus!A$3:B$222,2,TRUE)","v":{"$error":"#N/A"}}]
[null,null,null,null,null,null,null,{"$f":"VLOOKUP(C:C,[2]Ajus!A$3:B$222,2,TRUE)","v":{"$error":"#N/A"}}]
[null,null,null,null,null,null,null,{"$f":"VLOOKUP(C:C,[2]Ajus!A$3:B$222,2,TRUE)","v":{"$error":"#N/A"}}]
[null,null,null,null,null,null,null,{"$f":"VLOOKUP(C:C,[2]Ajus!A$3:B$222,2,TRUE)","v":{"$error":"#N/A"}}]
[null,null,null,null,null,null,null,{"$f":"VLOOKUP(C:C,[2]Ajus!A$3:B$222,2,TRUE)","v":{"$error":"#N/A"}}]
[null,null,null,null,null,null,null,{"$f":"VLOOKUP(C:C,[2]Ajus!A$3:B$222,2,TRUE)","v":{"$error":"#N/A"}}]
[null,null,null,null,null,null,null,{"$f":"VLOOKUP(C:C,[2]Ajus!A$3:B$222,2,TRUE)","v":{"$error":"#N/A"}}]
[null,null,null,null,null,null,null,{"$f":"VLOOKUP(C:C,[2]Ajus!A$3:B$222,2,TRUE)","v":{"$error":"#N/A"}}]
[null,null,null,null,null,null,null,{"$f":"VLOOKUP(C:C,[2]Ajus!A$3:B$222,2,TRUE)","v":{"$error":"#N/A"}}]
[null,null,null,null,null,null,null,{"$f":"VLOOKUP(C:C,[2]Ajus!A$3:B$222,2,TRUE)","v":{"$error":"#N/A"}}]
[null,null,null,null,null,null,null,{"$f":"VLOOKUP(C:C,[2]Ajus!A$3:B$222,2,TRUE)","v":{"$error":"#N/A"}}]
[null,null,null,null,null,null,null,{"$f":"VLOOKUP(C:C,[2]Ajus!A$3:B$222,2,TRUE)","v":{"$error":"#N/A"}}]
[null,null,null,null,null,null,null,{"$f":"VLOOKUP(C:C,[2]Ajus!A$3:B$222,2,TRUE)","v":{"$error":"#N/A"}}]
[null,null,null,null,null,null,null,{"$f":"VLOOKUP(C:C,[2]Ajus!A$3:B$222,2,TRUE)","v":{"$error":"#N/A"}}]
[null,null,null,null,null,null,null,{"$f":"VLOOKUP(C:C,[2]Ajus!A$3:B$222,2,TRUE)","v":{"$error":"#N/A"}}]
[null,null,null,null,null,null,null,{"$f":"VLOOKUP(C:C,[2]Ajus!A$3:B$222,2,TRUE)","v":{"$error":"#N/A"}}]
[null,null,null,null,null,null,null,{"$f":"VLOOKUP(C:C,[2]Ajus!A$3:B$222,2,TRUE)","v":{"$error":"#N/A"}}]
[null,null,null,null,null,null,null,{"$f":"VLOOKUP(C:C,[2]Ajus!A$3:B$222,2,TRUE)","v":{"$error":"#N/A"}}]
[null,null,null,null,null,null,null,{"$f":"VLOOKUP(C:C,[2]Ajus!A$3:B$222,2,TRUE)","v":{"$error":"#N/A"}}]
[null,null,null,null,null,null,null,{"$f":"VLOOKUP(C:C,[2]Ajus!A$3:B$222,2,TRUE)","v":{"$error":"#N/A"}}]
[null,null,null,null,null,null,null,{"$f":"VLOOKUP(C:C,[2]Ajus!A$3:B$222,2,TRUE)","v":{"$error":"#N/A"}}]
[null,null,null,null,null,null,null,{"$f":"VLOOKUP(C:C,[2]Ajus!A$3:B$222,2,TRUE)","v":{"$error":"#N/A"}}]
[null,null,null,null,null,null,null,{"$f":"VLOOKUP(C:C,[2]Ajus!A$3:B$222,2,TRUE)","v":{"$error":"#N/A"}}]
[null,null,null,null,null,null,null,{"$f":"VLOOKUP(C:C,[2]Ajus!A$3:B$222,2,TRUE)","v":{"$error":"#N/A"}}]
[null,null,null,null,null,null,null,{"$f":"VLOOKUP(C:C,[2]Ajus!A$3:B$222,2,TRUE)","v":{"$error":"#N/A"}}]
[null,null,null,null,null,null,null,{"$f":"VLOOKUP(C:C,[2]Ajus!A$3:B$222,2,TRUE)","v":{"$error":"#N/A"}}]
[null,null,null,null,null,null,null,{"$f":"VLOOKUP(C:C,[2]Ajus!A$3:B$222,2,TRUE)","v":{"$error":"#N/A"}}]
[null,null,null,null,null,null,null,{"$f":"VLOOKUP(C:C,[2]Ajus!A$3:B$222,2,TRUE)","v":{"$error":"#N/A"}}]
[null,null,null,null,null,null,null,{"$f":"VLOOKUP(C:C,[2]Ajus!A$3:B$222,2,TRUE)","v":{"$error":"#N/A"}}]
[null,null,null,null,null,null,null,{"$f":"VLOOKUP(C:C,[2]Ajus!A$3:B$222,2,TRUE)","v":{"$error":"#N/A"}}]
[null,null,null,null,null,null,null,{"$f":"VLOOKUP(C:C,[2]Ajus!A$3:B$222,2,TRUE)","v":{"$error":"#N/A"}}]
[null,null,null,null,null,null,null,{"$f":"VLOOKUP(C:C,[2]Ajus!A$3:B$222,2,TRUE)","v":{"$error":"#N/A"}}]
[null,null,null,null,null,null,null,{"$f":"VLOOKUP(C:C,[2]Ajus!A$3:B$222,2,TRUE)","v":{"$error":"#N/A"}}]
[null,null,null,null,null,null,null,{"$f":"VLOOKUP(C:C,[2]Ajus!A$3:B$222,2,TRUE)","v":{"$error":"#N/A"}}]
[null,null,null,null,null,null,null,{"$f":"VLOOKUP(C:C,[2]Ajus!A$3:B$222,2,TRUE)","v":{"$error":"#N/A"}}]
[null,null,null,null,null,null,null,{"$f":"VLOOKUP(C:C,[2]Ajus!A$3:B$222,2,TRUE)","v":{"$error":"#N/A"}}]
[null,null,null,null,null,null,null,{"$f":"VLOOKUP(C:C,[2]Ajus!A$3:B$222,2,TRUE)","v":{"$error":"#N/A"}}]
[null,null,null,null,null,null,null,{"$f":"VLOOKUP(C:C,[2]Ajus!A$3:B$222,2,TRUE)","v":{"$error":"#N/A"}}]
[null,null,null,null,null,null,null,{"$f":"VLOOKUP(C:C,[2]Ajus!A$3:B$222,2,TRUE)","v":{"$error":"#N/A"}}]
[null,null,null,null,null,null,null,{"$f":"VLOOKUP(C:C,[2]Ajus!A$3:B$222,2,TRUE)","v":{"$error":"#N/A"}}]
[null,null,null,null,null,null,null,{"$f":"VLOOKUP(C:C,[2]Ajus!A$3:B$222,2,TRUE)","v":{"$error":"#N/A"}}]
[null,null,null,null,null,null,null,{"$f":"VLOOKUP(C:C,[2]Ajus!A$3:B$222,2,TRUE)","v":{"$error":"#N/A"}}]
[null,null,null,null,null,null,null,{"$f":"VLOOKUP(C:C,[2]Ajus!A$3:B$222,2,TRUE)","v":{"$error":"#N/A"}}]
[null,null,null,null,null,null,null,{"$f":"VLOOKUP(C:C,[2]Ajus!A$3:B$222,2,TRUE)","v":{"$error":"#N/A"}}]
[null,null,null,null,null,null,null,{"$f":"VLOOKUP(C:C,[2]Ajus!A$3:B$222,2,TRUE)","v":{"$error":"#N/A"}}]
[null,null,null,null,null,null,null,{"$f":"VLOOKUP(C:C,[2]Ajus!A$3:B$222,2,TRUE)","v":{"$error":"#N/A"}}]
[null,null,null,null,null,null,null,{"$f":"VLOOKUP(C:C,[2]Ajus!A$3:B$222,2,TRUE)","v":{"$error":"#N/A"}}]
[null,null,null,null,null,null,null,{"$f":"VLOOKUP(C:C,[2]Ajus!A$3:B$222,2,TRUE)","v":{"$error":"#N/A"}}]
[null,null,null,null,null,null,null,{"$f":"VLOOKUP(C:C,[2]Ajus!A$3:B$222,2,TRUE)","v":{"$error":"#N/A"}}]
[null,null,null,null,null,null,null,{"$f":"VLOOKUP(C:C,[2]Ajus!A$3:B$222,2,TRUE)","v":{"$error":"#N/A"}}]
[null,null,null,null,null,null,null,{"$f":"VLOOKUP(C:C,[2]Ajus!A$3:B$222,2,TRUE)","v":{"$error":"#N/A"}}]
[null,null,null,null,null,null,null,{"$f":"VLOOKUP(C:C,[2]Ajus!A$3:B$222,2,TRUE)","v":{"$error":"#N/A"}}]
[null,null,null,null,null,null,null,{"$f":"VLOOKUP(C:C,[2]Ajus!A$3:B$222,2,TRUE)","v":{"$error":"#N/A"}}]
[null,null,null,null,null,null,null,{"$f":"VLOOKUP(C:C,[2]Ajus!A$3:B$222,2,TRUE)","v":{"$error":"#N/A"}}]
[null,null,null,null,null,null,null,{"$f":"VLOOKUP(C:C,[2]Ajus!A$3:B$222,2,TRUE)","v":{"$error":"#N/A"}}]
[null,null,null,null,null,null,null,{"$f":"VLOOKUP(C:C,[2]Ajus!A$3:B$222,2,TRUE)","v":{"$error":"#N/A"}}]
[null,null,null,null,null,null,null,{"$f":"VLOOKUP(C:C,[2]Ajus!A$3:B$222,2,TRUE)","v":{"$error":"#N/A"}}]
[null,null,null,null,null,null,null,{"$f":"VLOOKUP(C:C,[2]Ajus!A$3:B$222,2,TRUE)","v":{"$error":"#N/A"}}]
[null,null,null,null,null,null,null,{"$f":"VLOOKUP(C:C,[2]Ajus!A$3:B$222,2,TRUE)","v":{"$error":"#N/A"}}]
[null,null,null,null,null,null,null,{"$f":"VLOOKUP(C:C,[2]Ajus!A$3:B$222,2,TRUE)","v":{"$error":"#N/A"}}]
[null,null,null,null,null,null,null,{"$f":"VLOOKUP(C:C,[2]Ajus!A$3:B$222,2,TRUE)","v":{"$error":"#N/A"}}]
[null,null,null,null,null,null,null,{"$f":"VLOOKUP(C:C,[2]Ajus!A$3:B$222,2,TRUE)","v":{"$error":"#N/A"}}]
[null,null,null,null,null,null,null,{"$f":"VLOOKUP(C:C,[2]Ajus!A$3:B$222,2,TRUE)","v":{"$error":"#N/A"}}]
[null,null,null,null,null,null,null,{"$f":"VLOOKUP(C:C,[2]Ajus!A$3:B$222,2,TRUE)","v":{"$error":"#N/A"}}]
[null,null,null,null,null,null,null,{"$f":"VLOOKUP(C:C,[2]Ajus!A$3:B$222,2,TRUE)","v":{"$error":"#N/A"}}]
[null,null,null,null,null,null,null,{"$f":"VLOOKUP(C:C,[2]Ajus!A$3:B$222,2,TRUE)","v":{"$error":"#N/A"}}]
[null,null,null,null,null,null,null,{"$f":"VLOOKUP(C:C,[2]Ajus!A$3:B$222,2,TRUE)","v":{"$error":"#N/A"}}]
[null,null,null,null,null,null,null,{"$f":"VLOOKUP(C:C,[2]Ajus!A$3:B$222,2,TRUE)","v":{"$error":"#N/A"}}]
[null,null,null,null,null,null,null,{"$f":"VLOOKUP(C:C,[2]Ajus!A$3:B$222,2,TRUE)","v":{"$error":"#N/A"}}]
[null,null,null,null,null,null,null,{"$f":"VLOOKUP(C:C,[2]Ajus!A$3:B$222,2,TRUE)","v":{"$error":"#N/A"}}]
[null,null,null,null,null,null,null,{"$f":"VLOOKUP(C:C,[2]Ajus!A$3:B$222,2,TRUE)","v":{"$error":"#N/A"}}]
[null,null,null,null,null,null,null,{"$f":"VLOOKUP(C:C,[2]Ajus!A$3:B$222,2,TRUE)","v":{"$error":"#N/A"}}]
[null,null,null,null,null,null,null,{"$f":"VLOOKUP(C:C,[2]Ajus!A$3:B$222,2,TRUE)","v":{"$error":"#N/A"}}]
[null,null,null,null,null,null,null,{"$f":"VLOOKUP(C:C,[2]Ajus!A$3:B$222,2,TRUE)","v":{"$error":"#N/A"}}]
[null,null,null,null,null,null,null,{"$f":"VLOOKUP(C:C,[2]Ajus!A$3:B$222,2,TRUE)","v":{"$error":"#N/A"}}]
[null,null,null,null,null,null,null,{"$f":"VLOOKUP(C:C,[2]Ajus!A$3:B$222,2,TRUE)","v":{"$error":"#N/A"}}]
[null,null,null,null,null,null,null,{"$f":"VLOOKUP(C:C,[2]Ajus!A$3:B$222,2,TRUE)","v":{"$error":"#N/A"}}]
[null,null,null,null,null,null,null,{"$f":"VLOOKUP(C:C,[2]Ajus!A$3:B$222,2,TRUE)","v":{"$error":"#N/A"}}]
[null,null,null,null,null,null,null,{"$f":"VLOOKUP(C:C,[2]Ajus!A$3:B$222,2,TRUE)","v":{"$error":"#N/A"}}]
[null,null,null,null,null,null,null,{"$f":"VLOOKUP(C:C,[2]Ajus!A$3:B$222,2,TRUE)","v":{"$error":"#N/A"}}]
[null,null,null,null,null,null,null,{"$f":"VLOOKUP(C:C,[2]Ajus!A$3:B$222,2,TRUE)","v":{"$error":"#N/A"}}]
[null,null,null,null,null,null,null,{"$f":"VLOOKUP(C:C,[2]Ajus!A$3:B$222,2,TRUE)","v":{"$error":"#N/A"}}]
[null,null,null,null,null,null,null,{"$f":"VLOOKUP(C:C,[2]Ajus!A$3:B$222,2,TRUE)","v":{"$error":"#N/A"}}]
[null,null,null,null,null,null,null,{"$f":"VLOOKUP(C:C,[2]Ajus!A$3:B$222,2,TRUE)","v":{"$error":"#N/A"}}]
[null,null,null,null,null,null,null,{"$f":"VLOOKUP(C:C,[2]Ajus!A$3:B$222,2,TRUE)","v":{"$error":"#N/A"}}]
[null,null,null,null,null,null,null,{"$f":"VLOOKUP(C:C,[2]Ajus!A$3:B$222,2,TRUE)","v":{"$error":"#N/A"}}]
[null,null,null,null,null,null,null,{"$f":"VLOOKUP(C:C,[2]Ajus!A$3:B$222,2,TRUE)","v":{"$error":"#N/A"}}]
[null,null,null,null,null,null,null,{"$f":"VLOOKUP(C:C,[2]Ajus!A$3:B$222,2,TRUE)","v":{"$error":"#N/A"}}]
[null,null,null,null,null,null,null,{"$f":"VLOOKUP(C:C,[2]Ajus!A$3:B$222,2,TRUE)","v":{"$error":"#N/A"}}]
[null,null,null,null,null,null,null,{"$f":"VLOOKUP(C:C,[2]Ajus!A$3:B$222,2,TRUE)","v":{"$error":"#N/A"}}]
[null,null,null,null,null,null,null,{"$f":"VLOOKUP(C:C,[2]Ajus!A$3:B$222,2,TRUE)","v":{"$error":"#N/A"}}]
[null,null,null,null,null,null,null,{"$f":"VLOOKUP(C:C,[2]Ajus!A$3:B$222,2,TRUE)","v":{"$error":"#N/A"}}]
[null,null,null,null,null,null,null,{"$f":"VLOOKUP(C:C,[2]Ajus!A$3:B$222,2,TRUE)","v":{"$error":"#N/A"}}]
[null,null,null,null,null,null,null,{"$f":"VLOOKUP(C:C,[2]Ajus!A$3:B$222,2,TRUE)","v":{"$error":"#N/A"}}]
[null,null,null,null,null,null,null,{"$f":"VLOOKUP(C:C,[2]Ajus!A$3:B$222,2,TRUE)","v":{"$error":"#N/A"}}]
[null,null,null,null,null,null,null,{"$f":"VLOOKUP(C:C,[2]Ajus!A$3:B$222,2,TRUE)","v":{"$error":"#N/A"}}]
[null,null,null,null,null,null,null,{"$f":"VLOOKUP(C:C,[2]Ajus!A$3:B$222,2,TRUE)","v":{"$error":"#N/A"}}]
[null,null,null,null,null,null,null,{"$f":"VLOOKUP(C:C,[2]Ajus!A$3:B$222,2,TRUE)","v":{"$error":"#N/A"}}]
[null,null,null,null,null,null,null,{"$f":"VLOOKUP(C:C,[2]Ajus!A$3:B$222,2,TRUE)","v":{"$error":"#N/A"}}]
[null,null,null,null,null,null,null,{"$f":"VLOOKUP(C:C,[2]Ajus!A$3:B$222,2,TRUE)","v":{"$error":"#N/A"}}]
[null,null,null,null,null,null,null,{"$f":"VLOOKUP(C:C,[2]Ajus!A$3:B$222,2,TRUE)","v":{"$error":"#N/A"}}]
[null,null,null,null,null,null,null,{"$f":"VLOOKUP(C:C,[2]Ajus!A$3:B$222,2,TRUE)","v":{"$error":"#N/A"}}]
[null,null,null,null,null,null,null,{"$f":"VLOOKUP(C:C,[2]Ajus!A$3:B$222,2,TRUE)","v":{"$error":"#N/A"}}]
[null,null,null,null,null,null,null,{"$f":"VLOOKUP(C:C,[2]Ajus!A$3:B$222,2,TRUE)","v":{"$error":"#N/A"}}]
[null,null,null,null,null,null,null,{"$f":"VLOOKUP(C:C,[2]Ajus!A$3:B$222,2,TRUE)","v":{"$error":"#N/A"}}]
[null,null,null,null,null,null,null,{"$f":"VLOOKUP(C:C,[2]Ajus!A$3:B$222,2,TRUE)","v":{"$error":"#N/A"}}]
[null,null,null,null,null,null,null,{"$f":"VLOOKUP(C:C,[2]Ajus!A$3:B$222,2,TRUE)","v":{"$error":"#N/A"}}]
[null,null,null,null,null,null,null,{"$f":"VLOOKUP(C:C,[2]Ajus!A$3:B$222,2,TRUE)","v":{"$error":"#N/A"}}]
[null,null,null,null,null,null,null,{"$f":"VLOOKUP(C:C,[2]Ajus!A$3:B$222,2,TRUE)","v":{"$error":"#N/A"}}]
[null,null,null,null,null,null,null,{"$f":"VLOOKUP(C:C,[2]Ajus!A$3:B$222,2,TRUE)","v":{"$error":"#N/A"}}]
[null,null,null,null,null,null,null,{"$f":"VLOOKUP(C:C,[2]Ajus!A$3:B$222,2,TRUE)","v":{"$error":"#N/A"}}]
[null,null,null,null,null,null,null,{"$f":"VLOOKUP(C:C,[2]Ajus!A$3:B$222,2,TRUE)","v":{"$error":"#N/A"}}]
[null,null,null,null,null,null,null,{"$f":"VLOOKUP(C:C,[2]Ajus!A$3:B$222,2,TRUE)","v":{"$error":"#N/A"}}]
[null,null,null,null,null,null,null,{"$f":"VLOOKUP(C:C,[2]Ajus!A$3:B$222,2,TRUE)","v":{"$error":"#N/A"}}]
[null,null,null,null,null,null,null,{"$f":"VLOOKUP(C:C,[2]Ajus!A$3:B$222,2,TRUE)","v":{"$error":"#N/A"}}]
[null,null,null,null,null,null,null,{"$f":"VLOOKUP(C:C,[2]Ajus!A$3:B$222,2,TRUE)","v":{"$error":"#N/A"}}]
[null,null,null,null,null,null,null,{"$f":"VLOOKUP(C:C,[2]Ajus!A$3:B$222,2,TRUE)","v":{"$error":"#N/A"}}]
[null,null,null,null,null,null,null,{"$f":"VLOOKUP(C:C,[2]Ajus!A$3:B$222,2,TRUE)","v":{"$error":"#N/A"}}]
[null,null,null,null,null,null,null,{"$f":"VLOOKUP(C:C,[2]Ajus!A$3:B$222,2,TRUE)","v":{"$error":"#N/A"}}]
[null,null,null,null,null,null,null,{"$f":"VLOOKUP(C:C,[2]Ajus!A$3:B$222,2,TRUE)","v":{"$error":"#N/A"}}]
[null,null,null,null,null,null,null,{"$f":"VLOOKUP(C:C,[2]Ajus!A$3:B$222,2,TRUE)","v":{"$error":"#N/A"}}]
[null,null,null,null,null,null,null,{"$f":"VLOOKUP(C:C,[2]Ajus!A$3:B$222,2,TRUE)","v":{"$error":"#N/A"}}]
[null,null,null,null,null,null,null,{"$f":"VLOOKUP(C:C,[2]Ajus!A$3:B$222,2,TRUE)","v":{"$error":"#N/A"}}]
[null,null,null,null,null,null,null,{"$f":"VLOOKUP(C:C,[2]Ajus!A$3:B$222,2,TRUE)","v":{"$error":"#N/A"}}]
[null,null,null,null,null,null,null,{"$f":"VLOOKUP(C:C,[2]Ajus!A$3:B$222,2,TRUE)","v":{"$error":"#N/A"}}]
[null,null,null,null,null,null,null,{"$f":"VLOOKUP(C:C,[2]Ajus!A$3:B$222,2,TRUE)","v":{"$error":"#N/A"}}]
[null,null,null,null,null,null,null,{"$f":"VLOOKUP(C:C,[2]Ajus!A$3:B$222,2,TRUE)","v":{"$error":"#N/A"}}]
[null,null,null,null,null,null,null,{"$f":"VLOOKUP(C:C,[2]Ajus!A$3:B$222,2,TRUE)","v":{"$error":"#N/A"}}]
[null,null,null,null,null,null,null,{"$f":"VLOOKUP(C:C,[2]Ajus!A$3:B$222,2,TRUE)","v":{"$error":"#N/A"}}]
[null,null,null,null,null,null,null,{"$f":"VLOOKUP(C:C,[2]Ajus!A$3:B$222,2,TRUE)","v":{"$error":"#N/A"}}]
[null,null,null,null,null,null,null,{"$f":"VLOOKUP(C:C,[2]Ajus!A$3:B$222,2,TRUE)","v":{"$error":"#N/A"}}]
[null,null,null,null,null,null,null,{"$f":"VLOOKUP(C:C,[2]Ajus!A$3:B$222,2,TRUE)","v":{"$error":"#N/A"}}]
[null,null,null,null,null,null,null,{"$f":"VLOOKUP(C:C,[2]Ajus!A$3:B$222,2,TRUE)","v":{"$error":"#N/A"}}]
[null,null,null,null,null,null,null,{"$f":"VLOOKUP(C:C,[2]Ajus!A$3:B$222,2,TRUE)","v":{"$error":"#N/A"}}]
[null,null,null,null,null,null,null,{"$f":"VLOOKUP(C:C,[2]Ajus!A$3:B$222,2,TRUE)","v":{"$error":"#N/A"}}]
[null,null,null,null,null,null,null,{"$f":"VLOOKUP(C:C,[2]Ajus!A$3:B$222,2,TRUE)","v":{"$error":"#N/A"}}]
[null,null,null,null,null,null,null,{"$f":"VLOOKUP(C:C,[2]Ajus!A$3:B$222,2,TRUE)","v":{"$error":"#N/A"}}]
[null,null,null,null,null,null,null,{"$f":"VLOOKUP(C:C,[2]Ajus!A$3:B$222,2,TRUE)","v":{"$error":"#N/A"}}]
[null,null,null,null,null,null,null,{"$f":"VLOOKUP(C:C,[2]Ajus!A$3:B$222,2,TRUE)","v":{"$error":"#N/A"}}]
[null,null,null,null,null,null,null,{"$f":"VLOOKUP(C:C,[2]Ajus!A$3:B$222,2,TRUE)","v":{"$error":"#N/A"}}]
[null,null,null,null,null,null,null,{"$f":"VLOOKUP(C:C,[2]Ajus!A$3:B$222,2,TRUE)","v":{"$error":"#N/A"}}]
[null,null,null,null,null,null,null,{"$f":"VLOOKUP(C:C,[2]Ajus!A$3:B$222,2,TRUE)","v":{"$error":"#N/A"}}]
[null,null,null,null,null,null,null,{"$f":"VLOOKUP(C:C,[2]Ajus!A$3:B$222,2,TRUE)","v":{"$error":"#N/A"}}]
[null,null,null,null,null,null,null,{"$f":"VLOOKUP(C:C,[2]Ajus!A$3:B$222,2,TRUE)","v":{"$error":"#N/A"}}]
[null,null,null,null,null,null,null,{"$f":"VLOOKUP(C:C,[2]Ajus!A$3:B$222,2,TRUE)","v":{"$error":"#N/A"}}]
[null,null,null,null,null,null,null,{"$f":"VLOOKUP(C:C,[2]Ajus!A$3:B$222,2,TRUE)","v":{"$error":"#N/A"}}]
[null,null,null,null,null,null,null,{"$f":"VLOOKUP(C:C,[2]Ajus!A$3:B$222,2,TRUE)","v":{"$error":"#N/A"}}]
[null,null,null,null,null,null,null,{"$f":"VLOOKUP(C:C,[2]Ajus!A$3:B$222,2,TRUE)","v":{"$error":"#N/A"}}]
[null,null,null,null,null,null,null,{"$f":"VLOOKUP(C:C,[2]Ajus!A$3:B$222,2,TRUE)","v":{"$error":"#N/A"}}]
[null,null,null,null,null,null,null,{"$f":"VLOOKUP(C:C,[2]Ajus!A$3:B$222,2,TRUE)","v":{"$error":"#N/A"}}]
[null,null,null,null,null,null,null,{"$f":"VLOOKUP(C:C,[2]Ajus!A$3:B$222,2,TRUE)","v":{"$error":"#N/A"}}]
[null,null,null,null,null,null,null,{"$f":"VLOOKUP(C:C,[2]Ajus!A$3:B$222,2,TRUE)","v":{"$error":"#N/A"}}]
[null,null,null,null,null,null,null,{"$f":"VLOOKUP(C:C,[2]Ajus!A$3:B$222,2,TRUE)","v":{"$error":"#N/A"}}]
[null,null,null,null,null,null,null,{"$f":"VLOOKUP(C:C,[2]Ajus!A$3:B$222,2,TRUE)","v":{"$error":"#N/A"}}]
[null,null,null,null,null,null,null,{"$f":"VLOOKUP(C:C,[2]Ajus!A$3:B$222,2,TRUE)","v":{"$error":"#N/A"}}]
[null,null,null,null,null,null,null,{"$f":"VLOOKUP(C:C,[2]Ajus!A$3:B$222,2,TRUE)","v":{"$error":"#N/A"}}]
[null,null,null,null,null,null,null,{"$f":"VLOOKUP(C:C,[2]Ajus!A$3:B$222,2,TRUE)","v":{"$error":"#N/A"}}]
[null,null,null,null,null,null,null,{"$f":"VLOOKUP(C:C,[2]Ajus!A$3:B$222,2,TRUE)","v":{"$error":"#N/A"}}]
[null,null,null,null,null,null,null,{"$f":"VLOOKUP(C:C,[2]Ajus!A$3:B$222,2,TRUE)","v":{"$error":"#N/A"}}]
[null,null,null,null,null,null,null,{"$f":"VLOOKUP(C:C,[2]Ajus!A$3:B$222,2,TRUE)","v":{"$error":"#N/A"}}]
[null,null,null,null,null,null,null,{"$f":"VLOOKUP(C:C,[2]Ajus!A$3:B$222,2,TRUE)","v":{"$error":"#N/A"}}]
[null,null,null,null,null,null,null,{"$f":"VLOOKUP(C:C,[2]Ajus!A$3:B$222,2,TRUE)","v":{"$error":"#N/A"}}]
[null,null,null,null,null,null,null,{"$f":"VLOOKUP(C:C,[2]Ajus!A$3:B$222,2,TRUE)","v":{"$error":"#N/A"}}]
[null,null,null,null,null,null,null,{"$f":"VLOOKUP(C:C,[2]Ajus!A$3:B$222,2,TRUE)","v":{"$error":"#N/A"}}]
[null,null,null,null,null,null,null,{"$f":"VLOOKUP(C:C,[2]Ajus!A$3:B$222,2,TRUE)","v":{"$error":"#N/A"}}]
[null,null,null,null,null,null,null,{"$f":"VLOOKUP(C:C,[2]Ajus!A$3:B$222,2,TRUE)","v":{"$error":"#N/A"}}]
[null,null,null,null,null,null,null,{"$f":"VLOOKUP(C:C,[2]Ajus!A$3:B$222,2,TRUE)","v":{"$error":"#N/A"}}]
[null,null,null,null,null,null,null,{"$f":"VLOOKUP(C:C,[2]Ajus!A$3:B$222,2,TRUE)","v":{"$error":"#N/A"}}]
[null,null,null,null,null,null,null,{"$f":"VLOOKUP(C:C,[2]Ajus!A$3:B$222,2,TRUE)","v":{"$error":"#N/A"}}]
[null,null,null,null,null,null,null,{"$f":"VLOOKUP(C:C,[2]Ajus!A$3:B$222,2,TRUE)","v":{"$error":"#N/A"}}]
[null,null,null,null,null,null,null,{"$f":"VLOOKUP(C:C,[2]Ajus!A$3:B$222,2,TRUE)","v":{"$error":"#N/A"}}]
[null,null,null,null,null,null,null,{"$f":"VLOOKUP(C:C,[2]Ajus!A$3:B$222,2,TRUE)","v":{"$error":"#N/A"}}]
[null,null,null,null,null,null,null,{"$f":"VLOOKUP(C:C,[2]Ajus!A$3:B$222,2,TRUE)","v":{"$error":"#N/A"}}]
[null,null,null,null,null,null,null,{"$f":"VLOOKUP(C:C,[2]Ajus!A$3:B$222,2,TRUE)","v":{"$error":"#N/A"}}]
[null,null,null,null,null,null,null,{"$f":"VLOOKUP(C:C,[2]Ajus!A$3:B$222,2,TRUE)","v":{"$error":"#N/A"}}]
[null,null,null,null,null,null,null,{"$f":"VLOOKUP(C:C,[2]Ajus!A$3:B$222,2,TRUE)","v":{"$error":"#N/A"}}]
[null,null,null,null,null,null,null,{"$f":"VLOOKUP(C:C,[2]Ajus!A$3:B$222,2,TRUE)","v":{"$error":"#N/A"}}]
[null,null,null,null,null,null,null,{"$f":"VLOOKUP(C:C,[2]Ajus!A$3:B$222,2,TRUE)","v":{"$error":"#N/A"}}]
[null,null,null,null,null,null,null,{"$f":"VLOOKUP(C:C,[2]Ajus!A$3:B$222,2,TRUE)","v":{"$error":"#N/A"}}]
[null,null,null,null,null,null,null,{"$f":"VLOOKUP(C:C,[2]Ajus!A$3:B$222,2,TRUE)","v":{"$error":"#N/A"}}]
[null,null,null,null,null,null,null,{"$f":"VLOOKUP(C:C,[2]Ajus!A$3:B$222,2,TRUE)","v":{"$error":"#N/A"}}]
[null,null,null,null,null,null,null,{"$f":"VLOOKUP(C:C,[2]Ajus!A$3:B$222,2,TRUE)","v":{"$error":"#N/A"}}]
[null,null,null,null,null,null,null,{"$f":"VLOOKUP(C:C,[2]Ajus!A$3:B$222,2,TRUE)","v":{"$error":"#N/A"}}]
[null,null,null,null,null,null,null,{"$f":"VLOOKUP(C:C,[2]Ajus!A$3:B$222,2,TRUE)","v":{"$error":"#N/A"}}]
[null,null,null,null,null,null,null,{"$f":"VLOOKUP(C:C,[2]Ajus!A$3:B$222,2,TRUE)","v":{"$error":"#N/A"}}]
[null,null,null,null,null,null,null,{"$f":"VLOOKUP(C:C,[2]Ajus!A$3:B$222,2,TRUE)","v":{"$error":"#N/A"}}]
[null,null,null,null,null,null,null,{"$f":"VLOOKUP(C:C,[2]Ajus!A$3:B$222,2,TRUE)","v":{"$error":"#N/A"}}]
[null,null,null,null,null,null,null,{"$f":"VLOOKUP(C:C,[2]Ajus!A$3:B$222,2,TRUE)","v":{"$error":"#N/A"}}]
[null,null,null,null,null,null,null,{"$f":"VLOOKUP(C:C,[2]Ajus!A$3:B$222,2,TRUE)","v":{"$error":"#N/A"}}]
[null,null,null,null,null,null,null,{"$f":"VLOOKUP(C:C,[2]Ajus!A$3:B$222,2,TRUE)","v":{"$error":"#N/A"}}]
[null,null,null,null,null,null,null,{"$f":"VLOOKUP(C:C,[2]Ajus!A$3:B$222,2,TRUE)","v":{"$error":"#N/A"}}]
[null,null,null,null,null,null,null,{"$f":"VLOOKUP(C:C,[2]Ajus!A$3:B$222,2,TRUE)","v":{"$error":"#N/A"}}]
[null,null,null,null,null,null,null,{"$f":"VLOOKUP(C:C,[2]Ajus!A$3:B$222,2,TRUE)","v":{"$error":"#N/A"}}]
[null,null,null,null,null,null,null,{"$f":"VLOOKUP(C:C,[2]Ajus!A$3:B$222,2,TRUE)","v":{"$error":"#N/A"}}]
[null,null,null,null,null,null,null,{"$f":"VLOOKUP(C:C,[2]Ajus!A$3:B$222,2,TRUE)","v":{"$error":"#N/A"}}]
[null,null,null,null,null,null,null,{"$f":"VLOOKUP(C:C,[2]Ajus!A$3:B$222,2,TRUE)","v":{"$error":"#N/A"}}]
[null,null,null,null,null,null,null,{"$f":"VLOOKUP(C:C,[2]Ajus!A$3:B$222,2,TRUE)","v":{"$error":"#N/A"}}]
[null,null,null,null,null,null,null,{"$f":"VLOOKUP(C:C,[2]Ajus!A$3:B$222,2,TRUE)","v":{"$error":"#N/A"}}]
[null,null,null,null,null,null,null,{"$f":"VLOOKUP(C:C,[2]Ajus!A$3:B$222,2,TRUE)","v":{"$error":"#N/A"}}]
[null,null,null,null,null,null,null,{"$f":"VLOOKUP(C:C,[2]Ajus!A$3:B$222,2,TRUE)","v":{"$error":"#N/A"}}]
[null,null,null,null,null,null,null,{"$f":"VLOOKUP(C:C,[2]Ajus!A$3:B$222,2,TRUE)","v":{"$error":"#N/A"}}]
[null,null,null,null,null,null,null,{"$f":"VLOOKUP(C:C,[2]Ajus!A$3:B$222,2,TRUE)","v":{"$error":"#N/A"}}]
[null,null,null,null,null,null,null,{"$f":"VLOOKUP(C:C,[2]Ajus!A$3:B$222,2,TRUE)","v":{"$error":"#N/A"}}]
[null,null,null,null,null,null,null,{"$f":"VLOOKUP(C:C,[2]Ajus!A$3:B$222,2,TRUE)","v":{"$error":"#N/A"}}]
[null,null,null,null,null,null,null,{"$f":"VLOOKUP(C:C,[2]Ajus!A$3:B$222,2,TRUE)","v":{"$error":"#N/A"}}]
[null,null,null,null,null,null,null,{"$f":"VLOOKUP(C:C,[2]Ajus!A$3:B$222,2,TRUE)","v":{"$error":"#N/A"}}]
[null,null,null,null,null,null,null,{"$f":"VLOOKUP(C:C,[2]Ajus!A$3:B$222,2,TRUE)","v":{"$error":"#N/A"}}]
[null,null,null,null,null,null,null,{"$f":"VLOOKUP(C:C,[2]Ajus!A$3:B$222,2,TRUE)","v":{"$error":"#N/A"}}]
[null,null,null,null,null,null,null,{"$f":"VLOOKUP(C:C,[2]Ajus!A$3:B$222,2,TRUE)","v":{"$error":"#N/A"}}]
[null,null,null,null,null,null,null,{"$f":"VLOOKUP(C:C,[2]Ajus!A$3:B$222,2,TRUE)","v":{"$error":"#N/A"}}]
[null,null,null,null,null,null,null,{"$f":"VLOOKUP(C:C,[2]Ajus!A$3:B$222,2,TRUE)","v":{"$error":"#N/A"}}]
[null,null,null,null,null,null,null,{"$f":"VLOOKUP(C:C,[2]Ajus!A$3:B$222,2,TRUE)","v":{"$error":"#N/A"}}]
[null,null,null,null,null,null,null,{"$f":"VLOOKUP(C:C,[2]Ajus!A$3:B$222,2,TRUE)","v":{"$error":"#N/A"}}]
[null,null,null,null,null,null,null,{"$f":"VLOOKUP(C:C,[2]Ajus!A$3:B$222,2,TRUE)","v":{"$error":"#N/A"}}]
[null,null,null,null,null,null,null,{"$f":"VLOOKUP(C:C,[2]Ajus!A$3:B$222,2,TRUE)","v":{"$error":"#N/A"}}]
[null,null,null,null,null,null,null,{"$f":"VLOOKUP(C:C,[2]Ajus!A$3:B$222,2,TRUE)","v":{"$error":"#N/A"}}]
[null,null,null,null,null,null,null,{"$f":"VLOOKUP(C:C,[2]Ajus!A$3:B$222,2,TRUE)","v":{"$error":"#N/A"}}]
[null,null,null,null,null,null,null,{"$f":"VLOOKUP(C:C,[2]Ajus!A$3:B$222,2,TRUE)","v":{"$error":"#N/A"}}]
[null,null,null,null,null,null,null,{"$f":"VLOOKUP(C:C,[2]Ajus!A$3:B$222,2,TRUE)","v":{"$error":"#N/A"}}]
[null,null,null,null,null,null,null,{"$f":"VLOOKUP(C:C,[2]Ajus!A$3:B$222,2,TRUE)","v":{"$error":"#N/A"}}]
[null,null,null,null,null,null,null,{"$f":"VLOOKUP(C:C,[2]Ajus!A$3:B$222,2,TRUE)","v":{"$error":"#N/A"}}]
[null,null,null,null,null,null,null,{"$f":"VLOOKUP(C:C,[2]Ajus!A$3:B$222,2,TRUE)","v":{"$error":"#N/A"}}]
[null,null,null,null,null,null,null,{"$f":"VLOOKUP(C:C,[2]Ajus!A$3:B$222,2,TRUE)","v":{"$error":"#N/A"}}]
[null,null,null,null,null,null,null,{"$f":"VLOOKUP(C:C,[2]Ajus!A$3:B$222,2,TRUE)","v":{"$error":"#N/A"}}]
[null,null,null,null,null,null,null,{"$f":"VLOOKUP(C:C,[2]Ajus!A$3:B$222,2,TRUE)","v":{"$error":"#N/A"}}]
[null,null,null,null,null,null,null,{"$f":"VLOOKUP(C:C,[2]Ajus!A$3:B$222,2,TRUE)","v":{"$error":"#N/A"}}]
[null,null,null,null,null,null,null,{"$f":"VLOOKUP(C:C,[2]Ajus!A$3:B$222,2,TRUE)","v":{"$error":"#N/A"}}]
[null,null,null,null,null,null,null,{"$f":"VLOOKUP(C:C,[2]Ajus!A$3:B$222,2,TRUE)","v":{"$error":"#N/A"}}]
[null,null,null,null,null,null,null,{"$f":"VLOOKUP(C:C,[2]Ajus!A$3:B$222,2,TRUE)","v":{"$error":"#N/A"}}]
[null,null,null,null,null,null,null,{"$f":"VLOOKUP(C:C,[2]Ajus!A$3:B$222,2,TRUE)","v":{"$error":"#N/A"}}]
[null,null,null,null,null,null,null,{"$f":"VLOOKUP(C:C,[2]Ajus!A$3:B$222,2,TRUE)","v":{"$error":"#N/A"}}]
[null,null,null,null,null,null,null,{"$f":"VLOOKUP(C:C,[2]Ajus!A$3:B$222,2,TRUE)","v":{"$error":"#N/A"}}]
[null,null,null,null,null,null,null,{"$f":"VLOOKUP(C:C,[2]Ajus!A$3:B$222,2,TRUE)","v":{"$error":"#N/A"}}]
[null,null,null,null,null,null,null,{"$f":"VLOOKUP(C:C,[2]Ajus!A$3:B$222,2,TRUE)","v":{"$error":"#N/A"}}]
[null,null,null,null,null,null,null,{"$f":"VLOOKUP(C:C,[2]Ajus!A$3:B$222,2,TRUE)","v":{"$error":"#N/A"}}]
[null,null,null,null,null,null,null,{"$f":"VLOOKUP(C:C,[2]Ajus!A$3:B$222,2,TRUE)","v":{"$error":"#N/A"}}]
[null,null,null,null,null,null,null,{"$f":"VLOOKUP(C:C,[2]Ajus!A$3:B$222,2,TRUE)","v":{"$error":"#N/A"}}]
[null,null,null,null,null,null,null,{"$f":"VLOOKUP(C:C,[2]Ajus!A$3:B$222,2,TRUE)","v":{"$error":"#N/A"}}]
[null,null,null,null,null,null,null,{"$f":"VLOOKUP(C:C,[2]Ajus!A$3:B$222,2,TRUE)","v":{"$error":"#N/A"}}]
[null,null,null,null,null,null,null,{"$f":"VLOOKUP(C:C,[2]Ajus!A$3:B$222,2,TRUE)","v":{"$error":"#N/A"}}]
[null,null,null,null,null,null,null,{"$f":"VLOOKUP(C:C,[2]Ajus!A$3:B$222,2,TRUE)","v":{"$error":"#N/A"}}]
[null,null,null,null,null,null,null,{"$f":"VLOOKUP(C:C,[2]Ajus!A$3:B$222,2,TRUE)","v":{"$error":"#N/A"}}]
[null,null,null,null,null,null,null,{"$f":"VLOOKUP(C:C,[2]Ajus!A$3:B$222,2,TRUE)","v":{"$error":"#N/A"}}]
[null,null,null,null,null,null,null,{"$f":"VLOOKUP(C:C,[2]Ajus!A$3:B$222,2,TRUE)","v":{"$error":"#N/A"}}]
[null,null,null,null,null,null,null,{"$f":"VLOOKUP(C:C,[2]Ajus!A$3:B$222,2,TRUE)","v":{"$error":"#N/A"}}]
[null,null,null,null,null,null,null,{"$f":"VLOOKUP(C:C,[2]Ajus!A$3:B$222,2,TRUE)","v":{"$error":"#N/A"}}]
[null,null,null,null,null,null,null,{"$f":"VLOOKUP(C:C,[2]Ajus!A$3:B$222,2,TRUE)","v":{"$error":"#N/A"}}]
[null,null,null,null,null,null,null,{"$f":"VLOOKUP(C:C,[2]Ajus!A$3:B$222,2,TRUE)","v":{"$error":"#N/A"}}]
[null,null,null,null,null,null,null,{"$f":"VLOOKUP(C:C,[2]Ajus!A$3:B$222,2,TRUE)","v":{"$error":"#N/A"}}]
[null,null,null,null,null,null,null,{"$f":"VLOOKUP(C:C,[2]Ajus!A$3:B$222,2,TRUE)","v":{"$error":"#N/A"}}]
[null,null,null,null,null,null,null,{"$f":"VLOOKUP(C:C,[2]Ajus!A$3:B$222,2,TRUE)","v":{"$error":"#N/A"}}]
[null,null,null,null,null,null,null,{"$f":"VLOOKUP(C:C,[2]Ajus!A$3:B$222,2,TRUE)","v":{"$error":"#N/A"}}]
[null,null,null,null,null,null,null,{"$f":"VLOOKUP(C:C,[2]Ajus!A$3:B$222,2,TRUE)","v":{"$error":"#N/A"}}]
[null,null,null,null,null,null,null,{"$f":"VLOOKUP(C:C,[2]Ajus!A$3:B$222,2,TRUE)","v":{"$error":"#N/A"}}]
[null,null,null,null,null,null,null,{"$f":"VLOOKUP(C:C,[2]Ajus!A$3:B$222,2,TRUE)","v":{"$error":"#N/A"}}]
[null,null,null,null,null,null,null,{"$f":"VLOOKUP(C:C,[2]Ajus!A$3:B$222,2,TRUE)","v":{"$error":"#N/A"}}]
[null,null,null,null,null,null,null,{"$f":"VLOOKUP(C:C,[2]Ajus!A$3:B$222,2,TRUE)","v":{"$error":"#N/A"}}]
[null,null,null,null,null,null,null,{"$f":"VLOOKUP(C:C,[2]Ajus!A$3:B$222,2,TRUE)","v":{"$error":"#N/A"}}]
[null,null,null,null,null,null,null,{"$f":"VLOOKUP(C:C,[2]Ajus!A$3:B$222,2,TRUE)","v":{"$error":"#N/A"}}]
[null,null,null,null,null,null,null,{"$f":"VLOOKUP(C:C,[2]Ajus!A$3:B$222,2,TRUE)","v":{"$error":"#N/A"}}]
[null,null,null,null,null,null,null,{"$f":"VLOOKUP(C:C,[2]Ajus!A$3:B$222,2,TRUE)","v":{"$error":"#N/A"}}]
[null,null,null,null,null,null,null,{"$f":"VLOOKUP(C:C,[2]Ajus!A$3:B$222,2,TRUE)","v":{"$error":"#N/A"}}]
[null,null,null,null,null,null,null,{"$f":"VLOOKUP(C:C,[2]Ajus!A$3:B$222,2,TRUE)","v":{"$error":"#N/A"}}]
[null,null,null,null,null,null,null,{"$f":"VLOOKUP(C:C,[2]Ajus!A$3:B$222,2,TRUE)","v":{"$error":"#N/A"}}]
[null,null,null,null,null,null,null,{"$f":"VLOOKUP(C:C,[2]Ajus!A$3:B$222,2,TRUE)","v":{"$error":"#N/A"}}]
[null,null,null,null,null,null,null,{"$f":"VLOOKUP(C:C,[2]Ajus!A$3:B$222,2,TRUE)","v":{"$error":"#N/A"}}]
[null,null,null,null,null,null,null,{"$f":"VLOOKUP(C:C,[2]Ajus!A$3:B$222,2,TRUE)","v":{"$error":"#N/A"}}]
[null,null,null,null,null,null,null,{"$f":"VLOOKUP(C:C,[2]Ajus!A$3:B$222,2,TRUE)","v":{"$error":"#N/A"}}]
[null,null,null,null,null,null,null,{"$f":"VLOOKUP(C:C,[2]Ajus!A$3:B$222,2,TRUE)","v":{"$error":"#N/A"}}]
[null,null,null,null,null,null,null,{"$f":"VLOOKUP(C:C,[2]Ajus!A$3:B$222,2,TRUE)","v":{"$error":"#N/A"}}]
[null,null,null,null,null,null,null,{"$f":"VLOOKUP(C:C,[2]Ajus!A$3:B$222,2,TRUE)","v":{"$error":"#N/A"}}]
[null,null,null,null,null,null,null,{"$f":"VLOOKUP(C:C,[2]Ajus!A$3:B$222,2,TRUE)","v":{"$error":"#N/A"}}]
[null,null,null,null,null,null,null,{"$f":"VLOOKUP(C:C,[2]Ajus!A$3:B$222,2,TRUE)","v":{"$error":"#N/A"}}]
[null,null,null,null,null,null,null,{"$f":"VLOOKUP(C:C,[2]Ajus!A$3:B$222,2,TRUE)","v":{"$error":"#N/A"}}]
[null,null,null,null,null,null,null,{"$f":"VLOOKUP(C:C,[2]Ajus!A$3:B$222,2,TRUE)","v":{"$error":"#N/A"}}]
[null,null,null,null,null,null,null,{"$f":"VLOOKUP(C:C,[2]Ajus!A$3:B$222,2,TRUE)","v":{"$error":"#N/A"}}]
[null,null,null,null,null,null,null,{"$f":"VLOOKUP(C:C,[2]Ajus!A$3:B$222,2,TRUE)","v":{"$error":"#N/A"}}]
[null,null,null,null,null,null,null,{"$f":"VLOOKUP(C:C,[2]Ajus!A$3:B$222,2,TRUE)","v":{"$error":"#N/A"}}]
[null,null,null,null,null,null,null,{"$f":"VLOOKUP(C:C,[2]Ajus!A$3:B$222,2,TRUE)","v":{"$error":"#N/A"}}]
[null,null,null,null,null,null,null,{"$f":"VLOOKUP(C:C,[2]Ajus!A$3:B$222,2,TRUE)","v":{"$error":"#N/A"}}]
[null,null,null,null,null,null,null,{"$f":"VLOOKUP(C:C,[2]Ajus!A$3:B$222,2,TRUE)","v":{"$error":"#N/A"}}]
[null,null,null,null,null,null,null,{"$f":"VLOOKUP(C:C,[2]Ajus!A$3:B$222,2,TRUE)","v":{"$error":"#N/A"}}]
[null,null,null,null,null,null,null,{"$f":"VLOOKUP(C:C,[2]Ajus!A$3:B$222,2,TRUE)","v":{"$error":"#N/A"}}]
[null,null,null,null,null,null,null,{"$f":"VLOOKUP(C:C,[2]Ajus!A$3:B$222,2,TRUE)","v":{"$error":"#N/A"}}]
[null,null,null,null,null,null,null,{"$f":"VLOOKUP(C:C,[2]Ajus!A$3:B$222,2,TRUE)","v":{"$error":"#N/A"}}]
[null,null,null,null,null,null,null,{"$f":"VLOOKUP(C:C,[2]Ajus!A$3:B$222,2,TRUE)","v":{"$error":"#N/A"}}]
[null,null,null,null,null,null,null,{"$f":"VLOOKUP(C:C,[2]Ajus!A$3:B$222,2,TRUE)","v":{"$error":"#N/A"}}]
[null,null,null,null,null,null,null,{"$f":"VLOOKUP(C:C,[2]Ajus!A$3:B$222,2,TRUE)","v":{"$error":"#N/A"}}]
[null,null,null,null,null,null,null,{"$f":"VLOOKUP(C:C,[2]Ajus!A$3:B$222,2,TRUE)","v":{"$error":"#N/A"}}]
[null,null,null,null,null,null,null,{"$f":"VLOOKUP(C:C,[2]Ajus!A$3:B$222,2,TRUE)","v":{"$error":"#N/A"}}]
[null,null,null,null,null,null,null,{"$f":"VLOOKUP(C:C,[2]Ajus!A$3:B$222,2,TRUE)","v":{"$error":"#N/A"}}]
[null,null,null,null,null,null,null,{"$f":"VLOOKUP(C:C,[2]Ajus!A$3:B$222,2,TRUE)","v":{"$error":"#N/A"}}]
[null,null,null,null,null,null,null,{"$f":"VLOOKUP(C:C,[2]Ajus!A$3:B$222,2,TRUE)","v":{"$error":"#N/A"}}]
[null,null,null,null,null,null,null,{"$f":"VLOOKUP(C:C,[2]Ajus!A$3:B$222,2,TRUE)","v":{"$error":"#N/A"}}]
[null,null,null,null,null,null,null,{"$f":"VLOOKUP(C:C,[2]Ajus!A$3:B$222,2,TRUE)","v":{"$error":"#N/A"}}]
[null,null,null,null,null,null,null,{"$f":"VLOOKUP(C:C,[2]Ajus!A$3:B$222,2,TRUE)","v":{"$error":"#N/A"}}]
[null,null,null,null,null,null,null,{"$f":"VLOOKUP(C:C,[2]Ajus!A$3:B$222,2,TRUE)","v":{"$error":"#N/A"}}]
[null,null,null,null,null,null,null,{"$f":"VLOOKUP(C:C,[2]Ajus!A$3:B$222,2,TRUE)","v":{"$error":"#N/A"}}]
[null,null,null,null,null,null,null,{"$f":"VLOOKUP(C:C,[2]Ajus!A$3:B$222,2,TRUE)","v":{"$error":"#N/A"}}]
[null,null,null,null,null,null,null,{"$f":"VLOOKUP(C:C,[2]Ajus!A$3:B$222,2,TRUE)","v":{"$error":"#N/A"}}]
[null,null,null,null,null,null,null,{"$f":"VLOOKUP(C:C,[2]Ajus!A$3:B$222,2,TRUE)","v":{"$error":"#N/A"}}]
[null,null,null,null,null,null,null,{"$f":"VLOOKUP(C:C,[2]Ajus!A$3:B$222,2,TRUE)","v":{"$error":"#N/A"}}]
[null,null,null,null,null,null,null,{"$f":"VLOOKUP(C:C,[2]Ajus!A$3:B$222,2,TRUE)","v":{"$error":"#N/A"}}]
[null,null,null,null,null,null,null,{"$f":"VLOOKUP(C:C,[2]Ajus!A$3:B$222,2,TRUE)","v":{"$error":"#N/A"}}]
[null,null,null,null,null,null,null,{"$f":"VLOOKUP(C:C,[2]Ajus!A$3:B$222,2,TRUE)","v":{"$error":"#N/A"}}]
[null,null,null,null,null,null,null,{"$f":"VLOOKUP(C:C,[2]Ajus!A$3:B$222,2,TRUE)","v":{"$error":"#N/A"}}]
[null,null,null,null,null,null,null,{"$f":"VLOOKUP(C:C,[2]Ajus!A$3:B$222,2,TRUE)","v":{"$error":"#N/A"}}]
[null,null,null,null,null,null,null,{"$f":"VLOOKUP(C:C,[2]Ajus!A$3:B$222,2,TRUE)","v":{"$error":"#N/A"}}]
[null,null,null,null,null,null,null,{"$f":"VLOOKUP(C:C,[2]Ajus!A$3:B$222,2,TRUE)","v":{"$error":"#N/A"}}]
[null,null,null,null,null,null,null,{"$f":"VLOOKUP(C:C,[2]Ajus!A$3:B$222,2,TRUE)","v":{"$error":"#N/A"}}]
[null,null,null,null,null,null,null,{"$f":"VLOOKUP(C:C,[2]Ajus!A$3:B$222,2,TRUE)","v":{"$error":"#N/A"}}]
[null,null,null,null,null,null,null,{"$f":"VLOOKUP(C:C,[2]Ajus!A$3:B$222,2,TRUE)","v":{"$error":"#N/A"}}]
[null,null,null,null,null,null,null,{"$f":"VLOOKUP(C:C,[2]Ajus!A$3:B$222,2,TRUE)","v":{"$error":"#N/A"}}]
[null,null,null,null,null,null,null,{"$f":"VLOOKUP(C:C,[2]Ajus!A$3:B$222,2,TRUE)","v":{"$error":"#N/A"}}]
[null,null,null,null,null,null,null,{"$f":"VLOOKUP(C:C,[2]Ajus!A$3:B$222,2,TRUE)","v":{"$error":"#N/A"}}]
[null,null,null,null,null,null,null,{"$f":"VLOOKUP(C:C,[2]Ajus!A$3:B$222,2,TRUE)","v":{"$error":"#N/A"}}]
[null,null,null,null,null,null,null,{"$f":"VLOOKUP(C:C,[2]Ajus!A$3:B$222,2,TRUE)","v":{"$error":"#N/A"}}]
[null,null,null,null,null,null,null,{"$f":"VLOOKUP(C:C,[2]Ajus!A$3:B$222,2,TRUE)","v":{"$error":"#N/A"}}]
[null,null,null,null,null,null,null,{"$f":"VLOOKUP(C:C,[2]Ajus!A$3:B$222,2,TRUE)","v":{"$error":"#N/A"}}]
[null,null,null,null,null,null,null,{"$f":"VLOOKUP(C:C,[2]Ajus!A$3:B$222,2,TRUE)","v":{"$error":"#N/A"}}]
[null,null,null,null,null,null,null,{"$f":"VLOOKUP(C:C,[2]Ajus!A$3:B$222,2,TRUE)","v":{"$error":"#N/A"}}]
[null,null,null,null,null,null,null,{"$f":"VLOOKUP(C:C,[2]Ajus!A$3:B$222,2,TRUE)","v":{"$error":"#N/A"}}]
[null,null,null,null,null,null,null,{"$f":"VLOOKUP(C:C,[2]Ajus!A$3:B$222,2,TRUE)","v":{"$error":"#N/A"}}]
[null,null,null,null,null,null,null,{"$f":"VLOOKUP(C:C,[2]Ajus!A$3:B$222,2,TRUE)","v":{"$error":"#N/A"}}]
[null,null,null,null,null,null,null,{"$f":"VLOOKUP(C:C,[2]Ajus!A$3:B$222,2,TRUE)","v":{"$error":"#N/A"}}]
[null,null,null,null,null,null,null,{"$f":"VLOOKUP(C:C,[2]Ajus!A$3:B$222,2,TRUE)","v":{"$error":"#N/A"}}]
[null,null,null,null,null,null,null,{"$f":"VLOOKUP(C:C,[2]Ajus!A$3:B$222,2,TRUE)","v":{"$error":"#N/A"}}]
[null,null,null,null,null,null,null,{"$f":"VLOOKUP(C:C,[2]Ajus!A$3:B$222,2,TRUE)","v":{"$error":"#N/A"}}]
[null,null,null,null,null,null,null,{"$f":"VLOOKUP(C:C,[2]Ajus!A$3:B$222,2,TRUE)","v":{"$error":"#N/A"}}]
[null,null,null,null,null,null,null,{"$f":"VLOOKUP(C:C,[2]Ajus!A$3:B$222,2,TRUE)","v":{"$error":"#N/A"}}]
[null,null,null,null,null,null,null,{"$f":"VLOOKUP(C:C,[2]Ajus!A$3:B$222,2,TRUE)","v":{"$error":"#N/A"}}]
[null,null,null,null,null,null,null,{"$f":"VLOOKUP(C:C,[2]Ajus!A$3:B$222,2,TRUE)","v":{"$error":"#N/A"}}]
[null,null,null,null,null,null,null,{"$f":"VLOOKUP(C:C,[2]Ajus!A$3:B$222,2,TRUE)","v":{"$error":"#N/A"}}]
[null,null,null,null,null,null,null,{"$f":"VLOOKUP(C:C,[2]Ajus!A$3:B$222,2,TRUE)","v":{"$error":"#N/A"}}]
[null,null,null,null,null,null,null,{"$f":"VLOOKUP(C:C,[2]Ajus!A$3:B$222,2,TRUE)","v":{"$error":"#N/A"}}]
[null,null,null,null,null,null,null,{"$f":"VLOOKUP(C:C,[2]Ajus!A$3:B$222,2,TRUE)","v":{"$error":"#N/A"}}]
[null,null,null,null,null,null,null,{"$f":"VLOOKUP(C:C,[2]Ajus!A$3:B$222,2,TRUE)","v":{"$error":"#N/A"}}]
[null,null,null,null,null,null,null,{"$f":"VLOOKUP(C:C,[2]Ajus!A$3:B$222,2,TRUE)","v":{"$error":"#N/A"}}]
[null,null,null,null,null,null,null,{"$f":"VLOOKUP(C:C,[2]Ajus!A$3:B$222,2,TRUE)","v":{"$error":"#N/A"}}]
[null,null,null,null,null,null,null,{"$f":"VLOOKUP(C:C,[2]Ajus!A$3:B$222,2,TRUE)","v":{"$error":"#N/A"}}]
[null,null,null,null,null,null,null,{"$f":"VLOOKUP(C:C,[2]Ajus!A$3:B$222,2,TRUE)","v":{"$error":"#N/A"}}]
[null,null,null,null,null,null,null,{"$f":"VLOOKUP(C:C,[2]Ajus!A$3:B$222,2,TRUE)","v":{"$error":"#N/A"}}]
[null,null,null,null,null,null,null,{"$f":"VLOOKUP(C:C,[2]Ajus!A$3:B$222,2,TRUE)","v":{"$error":"#N/A"}}]
[null,null,null,null,null,null,null,{"$f":"VLOOKUP(C:C,[2]Ajus!A$3:B$222,2,TRUE)","v":{"$error":"#N/A"}}]
[null,null,null,null,null,null,null,{"$f":"VLOOKUP(C:C,[2]Ajus!A$3:B$222,2,TRUE)","v":{"$error":"#N/A"}}]
[null,null,null,null,null,null,null,{"$f":"VLOOKUP(C:C,[2]Ajus!A$3:B$222,2,TRUE)","v":{"$error":"#N/A"}}]
[null,null,null,null,null,null,null,{"$f":"VLOOKUP(C:C,[2]Ajus!A$3:B$222,2,TRUE)","v":{"$error":"#N/A"}}]
[null,null,null,null,null,null,null,{"$f":"VLOOKUP(C:C,[2]Ajus!A$3:B$222,2,TRUE)","v":{"$error":"#N/A"}}]
[null,null,null,null,null,null,null,{"$f":"VLOOKUP(C:C,[2]Ajus!A$3:B$222,2,TRUE)","v":{"$error":"#N/A"}}]
[null,null,null,null,null,null,null,{"$f":"VLOOKUP(C:C,[2]Ajus!A$3:B$222,2,TRUE)","v":{"$error":"#N/A"}}]
[null,null,null,null,null,null,null,{"$f":"VLOOKUP(C:C,[2]Ajus!A$3:B$222,2,TRUE)","v":{"$error":"#N/A"}}]
[null,null,null,null,null,null,null,{"$f":"VLOOKUP(C:C,[2]Ajus!A$3:B$222,2,TRUE)","v":{"$error":"#N/A"}}]
[null,null,null,null,null,null,null,{"$f":"VLOOKUP(C:C,[2]Ajus!A$3:B$222,2,TRUE)","v":{"$error":"#N/A"}}]
[null,null,null,null,null,null,null,{"$f":"VLOOKUP(C:C,[2]Ajus!A$3:B$222,2,TRUE)","v":{"$error":"#N/A"}}]
[null,null,null,null,null,null,null,{"$f":"VLOOKUP(C:C,[2]Ajus!A$3:B$222,2,TRUE)","v":{"$error":"#N/A"}}]
[null,null,null,null,null,null,null,{"$f":"VLOOKUP(C:C,[2]Ajus!A$3:B$222,2,TRUE)","v":{"$error":"#N/A"}}]
[null,null,null,null,null,null,null,{"$f":"VLOOKUP(C:C,[2]Ajus!A$3:B$222,2,TRUE)","v":{"$error":"#N/A"}}]
[null,null,null,null,null,null,null,{"$f":"VLOOKUP(C:C,[2]Ajus!A$3:B$222,2,TRUE)","v":{"$error":"#N/A"}}]
[null,null,null,null,null,null,null,{"$f":"VLOOKUP(C:C,[2]Ajus!A$3:B$222,2,TRUE)","v":{"$error":"#N/A"}}]
[null,null,null,null,null,null,null,{"$f":"VLOOKUP(C:C,[2]Ajus!A$3:B$222,2,TRUE)","v":{"$error":"#N/A"}}]
[null,null,null,null,null,null,null,{"$f":"VLOOKUP(C:C,[2]Ajus!A$3:B$222,2,TRUE)","v":{"$error":"#N/A"}}]
[null,null,null,null,null,null,null,{"$f":"VLOOKUP(C:C,[2]Ajus!A$3:B$222,2,TRUE)","v":{"$error":"#N/A"}}]
[null,null,null,null,null,null,null,{"$f":"VLOOKUP(C:C,[2]Ajus!A$3:B$222,2,TRUE)","v":{"$error":"#N/A"}}]
[null,null,null,null,null,null,null,{"$f":"VLOOKUP(C:C,[2]Ajus!A$3:B$222,2,TRUE)","v":{"$error":"#N/A"}}]
[null,null,null,null,null,null,null,{"$f":"VLOOKUP(C:C,[2]Ajus!A$3:B$222,2,TRUE)","v":{"$error":"#N/A"}}]
[null,null,null,null,null,null,null,{"$f":"VLOOKUP(C:C,[2]Ajus!A$3:B$222,2,TRUE)","v":{"$error":"#N/A"}}]
[null,null,null,null,null,null,null,{"$f":"VLOOKUP(C:C,[2]Ajus!A$3:B$222,2,TRUE)","v":{"$error":"#N/A"}}]
[null,null,null,null,null,null,null,{"$f":"VLOOKUP(C:C,[2]Ajus!A$3:B$222,2,TRUE)","v":{"$error":"#N/A"}}]
[null,null,null,null,null,null,null,{"$f":"VLOOKUP(C:C,[2]Ajus!A$3:B$222,2,TRUE)","v":{"$error":"#N/A"}}]
[null,null,null,null,null,null,null,{"$f":"VLOOKUP(C:C,[2]Ajus!A$3:B$222,2,TRUE)","v":{"$error":"#N/A"}}]
[null,null,null,null,null,null,null,{"$f":"VLOOKUP(C:C,[2]Ajus!A$3:B$222,2,TRUE)","v":{"$error":"#N/A"}}]
[null,null,null,null,null,null,null,{"$f":"VLOOKUP(C:C,[2]Ajus!A$3:B$222,2,TRUE)","v":{"$error":"#N/A"}}]
[null,null,null,null,null,null,null,{"$f":"VLOOKUP(C:C,[2]Ajus!A$3:B$222,2,TRUE)","v":{"$error":"#N/A"}}]
[null,null,null,null,null,null,null,{"$f":"VLOOKUP(C:C,[2]Ajus!A$3:B$222,2,TRUE)","v":{"$error":"#N/A"}}]
[null,null,null,null,null,null,null,{"$f":"VLOOKUP(C:C,[2]Ajus!A$3:B$222,2,TRUE)","v":{"$error":"#N/A"}}]
[null,null,null,null,null,null,null,{"$f":"VLOOKUP(C:C,[2]Ajus!A$3:B$222,2,TRUE)","v":{"$error":"#N/A"}}]
[null,null,null,null,null,null,null,{"$f":"VLOOKUP(C:C,[2]Ajus!A$3:B$222,2,TRUE)","v":{"$error":"#N/A"}}]
[null,null,null,null,null,null,null,{"$f":"VLOOKUP(C:C,[2]Ajus!A$3:B$222,2,TRUE)","v":{"$error":"#N/A"}}]
[null,null,null,null,null,null,null,{"$f":"VLOOKUP(C:C,[2]Ajus!A$3:B$222,2,TRUE)","v":{"$error":"#N/A"}}]
[null,null,null,null,null,null,null,{"$f":"VLOOKUP(C:C,[2]Ajus!A$3:B$222,2,TRUE)","v":{"$error":"#N/A"}}]
[null,null,null,null,null,null,null,{"$f":"VLOOKUP(C:C,[2]Ajus!A$3:B$222,2,TRUE)","v":{"$error":"#N/A"}}]
[null,null,null,null,null,null,null,{"$f":"VLOOKUP(C:C,[2]Ajus!A$3:B$222,2,TRUE)","v":{"$error":"#N/A"}}]
[null,null,null,null,null,null,null,{"$f":"VLOOKUP(C:C,[2]Ajus!A$3:B$222,2,TRUE)","v":{"$error":"#N/A"}}]
[null,null,null,null,null,null,null,{"$f":"VLOOKUP(C:C,[2]Ajus!A$3:B$222,2,TRUE)","v":{"$error":"#N/A"}}]
[null,null,null,null,null,null,null,{"$f":"VLOOKUP(C:C,[2]Ajus!A$3:B$222,2,TRUE)","v":{"$error":"#N/A"}}]
[null,null,null,null,null,null,null,{"$f":"VLOOKUP(C:C,[2]Ajus!A$3:B$222,2,TRUE)","v":{"$error":"#N/A"}}]
[null,null,null,null,null,null,null,{"$f":"VLOOKUP(C:C,[2]Ajus!A$3:B$222,2,TRUE)","v":{"$error":"#N/A"}}]
[null,null,null,null,null,null,null,{"$f":"VLOOKUP(C:C,[2]Ajus!A$3:B$222,2,TRUE)","v":{"$error":"#N/A"}}]
[null,null,null,null,null,null,null,{"$f":"VLOOKUP(C:C,[2]Ajus!A$3:B$222,2,TRUE)","v":{"$error":"#N/A"}}]
[null,null,null,null,null,null,null,{"$f":"VLOOKUP(C:C,[2]Ajus!A$3:B$222,2,TRUE)","v":{"$error":"#N/A"}}]
[null,null,null,null,null,null,null,{"$f":"VLOOKUP(C:C,[2]Ajus!A$3:B$222,2,TRUE)","v":{"$error":"#N/A"}}]
[null,null,null,null,null,null,null,{"$f":"VLOOKUP(C:C,[2]Ajus!A$3:B$222,2,TRUE)","v":{"$error":"#N/A"}}]
[null,null,null,null,null,null,null,{"$f":"VLOOKUP(C:C,[2]Ajus!A$3:B$222,2,TRUE)","v":{"$error":"#N/A"}}]
[null,null,null,null,null,null,null,{"$f":"VLOOKUP(C:C,[2]Ajus!A$3:B$222,2,TRUE)","v":{"$error":"#N/A"}}]
[null,null,null,null,null,null,null,{"$f":"VLOOKUP(C:C,[2]Ajus!A$3:B$222,2,TRUE)","v":{"$error":"#N/A"}}]
[null,null,null,null,null,null,null,{"$f":"VLOOKUP(C:C,[2]Ajus!A$3:B$222,2,TRUE)","v":{"$error":"#N/A"}}]
[null,null,null,null,null,null,null,{"$f":"VLOOKUP(C:C,[2]Ajus!A$3:B$222,2,TRUE)","v":{"$error":"#N/A"}}]
[null,null,null,null,null,null,null,{"$f":"VLOOKUP(C:C,[2]Ajus!A$3:B$222,2,TRUE)","v":{"$error":"#N/A"}}]
[null,null,null,null,null,null,null,{"$f":"VLOOKUP(C:C,[2]Ajus!A$3:B$222,2,TRUE)","v":{"$error":"#N/A"}}]
[null,null,null,null,null,null,null,{"$f":"VLOOKUP(C:C,[2]Ajus!A$3:B$222,2,TRUE)","v":{"$error":"#N/A"}}]
[null,null,null,null,null,null,null,{"$f":"VLOOKUP(C:C,[2]Ajus!A$3:B$222,2,TRUE)","v":{"$error":"#N/A"}}]
[null,null,null,null,null,null,null,{"$f":"VLOOKUP(C:C,[2]Ajus!A$3:B$222,2,TRUE)","v":{"$error":"#N/A"}}]
[null,null,null,null,null,null,null,{"$f":"VLOOKUP(C:C,[2]Ajus!A$3:B$222,2,TRUE)","v":{"$error":"#N/A"}}]
[null,null,null,null,null,null,null,{"$f":"VLOOKUP(C:C,[2]Ajus!A$3:B$222,2,TRUE)","v":{"$error":"#N/A"}}]
[null,null,null,null,null,null,null,{"$f":"VLOOKUP(C:C,[2]Ajus!A$3:B$222,2,TRUE)","v":{"$error":"#N/A"}}]
[null,null,null,null,null,null,null,{"$f":"VLOOKUP(C:C,[2]Ajus!A$3:B$222,2,TRUE)","v":{"$error":"#N/A"}}]
[null,null,null,null,null,null,null,{"$f":"VLOOKUP(C:C,[2]Ajus!A$3:B$222,2,TRUE)","v":{"$error":"#N/A"}}]
[null,null,null,null,null,null,null,{"$f":"VLOOKUP(C:C,[2]Ajus!A$3:B$222,2,TRUE)","v":{"$error":"#N/A"}}]
[null,null,null,null,null,null,null,{"$f":"VLOOKUP(C:C,[2]Ajus!A$3:B$222,2,TRUE)","v":{"$error":"#N/A"}}]
[null,null,null,null,null,null,null,{"$f":"VLOOKUP(C:C,[2]Ajus!A$3:B$222,2,TRUE)","v":{"$error":"#N/A"}}]
[null,null,null,null,null,null,null,{"$f":"VLOOKUP(C:C,[2]Ajus!A$3:B$222,2,TRUE)","v":{"$error":"#N/A"}}]
[null,null,null,null,null,null,null,{"$f":"VLOOKUP(C:C,[2]Ajus!A$3:B$222,2,TRUE)","v":{"$error":"#N/A"}}]
[null,null,null,null,null,null,null,{"$f":"VLOOKUP(C:C,[2]Ajus!A$3:B$222,2,TRUE)","v":{"$error":"#N/A"}}]
[null,null,null,null,null,null,null,{"$f":"VLOOKUP(C:C,[2]Ajus!A$3:B$222,2,TRUE)","v":{"$error":"#N/A"}}]
[null,null,null,null,null,null,null,{"$f":"VLOOKUP(C:C,[2]Ajus!A$3:B$222,2,TRUE)","v":{"$error":"#N/A"}}]
[null,null,null,null,null,null,null,{"$f":"VLOOKUP(C:C,[2]Ajus!A$3:B$222,2,TRUE)","v":{"$error":"#N/A"}}]
[null,null,null,null,null,null,null,{"$f":"VLOOKUP(C:C,[2]Ajus!A$3:B$222,2,TRUE)","v":{"$error":"#N/A"}}]
[null,null,null,null,null,null,null,{"$f":"VLOOKUP(C:C,[2]Ajus!A$3:B$222,2,TRUE)","v":{"$error":"#N/A"}}]
[null,null,null,null,null,null,null,{"$f":"VLOOKUP(C:C,[2]Ajus!A$3:B$222,2,TRUE)","v":{"$error":"#N/A"}}]
[null,null,null,null,null,null,null,{"$f":"VLOOKUP(C:C,[2]Ajus!A$3:B$222,2,TRUE)","v":{"$error":"#N/A"}}]
[null,null,null,null,null,null,null,{"$f":"VLOOKUP(C:C,[2]Ajus!A$3:B$222,2,TRUE)","v":{"$error":"#N/A"}}]
[null,null,null,null,null,null,null,{"$f":"VLOOKUP(C:C,[2]Ajus!A$3:B$222,2,TRUE)","v":{"$error":"#N/A"}}]
[null,null,null,null,null,null,null,{"$f":"VLOOKUP(C:C,[2]Ajus!A$3:B$222,2,TRUE)","v":{"$error":"#N/A"}}]
[null,null,null,null,null,null,null,{"$f":"VLOOKUP(C:C,[2]Ajus!A$3:B$222,2,TRUE)","v":{"$error":"#N/A"}}]
[null,null,null,null,null,null,null,{"$f":"VLOOKUP(C:C,[2]Ajus!A$3:B$222,2,TRUE)","v":{"$error":"#N/A"}}]
[null,null,null,null,null,null,null,{"$f":"VLOOKUP(C:C,[2]Ajus!A$3:B$222,2,TRUE)","v":{"$error":"#N/A"}}]
[null,null,null,null,null,null,null,{"$f":"VLOOKUP(C:C,[2]Ajus!A$3:B$222,2,TRUE)","v":{"$error":"#N/A"}}]
[null,null,null,null,null,null,null,{"$f":"VLOOKUP(C:C,[2]Ajus!A$3:B$222,2,TRUE)","v":{"$error":"#N/A"}}]
[null,null,null,null,null,null,null,{"$f":"VLOOKUP(C:C,[2]Ajus!A$3:B$222,2,TRUE)","v":{"$error":"#N/A"}}]
[null,null,null,null,null,null,null,{"$f":"VLOOKUP(C:C,[2]Ajus!A$3:B$222,2,TRUE)","v":{"$error":"#N/A"}}]
[null,null,null,null,null,null,null,{"$f":"VLOOKUP(C:C,[2]Ajus!A$3:B$222,2,TRUE)","v":{"$error":"#N/A"}}]
[null,null,null,null,null,null,null,{"$f":"VLOOKUP(C:C,[2]Ajus!A$3:B$222,2,TRUE)","v":{"$error":"#N/A"}}]
[null,null,null,null,null,null,null,{"$f":"VLOOKUP(C:C,[2]Ajus!A$3:B$222,2,TRUE)","v":{"$error":"#N/A"}}]
[null,null,null,null,null,null,null,{"$f":"VLOOKUP(C:C,[2]Ajus!A$3:B$222,2,TRUE)","v":{"$error":"#N/A"}}]
[null,null,null,null,null,null,null,{"$f":"VLOOKUP(C:C,[2]Ajus!A$3:B$222,2,TRUE)","v":{"$error":"#N/A"}}]
[null,null,null,null,null,null,null,{"$f":"VLOOKUP(C:C,[2]Ajus!A$3:B$222,2,TRUE)","v":{"$error":"#N/A"}}]
[null,null,null,null,null,null,null,{"$f":"VLOOKUP(C:C,[2]Ajus!A$3:B$222,2,TRUE)","v":{"$error":"#N/A"}}]
[null,null,null,null,null,null,null,{"$f":"VLOOKUP(C:C,[2]Ajus!A$3:B$222,2,TRUE)","v":{"$error":"#N/A"}}]
[null,null,null,null,null,null,null,{"$f":"VLOOKUP(C:C,[2]Ajus!A$3:B$222,2,TRUE)","v":{"$error":"#N/A"}}]
[null,null,null,null,null,null,null,{"$f":"VLOOKUP(C:C,[2]Ajus!A$3:B$222,2,TRUE)","v":{"$error":"#N/A"}}]
[null,null,null,null,null,null,null,{"$f":"VLOOKUP(C:C,[2]Ajus!A$3:B$222,2,TRUE)","v":{"$error":"#N/A"}}]
[null,null,null,null,null,null,null,{"$f":"VLOOKUP(C:C,[2]Ajus!A$3:B$222,2,TRUE)","v":{"$error":"#N/A"}}]
[null,null,null,null,null,null,null,{"$f":"VLOOKUP(C:C,[2]Ajus!A$3:B$222,2,TRUE)","v":{"$error":"#N/A"}}]
[null,null,null,null,null,null,null,{"$f":"VLOOKUP(C:C,[2]Ajus!A$3:B$222,2,TRUE)","v":{"$error":"#N/A"}}]
[null,null,null,null,null,null,null,{"$f":"VLOOKUP(C:C,[2]Ajus!A$3:B$222,2,TRUE)","v":{"$error":"#N/A"}}]
[null,null,null,null,null,null,null,{"$f":"VLOOKUP(C:C,[2]Ajus!A$3:B$222,2,TRUE)","v":{"$error":"#N/A"}}]
[null,null,null,null,null,null,null,{"$f":"VLOOKUP(C:C,[2]Ajus!A$3:B$222,2,TRUE)","v":{"$error":"#N/A"}}]
[null,null,null,null,null,null,null,{"$f":"VLOOKUP(C:C,[2]Ajus!A$3:B$222,2,TRUE)","v":{"$error":"#N/A"}}]
[null,null,null,null,null,null,null,{"$f":"VLOOKUP(C:C,[2]Ajus!A$3:B$222,2,TRUE)","v":{"$error":"#N/A"}}]
[null,null,null,null,null,null,null,{"$f":"VLOOKUP(C:C,[2]Ajus!A$3:B$222,2,TRUE)","v":{"$error":"#N/A"}}]
[null,null,null,null,null,null,null,{"$f":"VLOOKUP(C:C,[2]Ajus!A$3:B$222,2,TRUE)","v":{"$error":"#N/A"}}]
[null,null,null,null,null,null,null,{"$f":"VLOOKUP(C:C,[2]Ajus!A$3:B$222,2,TRUE)","v":{"$error":"#N/A"}}]
[null,null,null,null,null,null,null,{"$f":"VLOOKUP(C:C,[2]Ajus!A$3:B$222,2,TRUE)","v":{"$error":"#N/A"}}]
[null,null,null,null,null,null,null,{"$f":"VLOOKUP(C:C,[2]Ajus!A$3:B$222,2,TRUE)","v":{"$error":"#N/A"}}]
[null,null,null,null,null,null,null,{"$f":"VLOOKUP(C:C,[2]Ajus!A$3:B$222,2,TRUE)","v":{"$error":"#N/A"}}]
[null,null,null,null,null,null,null,{"$f":"VLOOKUP(C:C,[2]Ajus!A$3:B$222,2,TRUE)","v":{"$error":"#N/A"}}]
[null,null,null,null,null,null,null,{"$f":"VLOOKUP(C:C,[2]Ajus!A$3:B$222,2,TRUE)","v":{"$error":"#N/A"}}]
[null,null,null,null,null,null,null,{"$f":"VLOOKUP(C:C,[2]Ajus!A$3:B$222,2,TRUE)","v":{"$error":"#N/A"}}]
[null,null,null,null,null,null,null,{"$f":"VLOOKUP(C:C,[2]Ajus!A$3:B$222,2,TRUE)","v":{"$error":"#N/A"}}]
[null,null,null,null,null,null,null,{"$f":"VLOOKUP(C:C,[2]Ajus!A$3:B$222,2,TRUE)","v":{"$error":"#N/A"}}]
[null,null,null,null,null,null,null,{"$f":"VLOOKUP(C:C,[2]Ajus!A$3:B$222,2,TRUE)","v":{"$error":"#N/A"}}]
[null,null,null,null,null,null,null,{"$f":"VLOOKUP(C:C,[2]Ajus!A$3:B$222,2,TRUE)","v":{"$error":"#N/A"}}]
[null,null,null,null,null,null,null,{"$f":"VLOOKUP(C:C,[2]Ajus!A$3:B$222,2,TRUE)","v":{"$error":"#N/A"}}]
[null,null,null,null,null,null,null,{"$f":"VLOOKUP(C:C,[2]Ajus!A$3:B$222,2,TRUE)","v":{"$error":"#N/A"}}]
[null,null,null,null,null,null,null,{"$f":"VLOOKUP(C:C,[2]Ajus!A$3:B$222,2,TRUE)","v":{"$error":"#N/A"}}]
[null,null,null,null,null,null,null,{"$f":"VLOOKUP(C:C,[2]Ajus!A$3:B$222,2,TRUE)","v":{"$error":"#N/A"}}]
[null,null,null,null,null,null,null,{"$f":"VLOOKUP(C:C,[2]Ajus!A$3:B$222,2,TRUE)","v":{"$error":"#N/A"}}]
[null,null,null,null,null,null,null,{"$f":"VLOOKUP(C:C,[2]Ajus!A$3:B$222,2,TRUE)","v":{"$error":"#N/A"}}]
[null,null,null,null,null,null,null,{"$f":"VLOOKUP(C:C,[2]Ajus!A$3:B$222,2,TRUE)","v":{"$error":"#N/A"}}]
[null,null,null,null,null,null,null,{"$f":"VLOOKUP(C:C,[2]Ajus!A$3:B$222,2,TRUE)","v":{"$error":"#N/A"}}]
[null,null,null,null,null,null,null,{"$f":"VLOOKUP(C:C,[2]Ajus!A$3:B$222,2,TRUE)","v":{"$error":"#N/A"}}]
[null,null,null,null,null,null,null,{"$f":"VLOOKUP(C:C,[2]Ajus!A$3:B$222,2,TRUE)","v":{"$error":"#N/A"}}]
[null,null,null,null,null,null,null,{"$f":"VLOOKUP(C:C,[2]Ajus!A$3:B$222,2,TRUE)","v":{"$error":"#N/A"}}]
[null,null,null,null,null,null,null,{"$f":"VLOOKUP(C:C,[2]Ajus!A$3:B$222,2,TRUE)","v":{"$error":"#N/A"}}]
[null,null,null,null,null,null,null,{"$f":"VLOOKUP(C:C,[2]Ajus!A$3:B$222,2,TRUE)","v":{"$error":"#N/A"}}]
[null,null,null,null,null,null,null,{"$f":"VLOOKUP(C:C,[2]Ajus!A$3:B$222,2,TRUE)","v":{"$error":"#N/A"}}]
[null,null,null,null,null,null,null,{"$f":"VLOOKUP(C:C,[2]Ajus!A$3:B$222,2,TRUE)","v":{"$error":"#N/A"}}]
[null,null,null,null,null,null,null,{"$f":"VLOOKUP(C:C,[2]Ajus!A$3:B$222,2,TRUE)","v":{"$error":"#N/A"}}]
[null,null,null,null,null,null,null,{"$f":"VLOOKUP(C:C,[2]Ajus!A$3:B$222,2,TRUE)","v":{"$error":"#N/A"}}]
[null,null,null,null,null,null,null,{"$f":"VLOOKUP(C:C,[2]Ajus!A$3:B$222,2,TRUE)","v":{"$error":"#N/A"}}]
[null,null,null,null,null,null,null,{"$f":"VLOOKUP(C:C,[2]Ajus!A$3:B$222,2,TRUE)","v":{"$error":"#N/A"}}]
[null,null,null,null,null,null,null,{"$f":"VLOOKUP(C:C,[2]Ajus!A$3:B$222,2,TRUE)","v":{"$error":"#N/A"}}]
[null,null,null,null,null,null,null,{"$f":"VLOOKUP(C:C,[2]Ajus!A$3:B$222,2,TRUE)","v":{"$error":"#N/A"}}]
[null,null,null,null,null,null,null,{"$f":"VLOOKUP(C:C,[2]Ajus!A$3:B$222,2,TRUE)","v":{"$error":"#N/A"}}]
[null,null,null,null,null,null,null,{"$f":"VLOOKUP(C:C,[2]Ajus!A$3:B$222,2,TRUE)","v":{"$error":"#N/A"}}]
[null,null,null,null,null,null,null,{"$f":"VLOOKUP(C:C,[2]Ajus!A$3:B$222,2,TRUE)","v":{"$error":"#N/A"}}]
[null,null,null,null,null,null,null,{"$f":"VLOOKUP(C:C,[2]Ajus!A$3:B$222,2,TRUE)","v":{"$error":"#N/A"}}]
[null,null,null,null,null,null,null,{"$f":"VLOOKUP(C:C,[2]Ajus!A$3:B$222,2,TRUE)","v":{"$error":"#N/A"}}]
[null,null,null,null,null,null,null,{"$f":"VLOOKUP(C:C,[2]Ajus!A$3:B$222,2,TRUE)","v":{"$error":"#N/A"}}]
[null,null,null,null,null,null,null,{"$f":"VLOOKUP(C:C,[2]Ajus!A$3:B$222,2,TRUE)","v":{"$error":"#N/A"}}]
[null,null,null,null,null,null,null,{"$f":"VLOOKUP(C:C,[2]Ajus!A$3:B$222,2,TRUE)","v":{"$error":"#N/A"}}]
[null,null,null,null,null,null,null,{"$f":"VLOOKUP(C:C,[2]Ajus!A$3:B$222,2,TRUE)","v":{"$error":"#N/A"}}]
[null,null,null,null,null,null,null,{"$f":"VLOOKUP(C:C,[2]Ajus!A$3:B$222,2,TRUE)","v":{"$error":"#N/A"}}]
[null,null,null,null,null,null,null,{"$f":"VLOOKUP(C:C,[2]Ajus!A$3:B$222,2,TRUE)","v":{"$error":"#N/A"}}]
[null,null,null,null,null,null,null,{"$f":"VLOOKUP(C:C,[2]Ajus!A$3:B$222,2,TRUE)","v":{"$error":"#N/A"}}]
[null,null,null,null,null,null,null,{"$f":"VLOOKUP(C:C,[2]Ajus!A$3:B$222,2,TRUE)","v":{"$error":"#N/A"}}]
[null,null,null,null,null,null,null,{"$f":"VLOOKUP(C:C,[2]Ajus!A$3:B$222,2,TRUE)","v":{"$error":"#N/A"}}]
[null,null,null,null,null,null,null,{"$f":"VLOOKUP(C:C,[2]Ajus!A$3:B$222,2,TRUE)","v":{"$error":"#N/A"}}]
[null,null,null,null,null,null,null,{"$f":"VLOOKUP(C:C,[2]Ajus!A$3:B$222,2,TRUE)","v":{"$error":"#N/A"}}]
[null,null,null,null,null,null,null,{"$f":"VLOOKUP(C:C,[2]Ajus!A$3:B$222,2,TRUE)","v":{"$error":"#N/A"}}]
[null,null,null,null,null,null,null,{"$f":"VLOOKUP(C:C,[2]Ajus!A$3:B$222,2,TRUE)","v":{"$error":"#N/A"}}]
[null,null,null,null,null,null,null,{"$f":"VLOOKUP(C:C,[2]Ajus!A$3:B$222,2,TRUE)","v":{"$error":"#N/A"}}]
[null,null,null,null,null,null,null,{"$f":"VLOOKUP(C:C,[2]Ajus!A$3:B$222,2,TRUE)","v":{"$error":"#N/A"}}]
[null,null,null,null,null,null,null,{"$f":"VLOOKUP(C:C,[2]Ajus!A$3:B$222,2,TRUE)","v":{"$error":"#N/A"}}]
[null,null,null,null,null,null,null,{"$f":"VLOOKUP(C:C,[2]Ajus!A$3:B$222,2,TRUE)","v":{"$error":"#N/A"}}]
[null,null,null,null,null,null,null,{"$f":"VLOOKUP(C:C,[2]Ajus!A$3:B$222,2,TRUE)","v":{"$error":"#N/A"}}]
[null,null,null,null,null,null,null,{"$f":"VLOOKUP(C:C,[2]Ajus!A$3:B$222,2,TRUE)","v":{"$error":"#N/A"}}]
[null,null,null,null,null,null,null,{"$f":"VLOOKUP(C:C,[2]Ajus!A$3:B$222,2,TRUE)","v":{"$error":"#N/A"}}]
[null,null,null,null,null,null,null,{"$f":"VLOOKUP(C:C,[2]Ajus!A$3:B$222,2,TRUE)","v":{"$error":"#N/A"}}]
[null,null,null,null,null,null,null,{"$f":"VLOOKUP(C:C,[2]Ajus!A$3:B$222,2,TRUE)","v":{"$error":"#N/A"}}]
[null,null,null,null,null,null,null,{"$f":"VLOOKUP(C:C,[2]Ajus!A$3:B$222,2,TRUE)","v":{"$error":"#N/A"}}]
[null,null,null,null,null,null,null,{"$f":"VLOOKUP(C:C,[2]Ajus!A$3:B$222,2,TRUE)","v":{"$error":"#N/A"}}]
[null,null,null,null,null,null,null,{"$f":"VLOOKUP(C:C,[2]Ajus!A$3:B$222,2,TRUE)","v":{"$error":"#N/A"}}]
[null,null,null,null,null,null,null,{"$f":"VLOOKUP(C:C,[2]Ajus!A$3:B$222,2,TRUE)","v":{"$error":"#N/A"}}]
[null,null,null,null,null,null,null,{"$f":"VLOOKUP(C:C,[2]Ajus!A$3:B$222,2,TRUE)","v":{"$error":"#N/A"}}]
[null,null,null,null,null,null,null,{"$f":"VLOOKUP(C:C,[2]Ajus!A$3:B$222,2,TRUE)","v":{"$error":"#N/A"}}]
[null,null,null,null,null,null,null,{"$f":"VLOOKUP(C:C,[2]Ajus!A$3:B$222,2,TRUE)","v":{"$error":"#N/A"}}]
[null,null,null,null,null,null,null,{"$f":"VLOOKUP(C:C,[2]Ajus!A$3:B$222,2,TRUE)","v":{"$error":"#N/A"}}]
[null,null,null,null,null,null,null,{"$f":"VLOOKUP(C:C,[2]Ajus!A$3:B$222,2,TRUE)","v":{"$error":"#N/A"}}]
[null,null,null,null,null,null,null,{"$f":"VLOOKUP(C:C,[2]Ajus!A$3:B$222,2,TRUE)","v":{"$error":"#N/A"}}]
[null,null,null,null,null,null,null,{"$f":"VLOOKUP(C:C,[2]Ajus!A$3:B$222,2,TRUE)","v":{"$error":"#N/A"}}]
[null,null,null,null,null,null,null,{"$f":"VLOOKUP(C:C,[2]Ajus!A$3:B$222,2,TRUE)","v":{"$error":"#N/A"}}]
[null,null,null,null,null,null,null,{"$f":"VLOOKUP(C:C,[2]Ajus!A$3:B$222,2,TRUE)","v":{"$error":"#N/A"}}]
[null,null,null,null,null,null,null,{"$f":"VLOOKUP(C:C,[2]Ajus!A$3:B$222,2,TRUE)","v":{"$error":"#N/A"}}]
[null,null,null,null,null,null,null,{"$f":"VLOOKUP(C:C,[2]Ajus!A$3:B$222,2,TRUE)","v":{"$error":"#N/A"}}]
[null,null,null,null,null,null,null,{"$f":"VLOOKUP(C:C,[2]Ajus!A$3:B$222,2,TRUE)","v":{"$error":"#N/A"}}]
[null,null,null,null,null,null,null,{"$f":"VLOOKUP(C:C,[2]Ajus!A$3:B$222,2,TRUE)","v":{"$error":"#N/A"}}]
[null,null,null,null,null,null,null,{"$f":"VLOOKUP(C:C,[2]Ajus!A$3:B$222,2,TRUE)","v":{"$error":"#N/A"}}]
[null,null,null,null,null,null,null,{"$f":"VLOOKUP(C:C,[2]Ajus!A$3:B$222,2,TRUE)","v":{"$error":"#N/A"}}]
[null,null,null,null,null,null,null,{"$f":"VLOOKUP(C:C,[2]Ajus!A$3:B$222,2,TRUE)","v":{"$error":"#N/A"}}]
[null,null,null,null,null,null,null,{"$f":"VLOOKUP(C:C,[2]Ajus!A$3:B$222,2,TRUE)","v":{"$error":"#N/A"}}]
[null,null,null,null,null,null,null,{"$f":"VLOOKUP(C:C,[2]Ajus!A$3:B$222,2,TRUE)","v":{"$error":"#N/A"}}]
[null,null,null,null,null,null,null,{"$f":"VLOOKUP(C:C,[2]Ajus!A$3:B$222,2,TRUE)","v":{"$error":"#N/A"}}]
[null,null,null,null,null,null,null,{"$f":"VLOOKUP(C:C,[2]Ajus!A$3:B$222,2,TRUE)","v":{"$error":"#N/A"}}]
[null,null,null,null,null,null,null,{"$f":"VLOOKUP(C:C,[2]Ajus!A$3:B$222,2,TRUE)","v":{"$error":"#N/A"}}]
[null,null,null,null,null,null,null,{"$f":"VLOOKUP(C:C,[2]Ajus!A$3:B$222,2,TRUE)","v":{"$error":"#N/A"}}]
[null,null,null,null,null,null,null,{"$f":"VLOOKUP(C:C,[2]Ajus!A$3:B$222,2,TRUE)","v":{"$error":"#N/A"}}]
[null,null,null,null,null,null,null,{"$f":"VLOOKUP(C:C,[2]Ajus!A$3:B$222,2,TRUE)","v":{"$error":"#N/A"}}]
[null,null,null,null,null,null,null,{"$f":"VLOOKUP(C:C,[2]Ajus!A$3:B$222,2,TRUE)","v":{"$error":"#N/A"}}]
[null,null,null,null,null,null,null,{"$f":"VLOOKUP(C:C,[2]Ajus!A$3:B$222,2,TRUE)","v":{"$error":"#N/A"}}]
[null,null,null,null,null,null,null,{"$f":"VLOOKUP(C:C,[2]Ajus!A$3:B$222,2,TRUE)","v":{"$error":"#N/A"}}]
[null,null,null,null,null,null,null,{"$f":"VLOOKUP(C:C,[2]Ajus!A$3:B$222,2,TRUE)","v":{"$error":"#N/A"}}]
[null,null,null,null,null,null,null,{"$f":"VLOOKUP(C:C,[2]Ajus!A$3:B$222,2,TRUE)","v":{"$error":"#N/A"}}]
[null,null,null,null,null,null,null,{"$f":"VLOOKUP(C:C,[2]Ajus!A$3:B$222,2,TRUE)","v":{"$error":"#N/A"}}]
[null,null,null,null,null,null,null,{"$f":"VLOOKUP(C:C,[2]Ajus!A$3:B$222,2,TRUE)","v":{"$error":"#N/A"}}]
[null,null,null,null,null,null,null,{"$f":"VLOOKUP(C:C,[2]Ajus!A$3:B$222,2,TRUE)","v":{"$error":"#N/A"}}]
[null,null,null,null,null,null,null,{"$f":"VLOOKUP(C:C,[2]Ajus!A$3:B$222,2,TRUE)","v":{"$error":"#N/A"}}]
[null,null,null,null,null,null,null,{"$f":"VLOOKUP(C:C,[2]Ajus!A$3:B$222,2,TRUE)","v":{"$error":"#N/A"}}]
[null,null,null,null,null,null,null,{"$f":"VLOOKUP(C:C,[2]Ajus!A$3:B$222,2,TRUE)","v":{"$error":"#N/A"}}]
[null,null,null,null,null,null,null,{"$f":"VLOOKUP(C:C,[2]Ajus!A$3:B$222,2,TRUE)","v":{"$error":"#N/A"}}]
[null,null,null,null,null,null,null,{"$f":"VLOOKUP(C:C,[2]Ajus!A$3:B$222,2,TRUE)","v":{"$error":"#N/A"}}]
[null,null,null,null,null,null,null,{"$f":"VLOOKUP(C:C,[2]Ajus!A$3:B$222,2,TRUE)","v":{"$error":"#N/A"}}]
[null,null,null,null,null,null,null,{"$f":"VLOOKUP(C:C,[2]Ajus!A$3:B$222,2,TRUE)","v":{"$error":"#N/A"}}]
[null,null,null,null,null,null,null,{"$f":"VLOOKUP(C:C,[2]Ajus!A$3:B$222,2,TRUE)","v":{"$error":"#N/A"}}]
[null,null,null,null,null,null,null,{"$f":"VLOOKUP(C:C,[2]Ajus!A$3:B$222,2,TRUE)","v":{"$error":"#N/A"}}]
[null,null,null,null,null,null,null,{"$f":"VLOOKUP(C:C,[2]Ajus!A$3:B$222,2,TRUE)","v":{"$error":"#N/A"}}]
[null,null,null,null,null,null,null,{"$f":"VLOOKUP(C:C,[2]Ajus!A$3:B$222,2,TRUE)","v":{"$error":"#N/A"}}]
[null,null,null,null,null,null,null,{"$f":"VLOOKUP(C:C,[2]Ajus!A$3:B$222,2,TRUE)","v":{"$error":"#N/A"}}]
[null,null,null,null,null,null,null,{"$f":"VLOOKUP(C:C,[2]Ajus!A$3:B$222,2,TRUE)","v":{"$error":"#N/A"}}]
[null,null,null,null,null,null,null,{"$f":"VLOOKUP(C:C,[2]Ajus!A$3:B$222,2,TRUE)","v":{"$error":"#N/A"}}]
[null,null,null,null,null,null,null,{"$f":"VLOOKUP(C:C,[2]Ajus!A$3:B$222,2,TRUE)","v":{"$error":"#N/A"}}]
[null,null,null,null,null,null,null,{"$f":"VLOOKUP(C:C,[2]Ajus!A$3:B$222,2,TRUE)","v":{"$error":"#N/A"}}]
[null,null,null,null,null,null,null,{"$f":"VLOOKUP(C:C,[2]Ajus!A$3:B$222,2,TRUE)","v":{"$error":"#N/A"}}]
[null,null,null,null,null,null,null,{"$f":"VLOOKUP(C:C,[2]Ajus!A$3:B$222,2,TRUE)","v":{"$error":"#N/A"}}]
[null,null,null,null,null,null,null,{"$f":"VLOOKUP(C:C,[2]Ajus!A$3:B$222,2,TRUE)","v":{"$error":"#N/A"}}]
[null,null,null,null,null,null,null,{"$f":"VLOOKUP(C:C,[2]Ajus!A$3:B$222,2,TRUE)","v":{"$error":"#N/A"}}]
[null,null,null,null,null,null,null,{"$f":"VLOOKUP(C:C,[2]Ajus!A$3:B$222,2,TRUE)","v":{"$error":"#N/A"}}]
[null,null,null,null,null,null,null,{"$f":"VLOOKUP(C:C,[2]Ajus!A$3:B$222,2,TRUE)","v":{"$error":"#N/A"}}]
[null,null,null,null,null,null,null,{"$f":"VLOOKUP(C:C,[2]Ajus!A$3:B$222,2,TRUE)","v":{"$error":"#N/A"}}]
[null,null,null,null,null,null,null,{"$f":"VLOOKUP(C:C,[2]Ajus!A$3:B$222,2,TRUE)","v":{"$error":"#N/A"}}]
[null,null,null,null,null,null,null,{"$f":"VLOOKUP(C:C,[2]Ajus!A$3:B$222,2,TRUE)","v":{"$error":"#N/A"}}]
[null,null,null,null,null,null,null,{"$f":"VLOOKUP(C:C,[2]Ajus!A$3:B$222,2,TRUE)","v":{"$error":"#N/A"}}]
[null,null,null,null,null,null,null,{"$f":"VLOOKUP(C:C,[2]Ajus!A$3:B$222,2,TRUE)","v":{"$error":"#N/A"}}]
[null,null,null,null,null,null,null,{"$f":"VLOOKUP(C:C,[2]Ajus!A$3:B$222,2,TRUE)","v":{"$error":"#N/A"}}]
[null,null,null,null,null,null,null,{"$f":"VLOOKUP(C:C,[2]Ajus!A$3:B$222,2,TRUE)","v":{"$error":"#N/A"}}]
[null,null,null,null,null,null,null,{"$f":"VLOOKUP(C:C,[2]Ajus!A$3:B$222,2,TRUE)","v":{"$error":"#N/A"}}]
[null,null,null,null,null,null,null,{"$f":"VLOOKUP(C:C,[2]Ajus!A$3:B$222,2,TRUE)","v":{"$error":"#N/A"}}]
[null,null,null,null,null,null,null,{"$f":"VLOOKUP(C:C,[2]Ajus!A$3:B$222,2,TRUE)","v":{"$error":"#N/A"}}]
[null,null,null,null,null,null,null,{"$f":"VLOOKUP(C:C,[2]Ajus!A$3:B$222,2,TRUE)","v":{"$error":"#N/A"}}]
[null,null,null,null,null,null,null,{"$f":"VLOOKUP(C:C,[2]Ajus!A$3:B$222,2,TRUE)","v":{"$error":"#N/A"}}]
[null,null,null,null,null,null,null,{"$f":"VLOOKUP(C:C,[2]Ajus!A$3:B$222,2,TRUE)","v":{"$error":"#N/A"}}]
[null,null,null,null,null,null,null,{"$f":"VLOOKUP(C:C,[2]Ajus!A$3:B$222,2,TRUE)","v":{"$error":"#N/A"}}]
[null,null,null,null,null,null,null,{"$f":"VLOOKUP(C:C,[2]Ajus!A$3:B$222,2,TRUE)","v":{"$error":"#N/A"}}]
[null,null,null,null,null,null,null,{"$f":"VLOOKUP(C:C,[2]Ajus!A$3:B$222,2,TRUE)","v":{"$error":"#N/A"}}]
[null,null,null,null,null,null,null,{"$f":"VLOOKUP(C:C,[2]Ajus!A$3:B$222,2,TRUE)","v":{"$error":"#N/A"}}]
[null,null,null,null,null,null,null,{"$f":"VLOOKUP(C:C,[2]Ajus!A$3:B$222,2,TRUE)","v":{"$error":"#N/A"}}]
[null,null,null,null,null,null,null,{"$f":"VLOOKUP(C:C,[2]Ajus!A$3:B$222,2,TRUE)","v":{"$error":"#N/A"}}]
[null,null,null,null,null,null,null,{"$f":"VLOOKUP(C:C,[2]Ajus!A$3:B$222,2,TRUE)","v":{"$error":"#N/A"}}]
[null,null,null,null,null,null,null,{"$f":"VLOOKUP(C:C,[2]Ajus!A$3:B$222,2,TRUE)","v":{"$error":"#N/A"}}]
[null,null,null,null,null,null,null,{"$f":"VLOOKUP(C:C,[2]Ajus!A$3:B$222,2,TRUE)","v":{"$error":"#N/A"}}]
[null,null,null,null,null,null,null,{"$f":"VLOOKUP(C:C,[2]Ajus!A$3:B$222,2,TRUE)","v":{"$error":"#N/A"}}]
[null,null,null,null,null,null,null,{"$f":"VLOOKUP(C:C,[2]Ajus!A$3:B$222,2,TRUE)","v":{"$error":"#N/A"}}]
[null,null,null,null,null,null,null,{"$f":"VLOOKUP(C:C,[2]Ajus!A$3:B$222,2,TRUE)","v":{"$error":"#N/A"}}]
[null,null,null,null,null,null,null,{"$f":"VLOOKUP(C:C,[2]Ajus!A$3:B$222,2,TRUE)","v":{"$error":"#N/A"}}]
[null,null,null,null,null,null,null,{"$f":"VLOOKUP(C:C,[2]Ajus!A$3:B$222,2,TRUE)","v":{"$error":"#N/A"}}]
[null,null,null,null,null,null,null,{"$f":"VLOOKUP(C:C,[2]Ajus!A$3:B$222,2,TRUE)","v":{"$error":"#N/A"}}]
[null,null,null,null,null,null,null,{"$f":"VLOOKUP(C:C,[2]Ajus!A$3:B$222,2,TRUE)","v":{"$error":"#N/A"}}]
[null,null,null,null,null,null,null,{"$f":"VLOOKUP(C:C,[2]Ajus!A$3:B$222,2,TRUE)","v":{"$error":"#N/A"}}]
[null,null,null,null,null,null,null,{"$f":"VLOOKUP(C:C,[2]Ajus!A$3:B$222,2,TRUE)","v":{"$error":"#N/A"}}]
[null,null,null,null,null,null,null,{"$f":"VLOOKUP(C:C,[2]Ajus!A$3:B$222,2,TRUE)","v":{"$error":"#N/A"}}]
[null,null,null,null,null,null,null,{"$f":"VLOOKUP(C:C,[2]Ajus!A$3:B$222,2,TRUE)","v":{"$error":"#N/A"}}]
[null,null,null,null,null,null,null,{"$f":"VLOOKUP(C:C,[2]Ajus!A$3:B$222,2,TRUE)","v":{"$error":"#N/A"}}]
[null,null,null,null,null,null,null,{"$f":"VLOOKUP(C:C,[2]Ajus!A$3:B$222,2,TRUE)","v":{"$error":"#N/A"}}]
[null,null,null,null,null,null,null,{"$f":"VLOOKUP(C:C,[2]Ajus!A$3:B$222,2,TRUE)","v":{"$error":"#N/A"}}]
[null,null,null,null,null,null,null,{"$f":"VLOOKUP(C:C,[2]Ajus!A$3:B$222,2,TRUE)","v":{"$error":"#N/A"}}]
[null,null,null,null,null,null,null,{"$f":"VLOOKUP(C:C,[2]Ajus!A$3:B$222,2,TRUE)","v":{"$error":"#N/A"}}]
[null,null,null,null,null,null,null,{"$f":"VLOOKUP(C:C,[2]Ajus!A$3:B$222,2,TRUE)","v":{"$error":"#N/A"}}]
[null,null,null,null,null,null,null,{"$f":"VLOOKUP(C:C,[2]Ajus!A$3:B$222,2,TRUE)","v":{"$error":"#N/A"}}]
[null,null,null,null,null,null,null,{"$f":"VLOOKUP(C:C,[2]Ajus!A$3:B$222,2,TRUE)","v":{"$error":"#N/A"}}]
[null,null,null,null,null,null,null,{"$f":"VLOOKUP(C:C,[2]Ajus!A$3:B$222,2,TRUE)","v":{"$error":"#N/A"}}]
[null,null,null,null,null,null,null,{"$f":"VLOOKUP(C:C,[2]Ajus!A$3:B$222,2,TRUE)","v":{"$error":"#N/A"}}]
[null,null,null,null,null,null,null,{"$f":"VLOOKUP(C:C,[2]Ajus!A$3:B$222,2,TRUE)","v":{"$error":"#N/A"}}]
[null,null,null,null,null,null,null,{"$f":"VLOOKUP(C:C,[2]Ajus!A$3:B$222,2,TRUE)","v":{"$error":"#N/A"}}]
[null,null,null,null,null,null,null,{"$f":"VLOOKUP(C:C,[2]Ajus!A$3:B$222,2,TRUE)","v":{"$error":"#N/A"}}]
[null,null,null,null,null,null,null,{"$f":"VLOOKUP(C:C,[2]Ajus!A$3:B$222,2,TRUE)","v":{"$error":"#N/A"}}]
[null,null,null,null,null,null,null,{"$f":"VLOOKUP(C:C,[2]Ajus!A$3:B$222,2,TRUE)","v":{"$error":"#N/A"}}]
[null,null,null,null,null,null,null,{"$f":"VLOOKUP(C:C,[2]Ajus!A$3:B$222,2,TRUE)","v":{"$error":"#N/A"}}]
[null,null,null,null,null,null,null,{"$f":"VLOOKUP(C:C,[2]Ajus!A$3:B$222,2,TRUE)","v":{"$error":"#N/A"}}]
[null,null,null,null,null,null,null,{"$f":"VLOOKUP(C:C,[2]Ajus!A$3:B$222,2,TRUE)","v":{"$error":"#N/A"}}]
[null,null,null,null,null,null,null,{"$f":"VLOOKUP(C:C,[2]Ajus!A$3:B$222,2,TRUE)","v":{"$error":"#N/A"}}]
[null,null,null,null,null,null,null,{"$f":"VLOOKUP(C:C,[2]Ajus!A$3:B$222,2,TRUE)","v":{"$error":"#N/A"}}]
[null,null,null,null,null,null,null,{"$f":"VLOOKUP(C:C,[2]Ajus!A$3:B$222,2,TRUE)","v":{"$error":"#N/A"}}]
[null,null,null,null,null,null,null,{"$f":"VLOOKUP(C:C,[2]Ajus!A$3:B$222,2,TRUE)","v":{"$error":"#N/A"}}]
[null,null,null,null,null,null,null,{"$f":"VLOOKUP(C:C,[2]Ajus!A$3:B$222,2,TRUE)","v":{"$error":"#N/A"}}]
[null,null,null,null,null,null,null,{"$f":"VLOOKUP(C:C,[2]Ajus!A$3:B$222,2,TRUE)","v":{"$error":"#N/A"}}]
[null,null,null,null,null,null,null,{"$f":"VLOOKUP(C:C,[2]Ajus!A$3:B$222,2,TRUE)","v":{"$error":"#N/A"}}]
[null,null,null,null,null,null,null,{"$f":"VLOOKUP(C:C,[2]Ajus!A$3:B$222,2,TRUE)","v":{"$error":"#N/A"}}]
[null,null,null,null,null,null,null,{"$f":"VLOOKUP(C:C,[2]Ajus!A$3:B$222,2,TRUE)","v":{"$error":"#N/A"}}]
[null,null,null,null,null,null,null,{"$f":"VLOOKUP(C:C,[2]Ajus!A$3:B$222,2,TRUE)","v":{"$error":"#N/A"}}]
[null,null,null,null,null,null,null,{"$f":"VLOOKUP(C:C,[2]Ajus!A$3:B$222,2,TRUE)","v":{"$error":"#N/A"}}]
[null,null,null,null,null,null,null,{"$f":"VLOOKUP(C:C,[2]Ajus!A$3:B$222,2,TRUE)","v":{"$error":"#N/A"}}]
[null,null,null,null,null,null,null,{"$f":"VLOOKUP(C:C,[2]Ajus!A$3:B$222,2,TRUE)","v":{"$error":"#N/A"}}]
[null,null,null,null,null,null,null,{"$f":"VLOOKUP(C:C,[2]Ajus!A$3:B$222,2,TRUE)","v":{"$error":"#N/A"}}]
[null,null,null,null,null,null,null,{"$f":"VLOOKUP(C:C,[2]Ajus!A$3:B$222,2,TRUE)","v":{"$error":"#N/A"}}]
[null,null,null,null,null,null,null,{"$f":"VLOOKUP(C:C,[2]Ajus!A$3:B$222,2,TRUE)","v":{"$error":"#N/A"}}]
[null,null,null,null,null,null,null,{"$f":"VLOOKUP(C:C,[2]Ajus!A$3:B$222,2,TRUE)","v":{"$error":"#N/A"}}]
[null,null,null,null,null,null,null,{"$f":"VLOOKUP(C:C,[2]Ajus!A$3:B$222,2,TRUE)","v":{"$error":"#N/A"}}]
[null,null,null,null,null,null,null,{"$f":"VLOOKUP(C:C,[2]Ajus!A$3:B$222,2,TRUE)","v":{"$error":"#N/A"}}]
[null,null,null,null,null,null,null,{"$f":"VLOOKUP(C:C,[2]Ajus!A$3:B$222,2,TRUE)","v":{"$error":"#N/A"}}]
[null,null,null,null,null,null,null,{"$f":"VLOOKUP(C:C,[2]Ajus!A$3:B$222,2,TRUE)","v":{"$error":"#N/A"}}]
[null,null,null,null,null,null,null,{"$f":"VLOOKUP(C:C,[2]Ajus!A$3:B$222,2,TRUE)","v":{"$error":"#N/A"}}]
[null,null,null,null,null,null,null,{"$f":"VLOOKUP(C:C,[2]Ajus!A$3:B$222,2,TRUE)","v":{"$error":"#N/A"}}]
[null,null,null,null,null,null,null,{"$f":"VLOOKUP(C:C,[2]Ajus!A$3:B$222,2,TRUE)","v":{"$error":"#N/A"}}]
[null,null,null,null,null,null,null,{"$f":"VLOOKUP(C:C,[2]Ajus!A$3:B$222,2,TRUE)","v":{"$error":"#N/A"}}]
[null,null,null,null,null,null,null,{"$f":"VLOOKUP(C:C,[2]Ajus!A$3:B$222,2,TRUE)","v":{"$error":"#N/A"}}]
[null,null,null,null,null,null,null,{"$f":"VLOOKUP(C:C,[2]Ajus!A$3:B$222,2,TRUE)","v":{"$error":"#N/A"}}]
[null,null,null,null,null,null,null,{"$f":"VLOOKUP(C:C,[2]Ajus!A$3:B$222,2,TRUE)","v":{"$error":"#N/A"}}]
[null,null,null,null,null,null,null,{"$f":"VLOOKUP(C:C,[2]Ajus!A$3:B$222,2,TRUE)","v":{"$error":"#N/A"}}]
[null,null,null,null,null,null,null,{"$f":"VLOOKUP(C:C,[2]Ajus!A$3:B$222,2,TRUE)","v":{"$error":"#N/A"}}]
[null,null,null,null,null,null,null,{"$f":"VLOOKUP(C:C,[2]Ajus!A$3:B$222,2,TRUE)","v":{"$error":"#N/A"}}]
[null,null,null,null,null,null,null,{"$f":"VLOOKUP(C:C,[2]Ajus!A$3:B$222,2,TRUE)","v":{"$error":"#N/A"}}]
[null,null,null,null,null,null,null,{"$f":"VLOOKUP(C:C,[2]Ajus!A$3:B$222,2,TRUE)","v":{"$error":"#N/A"}}]
[null,null,null,null,null,null,null,{"$f":"VLOOKUP(C:C,[2]Ajus!A$3:B$222,2,TRUE)","v":{"$error":"#N/A"}}]
[null,null,null,null,null,null,null,{"$f":"VLOOKUP(C:C,[2]Ajus!A$3:B$222,2,TRUE)","v":{"$error":"#N/A"}}]
[null,null,null,null,null,null,null,{"$f":"VLOOKUP(C:C,[2]Ajus!A$3:B$222,2,TRUE)","v":{"$error":"#N/A"}}]
[null,null,null,null,null,null,null,{"$f":"VLOOKUP(C:C,[2]Ajus!A$3:B$222,2,TRUE)","v":{"$error":"#N/A"}}]
[null,null,null,null,null,null,null,{"$f":"VLOOKUP(C:C,[2]Ajus!A$3:B$222,2,TRUE)","v":{"$error":"#N/A"}}]
[null,null,null,null,null,null,null,{"$f":"VLOOKUP(C:C,[2]Ajus!A$3:B$222,2,TRUE)","v":{"$error":"#N/A"}}]
[null,null,null,null,null,null,null,{"$f":"VLOOKUP(C:C,[2]Ajus!A$3:B$222,2,TRUE)","v":{"$error":"#N/A"}}]
[null,null,null,null,null,null,null,{"$f":"VLOOKUP(C:C,[2]Ajus!A$3:B$222,2,TRUE)","v":{"$error":"#N/A"}}]
[null,null,null,null,null,null,null,{"$f":"VLOOKUP(C:C,[2]Ajus!A$3:B$222,2,TRUE)","v":{"$error":"#N/A"}}]
[null,null,null,null,null,null,null,{"$f":"VLOOKUP(C:C,[2]Ajus!A$3:B$222,2,TRUE)","v":{"$error":"#N/A"}}]
[null,null,null,null,null,null,null,{"$f":"VLOOKUP(C:C,[2]Ajus!A$3:B$222,2,TRUE)","v":{"$error":"#N/A"}}]
[null,null,null,null,null,null,null,{"$f":"VLOOKUP(C:C,[2]Ajus!A$3:B$222,2,TRUE)","v":{"$error":"#N/A"}}]
[null,null,null,null,null,null,null,{"$f":"VLOOKUP(C:C,[2]Ajus!A$3:B$222,2,TRUE)","v":{"$error":"#N/A"}}]
[null,null,null,null,null,null,null,{"$f":"VLOOKUP(C:C,[2]Ajus!A$3:B$222,2,TRUE)","v":{"$error":"#N/A"}}]
[null,null,null,null,null,null,null,{"$f":"VLOOKUP(C:C,[2]Ajus!A$3:B$222,2,TRUE)","v":{"$error":"#N/A"}}]
[null,null,null,null,null,null,null,{"$f":"VLOOKUP(C:C,[2]Ajus!A$3:B$222,2,TRUE)","v":{"$error":"#N/A"}}]
[null,null,null,null,null,null,null,{"$f":"VLOOKUP(C:C,[2]Ajus!A$3:B$222,2,TRUE)","v":{"$error":"#N/A"}}]
[null,null,null,null,null,null,null,{"$f":"VLOOKUP(C:C,[2]Ajus!A$3:B$222,2,TRUE)","v":{"$error":"#N/A"}}]
[null,null,null,null,null,null,null,{"$f":"VLOOKUP(C:C,[2]Ajus!A$3:B$222,2,TRUE)","v":{"$error":"#N/A"}}]
[null,null,null,null,null,null,null,{"$f":"VLOOKUP(C:C,[2]Ajus!A$3:B$222,2,TRUE)","v":{"$error":"#N/A"}}]
[null,null,null,null,null,null,null,{"$f":"VLOOKUP(C:C,[2]Ajus!A$3:B$222,2,TRUE)","v":{"$error":"#N/A"}}]
[null,null,null,null,null,null,null,{"$f":"VLOOKUP(C:C,[2]Ajus!A$3:B$222,2,TRUE)","v":{"$error":"#N/A"}}]
[null,null,null,null,null,null,null,{"$f":"VLOOKUP(C:C,[2]Ajus!A$3:B$222,2,TRUE)","v":{"$error":"#N/A"}}]
[null,null,null,null,null,null,null,{"$f":"VLOOKUP(C:C,[2]Ajus!A$3:B$222,2,TRUE)","v":{"$error":"#N/A"}}]
[null,null,null,null,null,null,null,{"$f":"VLOOKUP(C:C,[2]Ajus!A$3:B$222,2,TRUE)","v":{"$error":"#N/A"}}]
[null,null,null,null,null,null,null,{"$f":"VLOOKUP(C:C,[2]Ajus!A$3:B$222,2,TRUE)","v":{"$error":"#N/A"}}]
[null,null,null,null,null,null,null,{"$f":"VLOOKUP(C:C,[2]Ajus!A$3:B$222,2,TRUE)","v":{"$error":"#N/A"}}]
[null,null,null,null,null,null,null,{"$f":"VLOOKUP(C:C,[2]Ajus!A$3:B$222,2,TRUE)","v":{"$error":"#N/A"}}]
[null,null,null,null,null,null,null,{"$f":"VLOOKUP(C:C,[2]Ajus!A$3:B$222,2,TRUE)","v":{"$error":"#N/A"}}]
[null,null,null,null,null,null,null,{"$f":"VLOOKUP(C:C,[2]Ajus!A$3:B$222,2,TRUE)","v":{"$error":"#N/A"}}]
[null,null,null,null,null,null,null,{"$f":"VLOOKUP(C:C,[2]Ajus!A$3:B$222,2,TRUE)","v":{"$error":"#N/A"}}]
[null,null,null,null,null,null,null,{"$f":"VLOOKUP(C:C,[2]Ajus!A$3:B$222,2,TRUE)","v":{"$error":"#N/A"}}]
[null,null,null,null,null,null,null,{"$f":"VLOOKUP(C:C,[2]Ajus!A$3:B$222,2,TRUE)","v":{"$error":"#N/A"}}]
[null,null,null,null,null,null,null,{"$f":"VLOOKUP(C:C,[2]Ajus!A$3:B$222,2,TRUE)","v":{"$error":"#N/A"}}]
[null,null,null,null,null,null,null,{"$f":"VLOOKUP(C:C,[2]Ajus!A$3:B$222,2,TRUE)","v":{"$error":"#N/A"}}]
[null,null,null,null,null,null,null,{"$f":"VLOOKUP(C:C,[2]Ajus!A$3:B$222,2,TRUE)","v":{"$error":"#N/A"}}]
[null,null,null,null,null,null,null,{"$f":"VLOOKUP(C:C,[2]Ajus!A$3:B$222,2,TRUE)","v":{"$error":"#N/A"}}]
[null,null,null,null,null,null,null,{"$f":"VLOOKUP(C:C,[2]Ajus!A$3:B$222,2,TRUE)","v":{"$error":"#N/A"}}]
[null,null,null,null,null,null,null,{"$f":"VLOOKUP(C:C,[2]Ajus!A$3:B$222,2,TRUE)","v":{"$error":"#N/A"}}]
[null,null,null,null,null,null,null,{"$f":"VLOOKUP(C:C,[2]Ajus!A$3:B$222,2,TRUE)","v":{"$error":"#N/A"}}]
[null,null,null,null,null,null,null,{"$f":"VLOOKUP(C:C,[2]Ajus!A$3:B$222,2,TRUE)","v":{"$error":"#N/A"}}]
[null,null,null,null,null,null,null,{"$f":"VLOOKUP(C:C,[2]Ajus!A$3:B$222,2,TRUE)","v":{"$error":"#N/A"}}]
[null,null,null,null,null,null,null,{"$f":"VLOOKUP(C:C,[2]Ajus!A$3:B$222,2,TRUE)","v":{"$error":"#N/A"}}]
[null,null,null,null,null,null,null,{"$f":"VLOOKUP(C:C,[2]Ajus!A$3:B$222,2,TRUE)","v":{"$error":"#N/A"}}]
[null,null,null,null,null,null,null,{"$f":"VLOOKUP(C:C,[2]Ajus!A$3:B$222,2,TRUE)","v":{"$error":"#N/A"}}]
[null,null,null,null,null,null,null,{"$f":"VLOOKUP(C:C,[2]Ajus!A$3:B$222,2,TRUE)","v":{"$error":"#N/A"}}]
[null,null,null,null,null,null,null,{"$f":"VLOOKUP(C:C,[2]Ajus!A$3:B$222,2,TRUE)","v":{"$error":"#N/A"}}]
[null,null,null,null,null,null,null,{"$f":"VLOOKUP(C:C,[2]Ajus!A$3:B$222,2,TRUE)","v":{"$error":"#N/A"}}]
[null,null,null,null,null,null,null,{"$f":"VLOOKUP(C:C,[2]Ajus!A$3:B$222,2,TRUE)","v":{"$error":"#N/A"}}]
[null,null,null,null,null,null,null,{"$f":"VLOOKUP(C:C,[2]Ajus!A$3:B$222,2,TRUE)","v":{"$error":"#N/A"}}]
[null,null,null,null,null,null,null,{"$f":"VLOOKUP(C:C,[2]Ajus!A$3:B$222,2,TRUE)","v":{"$error":"#N/A"}}]
[null,null,null,null,null,null,null,{"$f":"VLOOKUP(C:C,[2]Ajus!A$3:B$222,2,TRUE)","v":{"$error":"#N/A"}}]
[null,null,null,null,null,null,null,{"$f":"VLOOKUP(C:C,[2]Ajus!A$3:B$222,2,TRUE)","v":{"$error":"#N/A"}}]
[null,null,null,null,null,null,null,{"$f":"VLOOKUP(C:C,[2]Ajus!A$3:B$222,2,TRUE)","v":{"$error":"#N/A"}}]
[null,null,null,null,null,null,null,{"$f":"VLOOKUP(C:C,[2]Ajus!A$3:B$222,2,TRUE)","v":{"$error":"#N/A"}}]
[null,null,null,null,null,null,null,{"$f":"VLOOKUP(C:C,[2]Ajus!A$3:B$222,2,TRUE)","v":{"$error":"#N/A"}}]
[null,null,null,null,null,null,null,{"$f":"VLOOKUP(C:C,[2]Ajus!A$3:B$222,2,TRUE)","v":{"$error":"#N/A"}}]
[null,null,null,null,null,null,null,{"$f":"VLOOKUP(C:C,[2]Ajus!A$3:B$222,2,TRUE)","v":{"$error":"#N/A"}}]
[null,null,null,null,null,null,null,{"$f":"VLOOKUP(C:C,[2]Ajus!A$3:B$222,2,TRUE)","v":{"$error":"#N/A"}}]
[null,null,null,null,null,null,null,{"$f":"VLOOKUP(C:C,[2]Ajus!A$3:B$222,2,TRUE)","v":{"$error":"#N/A"}}]
[null,null,null,null,null,null,null,{"$f":"VLOOKUP(C:C,[2]Ajus!A$3:B$222,2,TRUE)","v":{"$error":"#N/A"}}]
[null,null,null,null,null,null,null,{"$f":"VLOOKUP(C:C,[2]Ajus!A$3:B$222,2,TRUE)","v":{"$error":"#N/A"}}]
[null,null,null,null,null,null,null,{"$f":"VLOOKUP(C:C,[2]Ajus!A$3:B$222,2,TRUE)","v":{"$error":"#N/A"}}]
[null,null,null,null,null,null,null,{"$f":"VLOOKUP(C:C,[2]Ajus!A$3:B$222,2,TRUE)","v":{"$error":"#N/A"}}]
[null,null,null,null,null,null,null,{"$f":"VLOOKUP(C:C,[2]Ajus!A$3:B$222,2,TRUE)","v":{"$error":"#N/A"}}]
[null,null,null,null,null,null,null,{"$f":"VLOOKUP(C:C,[2]Ajus!A$3:B$222,2,TRUE)","v":{"$error":"#N/A"}}]
[null,null,null,null,null,null,null,{"$f":"VLOOKUP(C:C,[2]Ajus!A$3:B$222,2,TRUE)","v":{"$error":"#N/A"}}]
[null,null,null,null,null,null,null,{"$f":"VLOOKUP(C:C,[2]Ajus!A$3:B$222,2,TRUE)","v":{"$error":"#N/A"}}]
[null,null,null,null,null,null,null,{"$f":"VLOOKUP(C:C,[2]Ajus!A$3:B$222,2,TRUE)","v":{"$error":"#N/A"}}]
[null,null,null,null,null,null,null,{"$f":"VLOOKUP(C:C,[2]Ajus!A$3:B$222,2,TRUE)","v":{"$error":"#N/A"}}]
[null,null,null,null,null,null,null,{"$f":"VLOOKUP(C:C,[2]Ajus!A$3:B$222,2,TRUE)","v":{"$error":"#N/A"}}]
[null,null,null,null,null,null,null,{"$f":"VLOOKUP(C:C,[2]Ajus!A$3:B$222,2,TRUE)","v":{"$error":"#N/A"}}]
[null,null,null,null,null,null,null,{"$f":"VLOOKUP(C:C,[2]Ajus!A$3:B$222,2,TRUE)","v":{"$error":"#N/A"}}]
[null,null,null,null,null,null,null,{"$f":"VLOOKUP(C:C,[2]Ajus!A$3:B$222,2,TRUE)","v":{"$error":"#N/A"}}]
[null,null,null,null,null,null,null,{"$f":"VLOOKUP(C:C,[2]Ajus!A$3:B$222,2,TRUE)","v":{"$error":"#N/A"}}]
[null,null,null,null,null,null,null,{"$f":"VLOOKUP(C:C,[2]Ajus!A$3:B$222,2,TRUE)","v":{"$error":"#N/A"}}]
[null,null,null,null,null,null,null,{"$f":"VLOOKUP(C:C,[2]Ajus!A$3:B$222,2,TRUE)","v":{"$error":"#N/A"}}]
[null,null,null,null,null,null,null,{"$f":"VLOOKUP(C:C,[2]Ajus!A$3:B$222,2,TRUE)","v":{"$error":"#N/A"}}]
[null,null,null,null,null,null,null,{"$f":"VLOOKUP(C:C,[2]Ajus!A$3:B$222,2,TRUE)","v":{"$error":"#N/A"}}]
[null,null,null,null,null,null,null,{"$f":"VLOOKUP(C:C,[2]Ajus!A$3:B$222,2,TRUE)","v":{"$error":"#N/A"}}]
[null,null,null,null,null,null,null,{"$f":"VLOOKUP(C:C,[2]Ajus!A$3:B$222,2,TRUE)","v":{"$error":"#N/A"}}]
[null,null,null,null,null,null,null,{"$f":"VLOOKUP(C:C,[2]Ajus!A$3:B$222,2,TRUE)","v":{"$error":"#N/A"}}]
[null,null,null,null,null,null,null,{"$f":"VLOOKUP(C:C,[2]Ajus!A$3:B$222,2,TRUE)","v":{"$error":"#N/A"}}]
[null,null,null,null,null,null,null,{"$f":"VLOOKUP(C:C,[2]Ajus!A$3:B$222,2,TRUE)","v":{"$error":"#N/A"}}]
[null,null,null,null,null,null,null,{"$f":"VLOOKUP(C:C,[2]Ajus!A$3:B$222,2,TRUE)","v":{"$error":"#N/A"}}]
[null,null,null,null,null,null,null,{"$f":"VLOOKUP(C:C,[2]Ajus!A$3:B$222,2,TRUE)","v":{"$error":"#N/A"}}]
[null,null,null,null,null,null,null,{"$f":"VLOOKUP(C:C,[2]Ajus!A$3:B$222,2,TRUE)","v":{"$error":"#N/A"}}]
[null,null,null,null,null,null,null,{"$f":"VLOOKUP(C:C,[2]Ajus!A$3:B$222,2,TRUE)","v":{"$error":"#N/A"}}]
[null,null,null,null,null,null,null,{"$f":"VLOOKUP(C:C,[2]Ajus!A$3:B$222,2,TRUE)","v":{"$error":"#N/A"}}]
[null,null,null,null,null,null,null,{"$f":"VLOOKUP(C:C,[2]Ajus!A$3:B$222,2,TRUE)","v":{"$error":"#N/A"}}]
[null,null,null,null,null,null,null,{"$f":"VLOOKUP(C:C,[2]Ajus!A$3:B$222,2,TRUE)","v":{"$error":"#N/A"}}]
[null,null,null,null,null,null,null,{"$f":"VLOOKUP(C:C,[2]Ajus!A$3:B$222,2,TRUE)","v":{"$error":"#N/A"}}]
[null,null,null,null,null,null,null,{"$f":"VLOOKUP(C:C,[2]Ajus!A$3:B$222,2,TRUE)","v":{"$error":"#N/A"}}]
[null,null,null,null,null,null,null,{"$f":"VLOOKUP(C:C,[2]Ajus!A$3:B$222,2,TRUE)","v":{"$error":"#N/A"}}]
[null,null,null,null,null,null,null,{"$f":"VLOOKUP(C:C,[2]Ajus!A$3:B$222,2,TRUE)","v":{"$error":"#N/A"}}]
[null,null,null,null,null,null,null,{"$f":"VLOOKUP(C:C,[2]Ajus!A$3:B$222,2,TRUE)","v":{"$error":"#N/A"}}]
[null,null,null,null,null,null,null,{"$f":"VLOOKUP(C:C,[2]Ajus!A$3:B$222,2,TRUE)","v":{"$error":"#N/A"}}]
[null,null,null,null,null,null,null,{"$f":"VLOOKUP(C:C,[2]Ajus!A$3:B$222,2,TRUE)","v":{"$error":"#N/A"}}]
[null,null,null,null,null,null,null,{"$f":"VLOOKUP(C:C,[2]Ajus!A$3:B$222,2,TRUE)","v":{"$error":"#N/A"}}]
[null,null,null,null,null,null,null,{"$f":"VLOOKUP(C:C,[2]Ajus!A$3:B$222,2,TRUE)","v":{"$error":"#N/A"}}]
[null,null,null,null,null,null,null,{"$f":"VLOOKUP(C:C,[2]Ajus!A$3:B$222,2,TRUE)","v":{"$error":"#N/A"}}]
[null,null,null,null,null,null,null,{"$f":"VLOOKUP(C:C,[2]Ajus!A$3:B$222,2,TRUE)","v":{"$error":"#N/A"}}]
[null,null,null,null,null,null,null,{"$f":"VLOOKUP(C:C,[2]Ajus!A$3:B$222,2,TRUE)","v":{"$error":"#N/A"}}]
[null,null,null,null,null,null,null,{"$f":"VLOOKUP(C:C,[2]Ajus!A$3:B$222,2,TRUE)","v":{"$error":"#N/A"}}]
[null,null,null,null,null,null,null,{"$f":"VLOOKUP(C:C,[2]Ajus!A$3:B$222,2,TRUE)","v":{"$error":"#N/A"}}]
[null,null,null,null,null,null,null,{"$f":"VLOOKUP(C:C,[2]Ajus!A$3:B$222,2,TRUE)","v":{"$error":"#N/A"}}]
[null,null,null,null,null,null,null,{"$f":"VLOOKUP(C:C,[2]Ajus!A$3:B$222,2,TRUE)","v":{"$error":"#N/A"}}]
[null,null,null,null,null,null,null,{"$f":"VLOOKUP(C:C,[2]Ajus!A$3:B$222,2,TRUE)","v":{"$error":"#N/A"}}]
[null,null,null,null,null,null,null,{"$f":"VLOOKUP(C:C,[2]Ajus!A$3:B$222,2,TRUE)","v":{"$error":"#N/A"}}]
[null,null,null,null,null,null,null,{"$f":"VLOOKUP(C:C,[2]Ajus!A$3:B$222,2,TRUE)","v":{"$error":"#N/A"}}]
[null,null,null,null,null,null,null,{"$f":"VLOOKUP(C:C,[2]Ajus!A$3:B$222,2,TRUE)","v":{"$error":"#N/A"}}]
[null,null,null,null,null,null,null,{"$f":"VLOOKUP(C:C,[2]Ajus!A$3:B$222,2,TRUE)","v":{"$error":"#N/A"}}]
[null,null,null,null,null,null,null,{"$f":"VLOOKUP(C:C,[2]Ajus!A$3:B$222,2,TRUE)","v":{"$error":"#N/A"}}]
[null,null,null,null,null,null,null,{"$f":"VLOOKUP(C:C,[2]Ajus!A$3:B$222,2,TRUE)","v":{"$error":"#N/A"}}]
[null,null,null,null,null,null,null,{"$f":"VLOOKUP(C:C,[2]Ajus!A$3:B$222,2,TRUE)","v":{"$error":"#N/A"}}]
[null,null,null,null,null,null,null,{"$f":"VLOOKUP(C:C,[2]Ajus!A$3:B$222,2,TRUE)","v":{"$error":"#N/A"}}]
[null,null,null,null,null,null,null,{"$f":"VLOOKUP(C:C,[2]Ajus!A$3:B$222,2,TRUE)","v":{"$error":"#N/A"}}]
[null,null,null,null,null,null,null,{"$f":"VLOOKUP(C:C,[2]Ajus!A$3:B$222,2,TRUE)","v":{"$error":"#N/A"}}]
[null,null,null,null,null,null,null,{"$f":"VLOOKUP(C:C,[2]Ajus!A$3:B$222,2,TRUE)","v":{"$error":"#N/A"}}]
[null,null,null,null,null,null,null,{"$f":"VLOOKUP(C:C,[2]Ajus!A$3:B$222,2,TRUE)","v":{"$error":"#N/A"}}]
[null,null,null,null,null,null,null,{"$f":"VLOOKUP(C:C,[2]Ajus!A$3:B$222,2,TRUE)","v":{"$error":"#N/A"}}]
[null,null,null,null,null,null,null,{"$f":"VLOOKUP(C:C,[2]Ajus!A$3:B$222,2,TRUE)","v":{"$error":"#N/A"}}]
[null,null,null,null,null,null,null,{"$f":"VLOOKUP(C:C,[2]Ajus!A$3:B$222,2,TRUE)","v":{"$error":"#N/A"}}]
[null,null,null,null,null,null,null,{"$f":"VLOOKUP(C:C,[2]Ajus!A$3:B$222,2,TRUE)","v":{"$error":"#N/A"}}]
[null,null,null,null,null,null,null,{"$f":"VLOOKUP(C:C,[2]Ajus!A$3:B$222,2,TRUE)","v":{"$error":"#N/A"}}]
[null,null,null,null,null,null,null,{"$f":"VLOOKUP(C:C,[2]Ajus!A$3:B$222,2,TRUE)","v":{"$error":"#N/A"}}]
[null,null,null,null,null,null,null,{"$f":"VLOOKUP(C:C,[2]Ajus!A$3:B$222,2,TRUE)","v":{"$error":"#N/A"}}]
[null,null,null,null,null,null,null,{"$f":"VLOOKUP(C:C,[2]Ajus!A$3:B$222,2,TRUE)","v":{"$error":"#N/A"}}]
[null,null,null,null,null,null,null,{"$f":"VLOOKUP(C:C,[2]Ajus!A$3:B$222,2,TRUE)","v":{"$error":"#N/A"}}]
[null,null,null,null,null,null,null,{"$f":"VLOOKUP(C:C,[2]Ajus!A$3:B$222,2,TRUE)","v":{"$error":"#N/A"}}]
[null,null,null,null,null,null,null,{"$f":"VLOOKUP(C:C,[2]Ajus!A$3:B$222,2,TRUE)","v":{"$error":"#N/A"}}]
[null,null,null,null,null,null,null,{"$f":"VLOOKUP(C:C,[2]Ajus!A$3:B$222,2,TRUE)","v":{"$error":"#N/A"}}]
[null,null,null,null,null,null,null,{"$f":"VLOOKUP(C:C,[2]Ajus!A$3:B$222,2,TRUE)","v":{"$error":"#N/A"}}]
[null,null,null,null,null,null,null,{"$f":"VLOOKUP(C:C,[2]Ajus!A$3:B$222,2,TRUE)","v":{"$error":"#N/A"}}]
[null,null,null,null,null,null,null,{"$f":"VLOOKUP(C:C,[2]Ajus!A$3:B$222,2,TRUE)","v":{"$error":"#N/A"}}]
[null,null,null,null,null,null,null,{"$f":"VLOOKUP(C:C,[2]Ajus!A$3:B$222,2,TRUE)","v":{"$error":"#N/A"}}]
[null,null,null,null,null,null,null,{"$f":"VLOOKUP(C:C,[2]Ajus!A$3:B$222,2,TRUE)","v":{"$error":"#N/A"}}]
[null,null,null,null,null,null,null,{"$f":"VLOOKUP(C:C,[2]Ajus!A$3:B$222,2,TRUE)","v":{"$error":"#N/A"}}]
[null,null,null,null,null,null,null,{"$f":"VLOOKUP(C:C,[2]Ajus!A$3:B$222,2,TRUE)","v":{"$error":"#N/A"}}]
[null,null,null,null,null,null,null,{"$f":"VLOOKUP(C:C,[2]Ajus!A$3:B$222,2,TRUE)","v":{"$error":"#N/A"}}]
[null,null,null,null,null,null,null,{"$f":"VLOOKUP(C:C,[2]Ajus!A$3:B$222,2,TRUE)","v":{"$error":"#N/A"}}]
[null,null,null,null,null,null,null,{"$f":"VLOOKUP(C:C,[2]Ajus!A$3:B$222,2,TRUE)","v":{"$error":"#N/A"}}]
[null,null,null,null,null,null,null,{"$f":"VLOOKUP(C:C,[2]Ajus!A$3:B$222,2,TRUE)","v":{"$error":"#N/A"}}]
[null,null,null,null,null,null,null,{"$f":"VLOOKUP(C:C,[2]Ajus!A$3:B$222,2,TRUE)","v":{"$error":"#N/A"}}]
[null,null,null,null,null,null,null,{"$f":"VLOOKUP(C:C,[2]Ajus!A$3:B$222,2,TRUE)","v":{"$error":"#N/A"}}]
[null,null,null,null,null,null,null,{"$f":"VLOOKUP(C:C,[2]Ajus!A$3:B$222,2,TRUE)","v":{"$error":"#N/A"}}]
[null,null,null,null,null,null,null,{"$f":"VLOOKUP(C:C,[2]Ajus!A$3:B$222,2,TRUE)","v":{"$error":"#N/A"}}]
[null,null,null,null,null,null,null,{"$f":"VLOOKUP(C:C,[2]Ajus!A$3:B$222,2,TRUE)","v":{"$error":"#N/A"}}]
[null,null,null,null,null,null,null,{"$f":"VLOOKUP(C:C,[2]Ajus!A$3:B$222,2,TRUE)","v":{"$error":"#N/A"}}]
[null,null,null,null,null,null,null,{"$f":"VLOOKUP(C:C,[2]Ajus!A$3:B$222,2,TRUE)","v":{"$error":"#N/A"}}]
[null,null,null,null,null,null,null,{"$f":"VLOOKUP(C:C,[2]Ajus!A$3:B$222,2,TRUE)","v":{"$error":"#N/A"}}]
[null,null,null,null,null,null,null,{"$f":"VLOOKUP(C:C,[2]Ajus!A$3:B$222,2,TRUE)","v":{"$error":"#N/A"}}]
[null,null,null,null,null,null,null,{"$f":"VLOOKUP(C:C,[2]Ajus!A$3:B$222,2,TRUE)","v":{"$error":"#N/A"}}]
[null,null,null,null,null,null,null,{"$f":"VLOOKUP(C:C,[2]Ajus!A$3:B$222,2,TRUE)","v":{"$error":"#N/A"}}]
[null,null,null,null,null,null,null,{"$f":"VLOOKUP(C:C,[2]Ajus!A$3:B$222,2,TRUE)","v":{"$error":"#N/A"}}]
[null,null,null,null,null,null,null,{"$f":"VLOOKUP(C:C,[2]Ajus!A$3:B$222,2,TRUE)","v":{"$error":"#N/A"}}]
[null,null,null,null,null,null,null,{"$f":"VLOOKUP(C:C,[2]Ajus!A$3:B$222,2,TRUE)","v":{"$error":"#N/A"}}]
[null,null,null,null,null,null,null,{"$f":"VLOOKUP(C:C,[2]Ajus!A$3:B$222,2,TRUE)","v":{"$error":"#N/A"}}]
[null,null,null,null,null,null,null,{"$f":"VLOOKUP(C:C,[2]Ajus!A$3:B$222,2,TRUE)","v":{"$error":"#N/A"}}]
[null,null,null,null,null,null,null,{"$f":"VLOOKUP(C:C,[2]Ajus!A$3:B$222,2,TRUE)","v":{"$error":"#N/A"}}]
[null,null,null,null,null,null,null,{"$f":"VLOOKUP(C:C,[2]Ajus!A$3:B$222,2,TRUE)","v":{"$error":"#N/A"}}]
[null,null,null,null,null,null,null,{"$f":"VLOOKUP(C:C,[2]Ajus!A$3:B$222,2,TRUE)","v":{"$error":"#N/A"}}]
[null,null,null,null,null,null,null,{"$f":"VLOOKUP(C:C,[2]Ajus!A$3:B$222,2,TRUE)","v":{"$error":"#N/A"}}]
[null,null,null,null,null,null,null,{"$f":"VLOOKUP(C:C,[2]Ajus!A$3:B$222,2,TRUE)","v":{"$error":"#N/A"}}]
[null,null,null,null,null,null,null,{"$f":"VLOOKUP(C:C,[2]Ajus!A$3:B$222,2,TRUE)","v":{"$error":"#N/A"}}]
[null,null,null,null,null,null,null,{"$f":"VLOOKUP(C:C,[2]Ajus!A$3:B$222,2,TRUE)","v":{"$error":"#N/A"}}]
[null,null,null,null,null,null,null,{"$f":"VLOOKUP(C:C,[2]Ajus!A$3:B$222,2,TRUE)","v":{"$error":"#N/A"}}]
[null,null,null,null,null,null,null,{"$f":"VLOOKUP(C:C,[2]Ajus!A$3:B$222,2,TRUE)","v":{"$error":"#N/A"}}]
[null,null,null,null,null,null,null,{"$f":"VLOOKUP(C:C,[2]Ajus!A$3:B$222,2,TRUE)","v":{"$error":"#N/A"}}]
[null,null,null,null,null,null,null,{"$f":"VLOOKUP(C:C,[2]Ajus!A$3:B$222,2,TRUE)","v":{"$error":"#N/A"}}]
[null,null,null,null,null,null,null,{"$f":"VLOOKUP(C:C,[2]Ajus!A$3:B$222,2,TRUE)","v":{"$error":"#N/A"}}]
[null,null,null,null,null,null,null,{"$f":"VLOOKUP(C:C,[2]Ajus!A$3:B$222,2,TRUE)","v":{"$error":"#N/A"}}]
[null,null,null,null,null,null,null,{"$f":"VLOOKUP(C:C,[2]Ajus!A$3:B$222,2,TRUE)","v":{"$error":"#N/A"}}]
[null,null,null,null,null,null,null,{"$f":"VLOOKUP(C:C,[2]Ajus!A$3:B$222,2,TRUE)","v":{"$error":"#N/A"}}]
[null,null,null,null,null,null,null,{"$f":"VLOOKUP(C:C,[2]Ajus!A$3:B$222,2,TRUE)","v":{"$error":"#N/A"}}]
[null,null,null,null,null,null,null,{"$f":"VLOOKUP(C:C,[2]Ajus!A$3:B$222,2,TRUE)","v":{"$error":"#N/A"}}]
[null,null,null,null,null,null,null,{"$f":"VLOOKUP(C:C,[2]Ajus!A$3:B$222,2,TRUE)","v":{"$error":"#N/A"}}]
[null,null,null,null,null,null,null,{"$f":"VLOOKUP(C:C,[2]Ajus!A$3:B$222,2,TRUE)","v":{"$error":"#N/A"}}]
[null,null,null,null,null,null,null,{"$f":"VLOOKUP(C:C,[2]Ajus!A$3:B$222,2,TRUE)","v":{"$error":"#N/A"}}]
[null,null,null,null,null,null,null,{"$f":"VLOOKUP(C:C,[2]Ajus!A$3:B$222,2,TRUE)","v":{"$error":"#N/A"}}]
[null,null,null,null,null,null,null,{"$f":"VLOOKUP(C:C,[2]Ajus!A$3:B$222,2,TRUE)","v":{"$error":"#N/A"}}]
[null,null,null,null,null,null,null,{"$f":"VLOOKUP(C:C,[2]Ajus!A$3:B$222,2,TRUE)","v":{"$error":"#N/A"}}]
[null,null,null,null,null,null,null,{"$f":"VLOOKUP(C:C,[2]Ajus!A$3:B$222,2,TRUE)","v":{"$error":"#N/A"}}]
[null,null,null,null,null,null,null,{"$f":"VLOOKUP(C:C,[2]Ajus!A$3:B$222,2,TRUE)","v":{"$error":"#N/A"}}]
[null,null,null,null,null,null,null,{"$f":"VLOOKUP(C:C,[2]Ajus!A$3:B$222,2,TRUE)","v":{"$error":"#N/A"}}]
[null,null,null,null,null,null,null,{"$f":"VLOOKUP(C:C,[2]Ajus!A$3:B$222,2,TRUE)","v":{"$error":"#N/A"}}]
[null,null,null,null,null,null,null,{"$f":"VLOOKUP(C:C,[2]Ajus!A$3:B$222,2,TRUE)","v":{"$error":"#N/A"}}]
[null,null,null,null,null,null,null,{"$f":"VLOOKUP(C:C,[2]Ajus!A$3:B$222,2,TRUE)","v":{"$error":"#N/A"}}]
[null,null,null,null,null,null,null,{"$f":"VLOOKUP(C:C,[2]Ajus!A$3:B$222,2,TRUE)","v":{"$error":"#N/A"}}]
[null,null,null,null,null,null,null,{"$f":"VLOOKUP(C:C,[2]Ajus!A$3:B$222,2,TRUE)","v":{"$error":"#N/A"}}]
[null,null,null,null,null,null,null,{"$f":"VLOOKUP(C:C,[2]Ajus!A$3:B$222,2,TRUE)","v":{"$error":"#N/A"}}]
[null,null,null,null,null,null,null,{"$f":"VLOOKUP(C:C,[2]Ajus!A$3:B$222,2,TRUE)","v":{"$error":"#N/A"}}]
[null,null,null,null,null,null,null,{"$f":"VLOOKUP(C:C,[2]Ajus!A$3:B$222,2,TRUE)","v":{"$error":"#N/A"}}]
[null,null,null,null,null,null,null,{"$f":"VLOOKUP(C:C,[2]Ajus!A$3:B$222,2,TRUE)","v":{"$error":"#N/A"}}]
[null,null,null,null,null,null,null,{"$f":"VLOOKUP(C:C,[2]Ajus!A$3:B$222,2,TRUE)","v":{"$error":"#N/A"}}]
[null,null,null,null,null,null,null,{"$f":"VLOOKUP(C:C,[2]Ajus!A$3:B$222,2,TRUE)","v":{"$error":"#N/A"}}]
[null,null,null,null,null,null,null,{"$f":"VLOOKUP(C:C,[2]Ajus!A$3:B$222,2,TRUE)","v":{"$error":"#N/A"}}]
[null,null,null,null,null,null,null,{"$f":"VLOOKUP(C:C,[2]Ajus!A$3:B$222,2,TRUE)","v":{"$error":"#N/A"}}]
[null,null,null,null,null,null,null,{"$f":"VLOOKUP(C:C,[2]Ajus!A$3:B$222,2,TRUE)","v":{"$error":"#N/A"}}]
[null,null,null,null,null,null,null,{"$f":"VLOOKUP(C:C,[2]Ajus!A$3:B$222,2,TRUE)","v":{"$error":"#N/A"}}]
[null,null,null,null,null,null,null,{"$f":"VLOOKUP(C:C,[2]Ajus!A$3:B$222,2,TRUE)","v":{"$error":"#N/A"}}]
[null,null,null,null,null,null,null,{"$f":"VLOOKUP(C:C,[2]Ajus!A$3:B$222,2,TRUE)","v":{"$error":"#N/A"}}]
[null,null,null,null,null,null,null,{"$f":"VLOOKUP(C:C,[2]Ajus!A$3:B$222,2,TRUE)","v":{"$error":"#N/A"}}]
[null,null,null,null,null,null,null,{"$f":"VLOOKUP(C:C,[2]Ajus!A$3:B$222,2,TRUE)","v":{"$error":"#N/A"}}]
[null,null,null,null,null,null,null,{"$f":"VLOOKUP(C:C,[2]Ajus!A$3:B$222,2,TRUE)","v":{"$error":"#N/A"}}]
[null,null,null,null,null,null,null,{"$f":"VLOOKUP(C:C,[2]Ajus!A$3:B$222,2,TRUE)","v":{"$error":"#N/A"}}]
[null,null,null,null,null,null,null,{"$f":"VLOOKUP(C:C,[2]Ajus!A$3:B$222,2,TRUE)","v":{"$error":"#N/A"}}]
[null,null,null,null,null,null,null,{"$f":"VLOOKUP(C:C,[2]Ajus!A$3:B$222,2,TRUE)","v":{"$error":"#N/A"}}]
[null,null,null,null,null,null,null,{"$f":"VLOOKUP(C:C,[2]Ajus!A$3:B$222,2,TRUE)","v":{"$error":"#N/A"}}]
[null,null,null,null,null,null,null,{"$f":"VLOOKUP(C:C,[2]Ajus!A$3:B$222,2,TRUE)","v":{"$error":"#N/A"}}]
[null,null,null,null,null,null,null,{"$f":"VLOOKUP(C:C,[2]Ajus!A$3:B$222,2,TRUE)","v":{"$error":"#N/A"}}]
[null,null,null,null,null,null,null,{"$f":"VLOOKUP(C:C,[2]Ajus!A$3:B$222,2,TRUE)","v":{"$error":"#N/A"}}]
[null,null,null,null,null,null,null,{"$f":"VLOOKUP(C:C,[2]Ajus!A$3:B$222,2,TRUE)","v":{"$error":"#N/A"}}]
[null,null,null,null,null,null,null,{"$f":"VLOOKUP(C:C,[2]Ajus!A$3:B$222,2,TRUE)","v":{"$error":"#N/A"}}]
[null,null,null,null,null,null,null,{"$f":"VLOOKUP(C:C,[2]Ajus!A$3:B$222,2,TRUE)","v":{"$error":"#N/A"}}]
[null,null,null,null,null,null,null,{"$f":"VLOOKUP(C:C,[2]Ajus!A$3:B$222,2,TRUE)","v":{"$error":"#N/A"}}]
[null,null,null,null,null,null,null,{"$f":"VLOOKUP(C:C,[2]Ajus!A$3:B$222,2,TRUE)","v":{"$error":"#N/A"}}]
[null,null,null,null,null,null,null,{"$f":"VLOOKUP(C:C,[2]Ajus!A$3:B$222,2,TRUE)","v":{"$error":"#N/A"}}]
[null,null,null,null,null,null,null,{"$f":"VLOOKUP(C:C,[2]Ajus!A$3:B$222,2,TRUE)","v":{"$error":"#N/A"}}]
[null,null,null,null,null,null,null,{"$f":"VLOOKUP(C:C,[2]Ajus!A$3:B$222,2,TRUE)","v":{"$error":"#N/A"}}]
[null,null,null,null,null,null,null,{"$f":"VLOOKUP(C:C,[2]Ajus!A$3:B$222,2,TRUE)","v":{"$error":"#N/A"}}]
[null,null,null,null,null,null,null,{"$f":"VLOOKUP(C:C,[2]Ajus!A$3:B$222,2,TRUE)","v":{"$error":"#N/A"}}]
[null,null,null,null,null,null,null,{"$f":"VLOOKUP(C:C,[2]Ajus!A$3:B$222,2,TRUE)","v":{"$error":"#N/A"}}]
[null,null,null,null,null,null,null,{"$f":"VLOOKUP(C:C,[2]Ajus!A$3:B$222,2,TRUE)","v":{"$error":"#N/A"}}]
[null,null,null,null,null,null,null,{"$f":"VLOOKUP(C:C,[2]Ajus!A$3:B$222,2,TRUE)","v":{"$error":"#N/A"}}]
[null,null,null,null,null,null,null,{"$f":"VLOOKUP(C:C,[2]Ajus!A$3:B$222,2,TRUE)","v":{"$error":"#N/A"}}]
[null,null,null,null,null,null,null,{"$f":"VLOOKUP(C:C,[2]Ajus!A$3:B$222,2,TRUE)","v":{"$error":"#N/A"}}]
[null,null,null,null,null,null,null,{"$f":"VLOOKUP(C:C,[2]Ajus!A$3:B$222,2,TRUE)","v":{"$error":"#N/A"}}]
[null,null,null,null,null,null,null,{"$f":"VLOOKUP(C:C,[2]Ajus!A$3:B$222,2,TRUE)","v":{"$error":"#N/A"}}]
[null,null,null,null,null,null,null,{"$f":"VLOOKUP(C:C,[2]Ajus!A$3:B$222,2,TRUE)","v":{"$error":"#N/A"}}]
[null,null,null,null,null,null,null,{"$f":"VLOOKUP(C:C,[2]Ajus!A$3:B$222,2,TRUE)","v":{"$error":"#N/A"}}]
[null,null,null,null,null,null,null,{"$f":"VLOOKUP(C:C,[2]Ajus!A$3:B$222,2,TRUE)","v":{"$error":"#N/A"}}]
[null,null,null,null,null,null,null,{"$f":"VLOOKUP(C:C,[2]Ajus!A$3:B$222,2,TRUE)","v":{"$error":"#N/A"}}]
[null,null,null,null,null,null,null,{"$f":"VLOOKUP(C:C,[2]Ajus!A$3:B$222,2,TRUE)","v":{"$error":"#N/A"}}]
[null,null,null,null,null,null,null,{"$f":"VLOOKUP(C:C,[2]Ajus!A$3:B$222,2,TRUE)","v":{"$error":"#N/A"}}]
[null,null,null,null,null,null,null,{"$f":"VLOOKUP(C:C,[2]Ajus!A$3:B$222,2,TRUE)","v":{"$error":"#N/A"}}]
[null,null,null,null,null,null,null,{"$f":"VLOOKUP(C:C,[2]Ajus!A$3:B$222,2,TRUE)","v":{"$error":"#N/A"}}]
[null,null,null,null,null,null,null,{"$f":"VLOOKUP(C:C,[2]Ajus!A$3:B$222,2,TRUE)","v":{"$error":"#N/A"}}]
[null,null,null,null,null,null,null,{"$f":"VLOOKUP(C:C,[2]Ajus!A$3:B$222,2,TRUE)","v":{"$error":"#N/A"}}]
[null,null,null,null,null,null,null,{"$f":"VLOOKUP(C:C,[2]Ajus!A$3:B$222,2,TRUE)","v":{"$error":"#N/A"}}]
[null,null,null,null,null,null,null,{"$f":"VLOOKUP(C:C,[2]Ajus!A$3:B$222,2,TRUE)","v":{"$error":"#N/A"}}]
[null,null,null,null,null,null,null,{"$f":"VLOOKUP(C:C,[2]Ajus!A$3:B$222,2,TRUE)","v":{"$error":"#N/A"}}]
[null,null,null,null,null,null,null,{"$f":"VLOOKUP(C:C,[2]Ajus!A$3:B$222,2,TRUE)","v":{"$error":"#N/A"}}]
[null,null,null,null,null,null,null,{"$f":"VLOOKUP(C:C,[2]Ajus!A$3:B$222,2,TRUE)","v":{"$error":"#N/A"}}]
[null,null,null,null,null,null,null,{"$f":"VLOOKUP(C:C,[2]Ajus!A$3:B$222,2,TRUE)","v":{"$error":"#N/A"}}]
[null,null,null,null,null,null,null,{"$f":"VLOOKUP(C:C,[2]Ajus!A$3:B$222,2,TRUE)","v":{"$error":"#N/A"}}]
[null,null,null,null,null,null,null,{"$f":"VLOOKUP(C:C,[2]Ajus!A$3:B$222,2,TRUE)","v":{"$error":"#N/A"}}]
[null,null,null,null,null,null,null,{"$f":"VLOOKUP(C:C,[2]Ajus!A$3:B$222,2,TRUE)","v":{"$error":"#N/A"}}]
[null,null,null,null,null,null,null,{"$f":"VLOOKUP(C:C,[2]Ajus!A$3:B$222,2,TRUE)","v":{"$error":"#N/A"}}]
[null,null,null,null,null,null,null,{"$f":"VLOOKUP(C:C,[2]Ajus!A$3:B$222,2,TRUE)","v":{"$error":"#N/A"}}]
[null,null,null,null,null,null,null,{"$f":"VLOOKUP(C:C,[2]Ajus!A$3:B$222,2,TRUE)","v":{"$error":"#N/A"}}]
[null,null,null,null,null,null,null,{"$f":"VLOOKUP(C:C,[2]Ajus!A$3:B$222,2,TRUE)","v":{"$error":"#N/A"}}]
[null,null,null,null,null,null,null,{"$f":"VLOOKUP(C:C,[2]Ajus!A$3:B$222,2,TRUE)","v":{"$error":"#N/A"}}]
[null,null,null,null,null,null,null,{"$f":"VLOOKUP(C:C,[2]Ajus!A$3:B$222,2,TRUE)","v":{"$error":"#N/A"}}]
[null,null,null,null,null,null,null,{"$f":"VLOOKUP(C:C,[2]Ajus!A$3:B$222,2,TRUE)","v":{"$error":"#N/A"}}]
[null,null,null,null,null,null,null,{"$f":"VLOOKUP(C:C,[2]Ajus!A$3:B$222,2,TRUE)","v":{"$error":"#N/A"}}]
[null,null,null,null,null,null,null,{"$f":"VLOOKUP(C:C,[2]Ajus!A$3:B$222,2,TRUE)","v":{"$error":"#N/A"}}]
[null,null,null,null,null,null,null,{"$f":"VLOOKUP(C:C,[2]Ajus!A$3:B$222,2,TRUE)","v":{"$error":"#N/A"}}]
[null,null,null,null,null,null,null,{"$f":"VLOOKUP(C:C,[2]Ajus!A$3:B$222,2,TRUE)","v":{"$error":"#N/A"}}]
[null,null,null,null,null,null,null,{"$f":"VLOOKUP(C:C,[2]Ajus!A$3:B$222,2,TRUE)","v":{"$error":"#N/A"}}]
[null,null,null,null,null,null,null,{"$f":"VLOOKUP(C:C,[2]Ajus!A$3:B$222,2,TRUE)","v":{"$error":"#N/A"}}]
[null,null,null,null,null,null,null,{"$f":"VLOOKUP(C:C,[2]Ajus!A$3:B$222,2,TRUE)","v":{"$error":"#N/A"}}]
[null,null,null,null,null,null,null,{"$f":"VLOOKUP(C:C,[2]Ajus!A$3:B$222,2,TRUE)","v":{"$error":"#N/A"}}]
[null,null,null,null,null,null,null,{"$f":"VLOOKUP(C:C,[2]Ajus!A$3:B$222,2,TRUE)","v":{"$error":"#N/A"}}]
[null,null,null,null,null,null,null,{"$f":"VLOOKUP(C:C,[2]Ajus!A$3:B$222,2,TRUE)","v":{"$error":"#N/A"}}]
[null,null,null,null,null,null,null,{"$f":"VLOOKUP(C:C,[2]Ajus!A$3:B$222,2,TRUE)","v":{"$error":"#N/A"}}]
[null,null,null,null,null,null,null,{"$f":"VLOOKUP(C:C,[2]Ajus!A$3:B$222,2,TRUE)","v":{"$error":"#N/A"}}]
[null,null,null,null,null,null,null,{"$f":"VLOOKUP(C:C,[2]Ajus!A$3:B$222,2,TRUE)","v":{"$error":"#N/A"}}]
[null,null,null,null,null,null,null,{"$f":"VLOOKUP(C:C,[2]Ajus!A$3:B$222,2,TRUE)","v":{"$error":"#N/A"}}]
[null,null,null,null,null,null,null,{"$f":"VLOOKUP(C:C,[2]Ajus!A$3:B$222,2,TRUE)","v":{"$error":"#N/A"}}]
[null,null,null,null,null,null,null,{"$f":"VLOOKUP(C:C,[2]Ajus!A$3:B$222,2,TRUE)","v":{"$error":"#N/A"}}]
[null,null,null,null,null,null,null,{"$f":"VLOOKUP(C:C,[2]Ajus!A$3:B$222,2,TRUE)","v":{"$error":"#N/A"}}]
[null,null,null,null,null,null,null,{"$f":"VLOOKUP(C:C,[2]Ajus!A$3:B$222,2,TRUE)","v":{"$error":"#N/A"}}]
[null,null,null,null,null,null,null,{"$f":"VLOOKUP(C:C,[2]Ajus!A$3:B$222,2,TRUE)","v":{"$error":"#N/A"}}]
[null,null,null,null,null,null,null,{"$f":"VLOOKUP(C:C,[2]Ajus!A$3:B$222,2,TRUE)","v":{"$error":"#N/A"}}]
[null,null,null,null,null,null,null,{"$f":"VLOOKUP(C:C,[2]Ajus!A$3:B$222,2,TRUE)","v":{"$error":"#N/A"}}]
[null,null,null,null,null,null,null,{"$f":"VLOOKUP(C:C,[2]Ajus!A$3:B$222,2,TRUE)","v":{"$error":"#N/A"}}]
[null,null,null,null,null,null,null,{"$f":"VLOOKUP(C:C,[2]Ajus!A$3:B$222,2,TRUE)","v":{"$error":"#N/A"}}]
[null,null,null,null,null,null,null,{"$f":"VLOOKUP(C:C,[2]Ajus!A$3:B$222,2,TRUE)","v":{"$error":"#N/A"}}]
[null,null,null,null,null,null,null,{"$f":"VLOOKUP(C:C,[2]Ajus!A$3:B$222,2,TRUE)","v":{"$error":"#N/A"}}]
[null,null,null,null,null,null,null,{"$f":"VLOOKUP(C:C,[2]Ajus!A$3:B$222,2,TRUE)","v":{"$error":"#N/A"}}]
[null,null,null,null,null,null,null,{"$f":"VLOOKUP(C:C,[2]Ajus!A$3:B$222,2,TRUE)","v":{"$error":"#N/A"}}]
[null,null,null,null,null,null,null,{"$f":"VLOOKUP(C:C,[2]Ajus!A$3:B$222,2,TRUE)","v":{"$error":"#N/A"}}]
[null,null,null,null,null,null,null,{"$f":"VLOOKUP(C:C,[2]Ajus!A$3:B$222,2,TRUE)","v":{"$error":"#N/A"}}]
[null,null,null,null,null,null,null,{"$f":"VLOOKUP(C:C,[2]Ajus!A$3:B$222,2,TRUE)","v":{"$error":"#N/A"}}]
[null,null,null,null,null,null,null,{"$f":"VLOOKUP(C:C,[2]Ajus!A$3:B$222,2,TRUE)","v":{"$error":"#N/A"}}]
[null,null,null,null,null,null,null,{"$f":"VLOOKUP(C:C,[2]Ajus!A$3:B$222,2,TRUE)","v":{"$error":"#N/A"}}]
[null,null,null,null,null,null,null,{"$f":"VLOOKUP(C:C,[2]Ajus!A$3:B$222,2,TRUE)","v":{"$error":"#N/A"}}]
[null,null,null,null,null,null,null,{"$f":"VLOOKUP(C:C,[2]Ajus!A$3:B$222,2,TRUE)","v":{"$error":"#N/A"}}]
[null,null,null,null,null,null,null,{"$f":"VLOOKUP(C:C,[2]Ajus!A$3:B$222,2,TRUE)","v":{"$error":"#N/A"}}]
[null,null,null,null,null,null,null,{"$f":"VLOOKUP(C:C,[2]Ajus!A$3:B$222,2,TRUE)","v":{"$error":"#N/A"}}]
[null,null,null,null,null,null,null,{"$f":"VLOOKUP(C:C,[2]Ajus!A$3:B$222,2,TRUE)","v":{"$error":"#N/A"}}]
[null,null,null,null,null,null,null,{"$f":"VLOOKUP(C:C,[2]Ajus!A$3:B$222,2,TRUE)","v":{"$error":"#N/A"}}]
[null,null,null,null,null,null,null,{"$f":"VLOOKUP(C:C,[2]Ajus!A$3:B$222,2,TRUE)","v":{"$error":"#N/A"}}]
[null,null,null,null,null,null,null,{"$f":"VLOOKUP(C:C,[2]Ajus!A$3:B$222,2,TRUE)","v":{"$error":"#N/A"}}]
[null,null,null,null,null,null,null,{"$f":"VLOOKUP(C:C,[2]Ajus!A$3:B$222,2,TRUE)","v":{"$error":"#N/A"}}]
[null,null,null,null,null,null,null,{"$f":"VLOOKUP(C:C,[2]Ajus!A$3:B$222,2,TRUE)","v":{"$error":"#N/A"}}]
[null,null,null,null,null,null,null,{"$f":"VLOOKUP(C:C,[2]Ajus!A$3:B$222,2,TRUE)","v":{"$error":"#N/A"}}]
[null,null,null,null,null,null,null,{"$f":"VLOOKUP(C:C,[2]Ajus!A$3:B$222,2,TRUE)","v":{"$error":"#N/A"}}]
[null,null,null,null,null,null,null,{"$f":"VLOOKUP(C:C,[2]Ajus!A$3:B$222,2,TRUE)","v":{"$error":"#N/A"}}]
[null,null,null,null,null,null,null,{"$f":"VLOOKUP(C:C,[2]Ajus!A$3:B$222,2,TRUE)","v":{"$error":"#N/A"}}]
[null,null,null,null,null,null,null,{"$f":"VLOOKUP(C:C,[2]Ajus!A$3:B$222,2,TRUE)","v":{"$error":"#N/A"}}]
[null,null,null,null,null,null,null,{"$f":"VLOOKUP(C:C,[2]Ajus!A$3:B$222,2,TRUE)","v":{"$error":"#N/A"}}]
[null,null,null,null,null,null,null,{"$f":"VLOOKUP(C:C,[2]Ajus!A$3:B$222,2,TRUE)","v":{"$error":"#N/A"}}]
[null,null,null,null,null,null,null,{"$f":"VLOOKUP(C:C,[2]Ajus!A$3:B$222,2,TRUE)","v":{"$error":"#N/A"}}]
[null,null,null,null,null,null,null,{"$f":"VLOOKUP(C:C,[2]Ajus!A$3:B$222,2,TRUE)","v":{"$error":"#N/A"}}]
[null,null,null,null,null,null,null,{"$f":"VLOOKUP(C:C,[2]Ajus!A$3:B$222,2,TRUE)","v":{"$error":"#N/A"}}]
[null,null,null,null,null,null,null,{"$f":"VLOOKUP(C:C,[2]Ajus!A$3:B$222,2,TRUE)","v":{"$error":"#N/A"}}]
[null,null,null,null,null,null,null,{"$f":"VLOOKUP(C:C,[2]Ajus!A$3:B$222,2,TRUE)","v":{"$error":"#N/A"}}]
[null,null,null,null,null,null,null,{"$f":"VLOOKUP(C:C,[2]Ajus!A$3:B$222,2,TRUE)","v":{"$error":"#N/A"}}]
[null,null,null,null,null,null,null,{"$f":"VLOOKUP(C:C,[2]Ajus!A$3:B$222,2,TRUE)","v":{"$error":"#N/A"}}]
[null,null,null,null,null,null,null,{"$f":"VLOOKUP(C:C,[2]Ajus!A$3:B$222,2,TRUE)","v":{"$error":"#N/A"}}]
[null,null,null,null,null,null,null,{"$f":"VLOOKUP(C:C,[2]Ajus!A$3:B$222,2,TRUE)","v":{"$error":"#N/A"}}]
[null,null,null,null,null,null,null,{"$f":"VLOOKUP(C:C,[2]Ajus!A$3:B$222,2,TRUE)","v":{"$error":"#N/A"}}]
[null,null,null,null,null,null,null,{"$f":"VLOOKUP(C:C,[2]Ajus!A$3:B$222,2,TRUE)","v":{"$error":"#N/A"}}]
[null,null,null,null,null,null,null,{"$f":"VLOOKUP(C:C,[2]Ajus!A$3:B$222,2,TRUE)","v":{"$error":"#N/A"}}]
[null,null,null,null,null,null,null,{"$f":"VLOOKUP(C:C,[2]Ajus!A$3:B$222,2,TRUE)","v":{"$error":"#N/A"}}]
[null,null,null,null,null,null,null,{"$f":"VLOOKUP(C:C,[2]Ajus!A$3:B$222,2,TRUE)","v":{"$error":"#N/A"}}]
[null,null,null,null,null,null,null,{"$f":"VLOOKUP(C:C,[2]Ajus!A$3:B$222,2,TRUE)","v":{"$error":"#N/A"}}]
[null,null,null,null,null,null,null,{"$f":"VLOOKUP(C:C,[2]Ajus!A$3:B$222,2,TRUE)","v":{"$error":"#N/A"}}]
[null,null,null,null,null,null,null,{"$f":"VLOOKUP(C:C,[2]Ajus!A$3:B$222,2,TRUE)","v":{"$error":"#N/A"}}]
[null,null,null,null,null,null,null,{"$f":"VLOOKUP(C:C,[2]Ajus!A$3:B$222,2,TRUE)","v":{"$error":"#N/A"}}]
[null,null,null,null,null,null,null,{"$f":"VLOOKUP(C:C,[2]Ajus!A$3:B$222,2,TRUE)","v":{"$error":"#N/A"}}]
[null,null,null,null,null,null,null,{"$f":"VLOOKUP(C:C,[2]Ajus!A$3:B$222,2,TRUE)","v":{"$error":"#N/A"}}]
[null,null,null,null,null,null,null,{"$f":"VLOOKUP(C:C,[2]Ajus!A$3:B$222,2,TRUE)","v":{"$error":"#N/A"}}]
[null,null,null,null,null,null,null,{"$f":"VLOOKUP(C:C,[2]Ajus!A$3:B$222,2,TRUE)","v":{"$error":"#N/A"}}]
[null,null,null,null,null,null,null,{"$f":"VLOOKUP(C:C,[2]Ajus!A$3:B$222,2,TRUE)","v":{"$error":"#N/A"}}]
[null,null,null,null,null,null,null,{"$f":"VLOOKUP(C:C,[2]Ajus!A$3:B$222,2,TRUE)","v":{"$error":"#N/A"}}]
[null,null,null,null,null,null,null,{"$f":"VLOOKUP(C:C,[2]Ajus!A$3:B$222,2,TRUE)","v":{"$error":"#N/A"}}]
[null,null,null,null,null,null,null,{"$f":"VLOOKUP(C:C,[2]Ajus!A$3:B$222,2,TRUE)","v":{"$error":"#N/A"}}]
[null,null,null,null,null,null,null,{"$f":"VLOOKUP(C:C,[2]Ajus!A$3:B$222,2,TRUE)","v":{"$error":"#N/A"}}]
[null,null,null,null,null,null,null,{"$f":"VLOOKUP(C:C,[2]Ajus!A$3:B$222,2,TRUE)","v":{"$error":"#N/A"}}]
[null,null,null,null,null,null,null,{"$f":"VLOOKUP(C:C,[2]Ajus!A$3:B$222,2,TRUE)","v":{"$error":"#N/A"}}]
[null,null,null,null,null,null,null,{"$f":"VLOOKUP(C:C,[2]Ajus!A$3:B$222,2,TRUE)","v":{"$error":"#N/A"}}]
[null,null,null,null,null,null,null,{"$f":"VLOOKUP(C:C,[2]Ajus!A$3:B$222,2,TRUE)","v":{"$error":"#N/A"}}]
[null,null,null,null,null,null,null,{"$f":"VLOOKUP(C:C,[2]Ajus!A$3:B$222,2,TRUE)","v":{"$error":"#N/A"}}]
[null,null,null,null,null,null,null,{"$f":"VLOOKUP(C:C,[2]Ajus!A$3:B$222,2,TRUE)","v":{"$error":"#N/A"}}]
[null,null,null,null,null,null,null,{"$f":"VLOOKUP(C:C,[2]Ajus!A$3:B$222,2,TRUE)","v":{"$error":"#N/A"}}]
[null,null,null,null,null,null,null,{"$f":"VLOOKUP(C:C,[2]Ajus!A$3:B$222,2,TRUE)","v":{"$error":"#N/A"}}]
[null,null,null,null,null,null,null,{"$f":"VLOOKUP(C:C,[2]Ajus!A$3:B$222,2,TRUE)","v":{"$error":"#N/A"}}]
[null,null,null,null,null,null,null,{"$f":"VLOOKUP(C:C,[2]Ajus!A$3:B$222,2,TRUE)","v":{"$error":"#N/A"}}]
[null,null,null,null,null,null,null,{"$f":"VLOOKUP(C:C,[2]Ajus!A$3:B$222,2,TRUE)","v":{"$error":"#N/A"}}]
[null,null,null,null,null,null,null,{"$f":"VLOOKUP(C:C,[2]Ajus!A$3:B$222,2,TRUE)","v":{"$error":"#N/A"}}]
[null,null,null,null,null,null,null,{"$f":"VLOOKUP(C:C,[2]Ajus!A$3:B$222,2,TRUE)","v":{"$error":"#N/A"}}]
[null,null,null,null,null,null,null,{"$f":"VLOOKUP(C:C,[2]Ajus!A$3:B$222,2,TRUE)","v":{"$error":"#N/A"}}]
[null,null,null,null,null,null,null,{"$f":"VLOOKUP(C:C,[2]Ajus!A$3:B$222,2,TRUE)","v":{"$error":"#N/A"}}]
[null,null,null,null,null,null,null,{"$f":"VLOOKUP(C:C,[2]Ajus!A$3:B$222,2,TRUE)","v":{"$error":"#N/A"}}]
[null,null,null,null,null,null,null,{"$f":"VLOOKUP(C:C,[2]Ajus!A$3:B$222,2,TRUE)","v":{"$error":"#N/A"}}]
[null,null,null,null,null,null,null,{"$f":"VLOOKUP(C:C,[2]Ajus!A$3:B$222,2,TRUE)","v":{"$error":"#N/A"}}]
[null,null,null,null,null,null,null,{"$f":"VLOOKUP(C:C,[2]Ajus!A$3:B$222,2,TRUE)","v":{"$error":"#N/A"}}]
[null,null,null,null,null,null,null,{"$f":"VLOOKUP(C:C,[2]Ajus!A$3:B$222,2,TRUE)","v":{"$error":"#N/A"}}]
[null,null,null,null,null,null,null,{"$f":"VLOOKUP(C:C,[2]Ajus!A$3:B$222,2,TRUE)","v":{"$error":"#N/A"}}]
[null,null,null,null,null,null,null,{"$f":"VLOOKUP(C:C,[2]Ajus!A$3:B$222,2,TRUE)","v":{"$error":"#N/A"}}]
[null,null,null,null,null,null,null,{"$f":"VLOOKUP(C:C,[2]Ajus!A$3:B$222,2,TRUE)","v":{"$error":"#N/A"}}]
[null,null,null,null,null,null,null,{"$f":"VLOOKUP(C:C,[2]Ajus!A$3:B$222,2,TRUE)","v":{"$error":"#N/A"}}]
[null,null,null,null,null,null,null,{"$f":"VLOOKUP(C:C,[2]Ajus!A$3:B$222,2,TRUE)","v":{"$error":"#N/A"}}]
[null,null,null,null,null,null,null,{"$f":"VLOOKUP(C:C,[2]Ajus!A$3:B$222,2,TRUE)","v":{"$error":"#N/A"}}]
[null,null,null,null,null,null,null,{"$f":"VLOOKUP(C:C,[2]Ajus!A$3:B$222,2,TRUE)","v":{"$error":"#N/A"}}]
[null,null,null,null,null,null,null,{"$f":"VLOOKUP(C:C,[2]Ajus!A$3:B$222,2,TRUE)","v":{"$error":"#N/A"}}]
[null,null,null,null,null,null,null,{"$f":"VLOOKUP(C:C,[2]Ajus!A$3:B$222,2,TRUE)","v":{"$error":"#N/A"}}]
[null,null,null,null,null,null,null,{"$f":"VLOOKUP(C:C,[2]Ajus!A$3:B$222,2,TRUE)","v":{"$error":"#N/A"}}]
[null,null,null,null,null,null,null,{"$f":"VLOOKUP(C:C,[2]Ajus!A$3:B$222,2,TRUE)","v":{"$error":"#N/A"}}]
[null,null,null,null,null,null,null,{"$f":"VLOOKUP(C:C,[2]Ajus!A$3:B$222,2,TRUE)","v":{"$error":"#N/A"}}]
[null,null,null,null,null,null,null,{"$f":"VLOOKUP(C:C,[2]Ajus!A$3:B$222,2,TRUE)","v":{"$error":"#N/A"}}]
[null,null,null,null,null,null,null,{"$f":"VLOOKUP(C:C,[2]Ajus!A$3:B$222,2,TRUE)","v":{"$error":"#N/A"}}]
[null,null,null,null,null,null,null,{"$f":"VLOOKUP(C:C,[2]Ajus!A$3:B$222,2,TRUE)","v":{"$error":"#N/A"}}]
[null,null,null,null,null,null,null,{"$f":"VLOOKUP(C:C,[2]Ajus!A$3:B$222,2,TRUE)","v":{"$error":"#N/A"}}]
[null,null,null,null,null,null,null,{"$f":"VLOOKUP(C:C,[2]Ajus!A$3:B$222,2,TRUE)","v":{"$error":"#N/A"}}]
[null,null,null,null,null,null,null,{"$f":"VLOOKUP(C:C,[2]Ajus!A$3:B$222,2,TRUE)","v":{"$error":"#N/A"}}]
[null,null,null,null,null,null,null,{"$f":"VLOOKUP(C:C,[2]Ajus!A$3:B$222,2,TRUE)","v":{"$error":"#N/A"}}]
[null,null,null,null,null,null,null,{"$f":"VLOOKUP(C:C,[2]Ajus!A$3:B$222,2,TRUE)","v":{"$error":"#N/A"}}]
[null,null,null,null,null,null,null,{"$f":"VLOOKUP(C:C,[2]Ajus!A$3:B$222,2,TRUE)","v":{"$error":"#N/A"}}]
[null,null,null,null,null,null,null,{"$f":"VLOOKUP(C:C,[2]Ajus!A$3:B$222,2,TRUE)","v":{"$error":"#N/A"}}]
[null,null,null,null,null,null,null,{"$f":"VLOOKUP(C:C,[2]Ajus!A$3:B$222,2,TRUE)","v":{"$error":"#N/A"}}]
[null,null,null,null,null,null,null,{"$f":"VLOOKUP(C:C,[2]Ajus!A$3:B$222,2,TRUE)","v":{"$error":"#N/A"}}]
[null,null,null,null,null,null,null,{"$f":"VLOOKUP(C:C,[2]Ajus!A$3:B$222,2,TRUE)","v":{"$error":"#N/A"}}]
[null,null,null,null,null,null,null,{"$f":"VLOOKUP(C:C,[2]Ajus!A$3:B$222,2,TRUE)","v":{"$error":"#N/A"}}]
[null,null,null,null,null,null,null,{"$f":"VLOOKUP(C:C,[2]Ajus!A$3:B$222,2,TRUE)","v":{"$error":"#N/A"}}]
[null,null,null,null,null,null,null,{"$f":"VLOOKUP(C:C,[2]Ajus!A$3:B$222,2,TRUE)","v":{"$error":"#N/A"}}]
[null,null,null,null,null,null,null,{"$f":"VLOOKUP(C:C,[2]Ajus!A$3:B$222,2,TRUE)","v":{"$error":"#N/A"}}]
[null,null,null,null,null,null,null,{"$f":"VLOOKUP(C:C,[2]Ajus!A$3:B$222,2,TRUE)","v":{"$error":"#N/A"}}]
[null,null,null,null,null,null,null,{"$f":"VLOOKUP(C:C,[2]Ajus!A$3:B$222,2,TRUE)","v":{"$error":"#N/A"}}]
[null,null,null,null,null,null,null,{"$f":"VLOOKUP(C:C,[2]Ajus!A$3:B$222,2,TRUE)","v":{"$error":"#N/A"}}]
[null,null,null,null,null,null,null,{"$f":"VLOOKUP(C:C,[2]Ajus!A$3:B$222,2,TRUE)","v":{"$error":"#N/A"}}]
[null,null,null,null,null,null,null,{"$f":"VLOOKUP(C:C,[2]Ajus!A$3:B$222,2,TRUE)","v":{"$error":"#N/A"}}]
[null,null,null,null,null,null,null,{"$f":"VLOOKUP(C:C,[2]Ajus!A$3:B$222,2,TRUE)","v":{"$error":"#N/A"}}]
[null,null,null,null,null,null,null,{"$f":"VLOOKUP(C:C,[2]Ajus!A$3:B$222,2,TRUE)","v":{"$error":"#N/A"}}]
[null,null,null,null,null,null,null,{"$f":"VLOOKUP(C:C,[2]Ajus!A$3:B$222,2,TRUE)","v":{"$error":"#N/A"}}]
[null,null,null,null,null,null,null,{"$f":"VLOOKUP(C:C,[2]Ajus!A$3:B$222,2,TRUE)","v":{"$error":"#N/A"}}]
[null,null,null,null,null,null,null,{"$f":"VLOOKUP(C:C,[2]Ajus!A$3:B$222,2,TRUE)","v":{"$error":"#N/A"}}]
[null,null,null,null,null,null,null,{"$f":"VLOOKUP(C:C,[2]Ajus!A$3:B$222,2,TRUE)","v":{"$error":"#N/A"}}]
[null,null,null,null,null,null,null,{"$f":"VLOOKUP(C:C,[2]Ajus!A$3:B$222,2,TRUE)","v":{"$error":"#N/A"}}]
[null,null,null,null,null,null,null,{"$f":"VLOOKUP(C:C,[2]Ajus!A$3:B$222,2,TRUE)","v":{"$error":"#N/A"}}]
[null,null,null,null,null,null,null,{"$f":"VLOOKUP(C:C,[2]Ajus!A$3:B$222,2,TRUE)","v":{"$error":"#N/A"}}]
[null,null,null,null,null,null,null,{"$f":"VLOOKUP(C:C,[2]Ajus!A$3:B$222,2,TRUE)","v":{"$error":"#N/A"}}]
[null,null,null,null,null,null,null,{"$f":"VLOOKUP(C:C,[2]Ajus!A$3:B$222,2,TRUE)","v":{"$error":"#N/A"}}]
[null,null,null,null,null,null,null,{"$f":"VLOOKUP(C:C,[2]Ajus!A$3:B$222,2,TRUE)","v":{"$error":"#N/A"}}]
[null,null,null,null,null,null,null,{"$f":"VLOOKUP(C:C,[2]Ajus!A$3:B$222,2,TRUE)","v":{"$error":"#N/A"}}]
[null,null,null,null,null,null,null,{"$f":"VLOOKUP(C:C,[2]Ajus!A$3:B$222,2,TRUE)","v":{"$error":"#N/A"}}]
[null,null,null,null,null,null,null,{"$f":"VLOOKUP(C:C,[2]Ajus!A$3:B$222,2,TRUE)","v":{"$error":"#N/A"}}]
[null,null,null,null,null,null,null,{"$f":"VLOOKUP(C:C,[2]Ajus!A$3:B$222,2,TRUE)","v":{"$error":"#N/A"}}]
[null,null,null,null,null,null,null,{"$f":"VLOOKUP(C:C,[2]Ajus!A$3:B$222,2,TRUE)","v":{"$error":"#N/A"}}]
[null,null,null,null,null,null,null,{"$f":"VLOOKUP(C:C,[2]Ajus!A$3:B$222,2,TRUE)","v":{"$error":"#N/A"}}]
[null,null,null,null,null,null,null,{"$f":"VLOOKUP(C:C,[2]Ajus!A$3:B$222,2,TRUE)","v":{"$error":"#N/A"}}]
[null,null,null,null,null,null,null,{"$f":"VLOOKUP(C:C,[2]Ajus!A$3:B$222,2,TRUE)","v":{"$error":"#N/A"}}]
[null,null,null,null,null,null,null,{"$f":"VLOOKUP(C:C,[2]Ajus!A$3:B$222,2,TRUE)","v":{"$error":"#N/A"}}]
[null,null,null,null,null,null,null,{"$f":"VLOOKUP(C:C,[2]Ajus!A$3:B$222,2,TRUE)","v":{"$error":"#N/A"}}]
[null,null,null,null,null,null,null,{"$f":"VLOOKUP(C:C,[2]Ajus!A$3:B$222,2,TRUE)","v":{"$error":"#N/A"}}]
[null,null,null,null,null,null,null,{"$f":"VLOOKUP(C:C,[2]Ajus!A$3:B$222,2,TRUE)","v":{"$error":"#N/A"}}]
[null,null,null,null,null,null,null,{"$f":"VLOOKUP(C:C,[2]Ajus!A$3:B$222,2,TRUE)","v":{"$error":"#N/A"}}]
[null,null,null,null,null,null,null,{"$f":"VLOOKUP(C:C,[2]Ajus!A$3:B$222,2,TRUE)","v":{"$error":"#N/A"}}]
[null,null,null,null,null,null,null,{"$f":"VLOOKUP(C:C,[2]Ajus!A$3:B$222,2,TRUE)","v":{"$error":"#N/A"}}]
[null,null,null,null,null,null,null,{"$f":"VLOOKUP(C:C,[2]Ajus!A$3:B$222,2,TRUE)","v":{"$error":"#N/A"}}]
[null,null,null,null,null,null,null,{"$f":"VLOOKUP(C:C,[2]Ajus!A$3:B$222,2,TRUE)","v":{"$error":"#N/A"}}]
[null,null,null,null,null,null,null,{"$f":"VLOOKUP(C:C,[2]Ajus!A$3:B$222,2,TRUE)","v":{"$error":"#N/A"}}]
[null,null,null,null,null,null,null,{"$f":"VLOOKUP(C:C,[2]Ajus!A$3:B$222,2,TRUE)","v":{"$error":"#N/A"}}]
[null,null,null,null,null,null,null,{"$f":"VLOOKUP(C:C,[2]Ajus!A$3:B$222,2,TRUE)","v":{"$error":"#N/A"}}]
[null,null,null,null,null,null,null,{"$f":"VLOOKUP(C:C,[2]Ajus!A$3:B$222,2,TRUE)","v":{"$error":"#N/A"}}]
[null,null,null,null,null,null,null,{"$f":"VLOOKUP(C:C,[2]Ajus!A$3:B$222,2,TRUE)","v":{"$error":"#N/A"}}]
[null,null,null,null,null,null,null,{"$f":"VLOOKUP(C:C,[2]Ajus!A$3:B$222,2,TRUE)","v":{"$error":"#N/A"}}]
[null,null,null,null,null,null,null,{"$f":"VLOOKUP(C:C,[2]Ajus!A$3:B$222,2,TRUE)","v":{"$error":"#N/A"}}]
[null,null,null,null,null,null,null,{"$f":"VLOOKUP(C:C,[2]Ajus!A$3:B$222,2,TRUE)","v":{"$error":"#N/A"}}]
[null,null,null,null,null,null,null,{"$f":"VLOOKUP(C:C,[2]Ajus!A$3:B$222,2,TRUE)","v":{"$error":"#N/A"}}]
[null,null,null,null,null,null,null,{"$f":"VLOOKUP(C:C,[2]Ajus!A$3:B$222,2,TRUE)","v":{"$error":"#N/A"}}]
[null,null,null,null,null,null,null,{"$f":"VLOOKUP(C:C,[2]Ajus!A$3:B$222,2,TRUE)","v":{"$error":"#N/A"}}]
[null,null,null,null,null,null,null,{"$f":"VLOOKUP(C:C,[2]Ajus!A$3:B$222,2,TRUE)","v":{"$error":"#N/A"}}]
[null,null,null,null,null,null,null,{"$f":"VLOOKUP(C:C,[2]Ajus!A$3:B$222,2,TRUE)","v":{"$error":"#N/A"}}]
[null,null,null,null,null,null,null,{"$f":"VLOOKUP(C:C,[2]Ajus!A$3:B$222,2,TRUE)","v":{"$error":"#N/A"}}]
[null,null,null,null,null,null,null,{"$f":"VLOOKUP(C:C,[2]Ajus!A$3:B$222,2,TRUE)","v":{"$error":"#N/A"}}]
[null,null,null,null,null,null,null,{"$f":"VLOOKUP(C:C,[2]Ajus!A$3:B$222,2,TRUE)","v":{"$error":"#N/A"}}]
[null,null,null,null,null,null,null,{"$f":"VLOOKUP(C:C,[2]Ajus!A$3:B$222,2,TRUE)","v":{"$error":"#N/A"}}]
[null,null,null,null,null,null,null,{"$f":"VLOOKUP(C:C,[2]Ajus!A$3:B$222,2,TRUE)","v":{"$error":"#N/A"}}]
[null,null,null,null,null,null,null,{"$f":"VLOOKUP(C:C,[2]Ajus!A$3:B$222,2,TRUE)","v":{"$error":"#N/A"}}]
[null,null,null,null,null,null,null,{"$f":"VLOOKUP(C:C,[2]Ajus!A$3:B$222,2,TRUE)","v":{"$error":"#N/A"}}]
[null,null,null,null,null,null,null,{"$f":"VLOOKUP(C:C,[2]Ajus!A$3:B$222,2,TRUE)","v":{"$error":"#N/A"}}]
[null,null,null,null,null,null,null,{"$f":"VLOOKUP(C:C,[2]Ajus!A$3:B$222,2,TRUE)","v":{"$error":"#N/A"}}]
[null,null,null,null,null,null,null,{"$f":"VLOOKUP(C:C,[2]Ajus!A$3:B$222,2,TRUE)","v":{"$error":"#N/A"}}]
[null,null,null,null,null,null,null,{"$f":"VLOOKUP(C:C,[2]Ajus!A$3:B$222,2,TRUE)","v":{"$error":"#N/A"}}]
[null,null,null,null,null,null,null,{"$f":"VLOOKUP(C:C,[2]Ajus!A$3:B$222,2,TRUE)","v":{"$error":"#N/A"}}]
[null,null,null,null,null,null,null,{"$f":"VLOOKUP(C:C,[2]Ajus!A$3:B$222,2,TRUE)","v":{"$error":"#N/A"}}]
[null,null,null,null,null,null,null,{"$f":"VLOOKUP(C:C,[2]Ajus!A$3:B$222,2,TRUE)","v":{"$error":"#N/A"}}]
[null,null,null,null,null,null,null,{"$f":"VLOOKUP(C:C,[2]Ajus!A$3:B$222,2,TRUE)","v":{"$error":"#N/A"}}]
[null,null,null,null,null,null,null,{"$f":"VLOOKUP(C:C,[2]Ajus!A$3:B$222,2,TRUE)","v":{"$error":"#N/A"}}]
[null,null,null,null,null,null,null,{"$f":"VLOOKUP(C:C,[2]Ajus!A$3:B$222,2,TRUE)","v":{"$error":"#N/A"}}]
[null,null,null,null,null,null,null,{"$f":"VLOOKUP(C:C,[2]Ajus!A$3:B$222,2,TRUE)","v":{"$error":"#N/A"}}]
[null,null,null,null,null,null,null,{"$f":"VLOOKUP(C:C,[2]Ajus!A$3:B$222,2,TRUE)","v":{"$error":"#N/A"}}]
[null,null,null,null,null,null,null,{"$f":"VLOOKUP(C:C,[2]Ajus!A$3:B$222,2,TRUE)","v":{"$error":"#N/A"}}]
[null,null,null,null,null,null,null,{"$f":"VLOOKUP(C:C,[2]Ajus!A$3:B$222,2,TRUE)","v":{"$error":"#N/A"}}]
[null,null,null,null,null,null,null,{"$f":"VLOOKUP(C:C,[2]Ajus!A$3:B$222,2,TRUE)","v":{"$error":"#N/A"}}]
[null,null,null,null,null,null,null,{"$f":"VLOOKUP(C:C,[2]Ajus!A$3:B$222,2,TRUE)","v":{"$error":"#N/A"}}]
[null,null,null,null,null,null,null,{"$f":"VLOOKUP(C:C,[2]Ajus!A$3:B$222,2,TRUE)","v":{"$error":"#N/A"}}]
[null,null,null,null,null,null,null,{"$f":"VLOOKUP(C:C,[2]Ajus!A$3:B$222,2,TRUE)","v":{"$error":"#N/A"}}]
[null,null,null,null,null,null,null,{"$f":"VLOOKUP(C:C,[2]Ajus!A$3:B$222,2,TRUE)","v":{"$error":"#N/A"}}]
[null,null,null,null,null,null,null,{"$f":"VLOOKUP(C:C,[2]Ajus!A$3:B$222,2,TRUE)","v":{"$error":"#N/A"}}]
[null,null,null,null,null,null,null,{"$f":"VLOOKUP(C:C,[2]Ajus!A$3:B$222,2,TRUE)","v":{"$error":"#N/A"}}]
[null,null,null,null,null,null,null,{"$f":"VLOOKUP(C:C,[2]Ajus!A$3:B$222,2,TRUE)","v":{"$error":"#N/A"}}]
[null,null,null,null,null,null,null,{"$f":"VLOOKUP(C:C,[2]Ajus!A$3:B$222,2,TRUE)","v":{"$error":"#N/A"}}]
[null,null,null,null,null,null,null,{"$f":"VLOOKUP(C:C,[2]Ajus!A$3:B$222,2,TRUE)","v":{"$error":"#N/A"}}]
[null,null,null,null,null,null,null,{"$f":"VLOOKUP(C:C,[2]Ajus!A$3:B$222,2,TRUE)","v":{"$error":"#N/A"}}]
[null,null,null,null,null,null,null,{"$f":"VLOOKUP(C:C,[2]Ajus!A$3:B$222,2,TRUE)","v":{"$error":"#N/A"}}]
[null,null,null,null,null,null,null,{"$f":"VLOOKUP(C:C,[2]Ajus!A$3:B$222,2,TRUE)","v":{"$error":"#N/A"}}]
[null,null,null,null,null,null,null,{"$f":"VLOOKUP(C:C,[2]Ajus!A$3:B$222,2,TRUE)","v":{"$error":"#N/A"}}]
[null,null,null,null,null,null,null,{"$f":"VLOOKUP(C:C,[2]Ajus!A$3:B$222,2,TRUE)","v":{"$error":"#N/A"}}]
[null,null,null,null,null,null,null,{"$f":"VLOOKUP(C:C,[2]Ajus!A$3:B$222,2,TRUE)","v":{"$error":"#N/A"}}]
[null,null,null,null,null,null,null,{"$f":"VLOOKUP(C:C,[2]Ajus!A$3:B$222,2,TRUE)","v":{"$error":"#N/A"}}]
[null,null,null,null,null,null,null,{"$f":"VLOOKUP(C:C,[2]Ajus!A$3:B$222,2,TRUE)","v":{"$error":"#N/A"}}]
[null,null,null,null,null,null,null,{"$f":"VLOOKUP(C:C,[2]Ajus!A$3:B$222,2,TRUE)","v":{"$error":"#N/A"}}]
[null,null,null,null,null,null,null,{"$f":"VLOOKUP(C:C,[2]Ajus!A$3:B$222,2,TRUE)","v":{"$error":"#N/A"}}]
[null,null,null,null,null,null,null,{"$f":"VLOOKUP(C:C,[2]Ajus!A$3:B$222,2,TRUE)","v":{"$error":"#N/A"}}]
[null,null,null,null,null,null,null,{"$f":"VLOOKUP(C:C,[2]Ajus!A$3:B$222,2,TRUE)","v":{"$error":"#N/A"}}]
[null,null,null,null,null,null,null,{"$f":"VLOOKUP(C:C,[2]Ajus!A$3:B$222,2,TRUE)","v":{"$error":"#N/A"}}]
[null,null,null,null,null,null,null,{"$f":"VLOOKUP(C:C,[2]Ajus!A$3:B$222,2,TRUE)","v":{"$error":"#N/A"}}]
[null,null,null,null,null,null,null,{"$f":"VLOOKUP(C:C,[2]Ajus!A$3:B$222,2,TRUE)","v":{"$error":"#N/A"}}]
[null,null,null,null,null,null,null,{"$f":"VLOOKUP(C:C,[2]Ajus!A$3:B$222,2,TRUE)","v":{"$error":"#N/A"}}]
[null,null,null,null,null,null,null,{"$f":"VLOOKUP(C:C,[2]Ajus!A$3:B$222,2,TRUE)","v":{"$error":"#N/A"}}]
[null,null,null,null,null,null,null,{"$f":"VLOOKUP(C:C,[2]Ajus!A$3:B$222,2,TRUE)","v":{"$error":"#N/A"}}]
[null,null,null,null,null,null,null,{"$f":"VLOOKUP(C:C,[2]Ajus!A$3:B$222,2,TRUE)","v":{"$error":"#N/A"}}]
[null,null,null,null,null,null,null,{"$f":"VLOOKUP(C:C,[2]Ajus!A$3:B$222,2,TRUE)","v":{"$error":"#N/A"}}]
[null,null,null,null,null,null,null,{"$f":"VLOOKUP(C:C,[2]Ajus!A$3:B$222,2,TRUE)","v":{"$error":"#N/A"}}]
[null,null,null,null,null,null,null,{"$f":"VLOOKUP(C:C,[2]Ajus!A$3:B$222,2,TRUE)","v":{"$error":"#N/A"}}]
[null,null,null,null,null,null,null,{"$f":"VLOOKUP(C:C,[2]Ajus!A$3:B$222,2,TRUE)","v":{"$error":"#N/A"}}]
[null,null,null,null,null,null,null,{"$f":"VLOOKUP(C:C,[2]Ajus!A$3:B$222,2,TRUE)","v":{"$error":"#N/A"}}]
[null,null,null,null,null,null,null,{"$f":"VLOOKUP(C:C,[2]Ajus!A$3:B$222,2,TRUE)","v":{"$error":"#N/A"}}]
[null,null,null,null,null,null,null,{"$f":"VLOOKUP(C:C,[2]Ajus!A$3:B$222,2,TRUE)","v":{"$error":"#N/A"}}]
[null,null,null,null,null,null,null,{"$f":"VLOOKUP(C:C,[2]Ajus!A$3:B$222,2,TRUE)","v":{"$error":"#N/A"}}]
[null,null,null,null,null,null,null,{"$f":"VLOOKUP(C:C,[2]Ajus!A$3:B$222,2,TRUE)","v":{"$error":"#N/A"}}]
[null,null,null,null,null,null,null,{"$f":"VLOOKUP(C:C,[2]Ajus!A$3:B$222,2,TRUE)","v":{"$error":"#N/A"}}]
[null,null,null,null,null,null,null,{"$f":"VLOOKUP(C:C,[2]Ajus!A$3:B$222,2,TRUE)","v":{"$error":"#N/A"}}]
[null,null,null,null,null,null,null,{"$f":"VLOOKUP(C:C,[2]Ajus!A$3:B$222,2,TRUE)","v":{"$error":"#N/A"}}]
[null,null,null,null,null,null,null,{"$f":"VLOOKUP(C:C,[2]Ajus!A$3:B$222,2,TRUE)","v":{"$error":"#N/A"}}]
[null,null,null,null,null,null,null,{"$f":"VLOOKUP(C:C,[2]Ajus!A$3:B$222,2,TRUE)","v":{"$error":"#N/A"}}]
[null,null,null,null,null,null,null,{"$f":"VLOOKUP(C:C,[2]Ajus!A$3:B$222,2,TRUE)","v":{"$error":"#N/A"}}]
[null,null,null,null,null,null,null,{"$f":"VLOOKUP(C:C,[2]Ajus!A$3:B$222,2,TRUE)","v":{"$error":"#N/A"}}]
[null,null,null,null,null,null,null,{"$f":"VLOOKUP(C:C,[2]Ajus!A$3:B$222,2,TRUE)","v":{"$error":"#N/A"}}]
[null,null,null,null,null,null,null,{"$f":"VLOOKUP(C:C,[2]Ajus!A$3:B$222,2,TRUE)","v":{"$error":"#N/A"}}]
[null,null,null,null,null,null,null,{"$f":"VLOOKUP(C:C,[2]Ajus!A$3:B$222,2,TRUE)","v":{"$error":"#N/A"}}]
[null,null,null,null,null,null,null,{"$f":"VLOOKUP(C:C,[2]Ajus!A$3:B$222,2,TRUE)","v":{"$error":"#N/A"}}]
[null,null,null,null,null,null,null,{"$f":"VLOOKUP(C:C,[2]Ajus!A$3:B$222,2,TRUE)","v":{"$error":"#N/A"}}]
[null,null,null,null,null,null,null,{"$f":"VLOOKUP(C:C,[2]Ajus!A$3:B$222,2,TRUE)","v":{"$error":"#N/A"}}]
[null,null,null,null,null,null,null,{"$f":"VLOOKUP(C:C,[2]Ajus!A$3:B$222,2,TRUE)","v":{"$error":"#N/A"}}]
[null,null,null,null,null,null,null,{"$f":"VLOOKUP(C:C,[2]Ajus!A$3:B$222,2,TRUE)","v":{"$error":"#N/A"}}]
[null,null,null,null,null,null,null,{"$f":"VLOOKUP(C:C,[2]Ajus!A$3:B$222,2,TRUE)","v":{"$error":"#N/A"}}]
[null,null,null,null,null,null,null,{"$f":"VLOOKUP(C:C,[2]Ajus!A$3:B$222,2,TRUE)","v":{"$error":"#N/A"}}]
[null,null,null,null,null,null,null,{"$f":"VLOOKUP(C:C,[2]Ajus!A$3:B$222,2,TRUE)","v":{"$error":"#N/A"}}]
[null,null,null,null,null,null,null,{"$f":"VLOOKUP(C:C,[2]Ajus!A$3:B$222,2,TRUE)","v":{"$error":"#N/A"}}]
[null,null,null,null,null,null,null,{"$f":"VLOOKUP(C:C,[2]Ajus!A$3:B$222,2,TRUE)","v":{"$error":"#N/A"}}]
[null,null,null,null,null,null,null,{"$f":"VLOOKUP(C:C,[2]Ajus!A$3:B$222,2,TRUE)","v":{"$error":"#N/A"}}]
[null,null,null,null,null,null,null,{"$f":"VLOOKUP(C:C,[2]Ajus!A$3:B$222,2,TRUE)","v":{"$error":"#N/A"}}]
[null,null,null,null,null,null,null,{"$f":"VLOOKUP(C:C,[2]Ajus!A$3:B$222,2,TRUE)","v":{"$error":"#N/A"}}]
[null,null,null,null,null,null,null,{"$f":"VLOOKUP(C:C,[2]Ajus!A$3:B$222,2,TRUE)","v":{"$error":"#N/A"}}]
[null,null,null,null,null,null,null,{"$f":"VLOOKUP(C:C,[2]Ajus!A$3:B$222,2,TRUE)","v":{"$error":"#N/A"}}]
[null,null,null,null,null,null,null,{"$f":"VLOOKUP(C:C,[2]Ajus!A$3:B$222,2,TRUE)","v":{"$error":"#N/A"}}]
[null,null,null,null,null,null,null,{"$f":"VLOOKUP(C:C,[2]Ajus!A$3:B$222,2,TRUE)","v":{"$error":"#N/A"}}]
[null,null,null,null,null,null,null,{"$f":"VLOOKUP(C:C,[2]Ajus!A$3:B$222,2,TRUE)","v":{"$error":"#N/A"}}]
[null,null,null,null,null,null,null,{"$f":"VLOOKUP(C:C,[2]Ajus!A$3:B$222,2,TRUE)","v":{"$error":"#N/A"}}]
[null,null,null,null,null,null,null,{"$f":"VLOOKUP(C:C,[2]Ajus!A$3:B$222,2,TRUE)","v":{"$error":"#N/A"}}]
[null,null,null,null,null,null,null,{"$f":"VLOOKUP(C:C,[2]Ajus!A$3:B$222,2,TRUE)","v":{"$error":"#N/A"}}]
[null,null,null,null,null,null,null,{"$f":"VLOOKUP(C:C,[2]Ajus!A$3:B$222,2,TRUE)","v":{"$error":"#N/A"}}]
[null,null,null,null,null,null,null,{"$f":"VLOOKUP(C:C,[2]Ajus!A$3:B$222,2,TRUE)","v":{"$error":"#N/A"}}]
[null,null,null,null,null,null,null,{"$f":"VLOOKUP(C:C,[2]Ajus!A$3:B$222,2,TRUE)","v":{"$error":"#N/A"}}]
[null,null,null,null,null,null,null,{"$f":"VLOOKUP(C:C,[2]Ajus!A$3:B$222,2,TRUE)","v":{"$error":"#N/A"}}]
[null,null,null,null,null,null,null,{"$f":"VLOOKUP(C:C,[2]Ajus!A$3:B$222,2,TRUE)","v":{"$error":"#N/A"}}]
[null,null,null,null,null,null,null,{"$f":"VLOOKUP(C:C,[2]Ajus!A$3:B$222,2,TRUE)","v":{"$error":"#N/A"}}]
[null,null,null,null,null,null,null,{"$f":"VLOOKUP(C:C,[2]Ajus!A$3:B$222,2,TRUE)","v":{"$error":"#N/A"}}]
[null,null,null,null,null,null,null,{"$f":"VLOOKUP(C:C,[2]Ajus!A$3:B$222,2,TRUE)","v":{"$error":"#N/A"}}]
[null,null,null,null,null,null,null,{"$f":"VLOOKUP(C:C,[2]Ajus!A$3:B$222,2,TRUE)","v":{"$error":"#N/A"}}]
[null,null,null,null,null,null,null,{"$f":"VLOOKUP(C:C,[2]Ajus!A$3:B$222,2,TRUE)","v":{"$error":"#N/A"}}]
[null,null,null,null,null,null,null,{"$f":"VLOOKUP(C:C,[2]Ajus!A$3:B$222,2,TRUE)","v":{"$error":"#N/A"}}]
[null,null,null,null,null,null,null,{"$f":"VLOOKUP(C:C,[2]Ajus!A$3:B$222,2,TRUE)","v":{"$error":"#N/A"}}]
[null,null,null,null,null,null,null,{"$f":"VLOOKUP(C:C,[2]Ajus!A$3:B$222,2,TRUE)","v":{"$error":"#N/A"}}]
[null,null,null,null,null,null,null,{"$f":"VLOOKUP(C:C,[2]Ajus!A$3:B$222,2,TRUE)","v":{"$error":"#N/A"}}]
[null,null,null,null,null,null,null,{"$f":"VLOOKUP(C:C,[2]Ajus!A$3:B$222,2,TRUE)","v":{"$error":"#N/A"}}]
[null,null,null,null,null,null,null,{"$f":"VLOOKUP(C:C,[2]Ajus!A$3:B$222,2,TRUE)","v":{"$error":"#N/A"}}]
[null,null,null,null,null,null,null,{"$f":"VLOOKUP(C:C,[2]Ajus!A$3:B$222,2,TRUE)","v":{"$error":"#N/A"}}]
[null,null,null,null,null,null,null,{"$f":"VLOOKUP(C:C,[2]Ajus!A$3:B$222,2,TRUE)","v":{"$error":"#N/A"}}]
[null,null,null,null,null,null,null,{"$f":"VLOOKUP(C:C,[2]Ajus!A$3:B$222,2,TRUE)","v":{"$error":"#N/A"}}]
[null,null,null,null,null,null,null,{"$f":"VLOOKUP(C:C,[2]Ajus!A$3:B$222,2,TRUE)","v":{"$error":"#N/A"}}]
[null,null,null,null,null,null,null,{"$f":"VLOOKUP(C:C,[2]Ajus!A$3:B$222,2,TRUE)","v":{"$error":"#N/A"}}]
[null,null,null,null,null,null,null,{"$f":"VLOOKUP(C:C,[2]Ajus!A$3:B$222,2,TRUE)","v":{"$error":"#N/A"}}]
[null,null,null,null,null,null,null,{"$f":"VLOOKUP(C:C,[2]Ajus!A$3:B$222,2,TRUE)","v":{"$error":"#N/A"}}]
[null,null,null,null,null,null,null,{"$f":"VLOOKUP(C:C,[2]Ajus!A$3:B$222,2,TRUE)","v":{"$error":"#N/A"}}]
[null,null,null,null,null,null,null,{"$f":"VLOOKUP(C:C,[2]Ajus!A$3:B$222,2,TRUE)","v":{"$error":"#N/A"}}]
[null,null,null,null,null,null,null,{"$f":"VLOOKUP(C:C,[2]Ajus!A$3:B$222,2,TRUE)","v":{"$error":"#N/A"}}]
[null,null,null,null,null,null,null,{"$f":"VLOOKUP(C:C,[2]Ajus!A$3:B$222,2,TRUE)","v":{"$error":"#N/A"}}]
[null,null,null,null,null,null,null,{"$f":"VLOOKUP(C:C,[2]Ajus!A$3:B$222,2,TRUE)","v":{"$error":"#N/A"}}]
[null,null,null,null,null,null,null,{"$f":"VLOOKUP(C:C,[2]Ajus!A$3:B$222,2,TRUE)","v":{"$error":"#N/A"}}]
[null,null,null,null,null,null,null,{"$f":"VLOOKUP(C:C,[2]Ajus!A$3:B$222,2,TRUE)","v":{"$error":"#N/A"}}]
[null,null,null,null,null,null,null,{"$f":"VLOOKUP(C:C,[2]Ajus!A$3:B$222,2,TRUE)","v":{"$error":"#N/A"}}]
[null,null,null,null,null,null,null,{"$f":"VLOOKUP(C:C,[2]Ajus!A$3:B$222,2,TRUE)","v":{"$error":"#N/A"}}]
[null,null,null,null,null,null,null,{"$f":"VLOOKUP(C:C,[2]Ajus!A$3:B$222,2,TRUE)","v":{"$error":"#N/A"}}]
[null,null,null,null,null,null,null,{"$f":"VLOOKUP(C:C,[2]Ajus!A$3:B$222,2,TRUE)","v":{"$error":"#N/A"}}]
[null,null,null,null,null,null,null,{"$f":"VLOOKUP(C:C,[2]Ajus!A$3:B$222,2,TRUE)","v":{"$error":"#N/A"}}]
[null,null,null,null,null,null,null,{"$f":"VLOOKUP(C:C,[2]Ajus!A$3:B$222,2,TRUE)","v":{"$error":"#N/A"}}]
[null,null,null,null,null,null,null,{"$f":"VLOOKUP(C:C,[2]Ajus!A$3:B$222,2,TRUE)","v":{"$error":"#N/A"}}]
[null,null,null,null,null,null,null,{"$f":"VLOOKUP(C:C,[2]Ajus!A$3:B$222,2,TRUE)","v":{"$error":"#N/A"}}]
[null,null,null,null,null,null,null,{"$f":"VLOOKUP(C:C,[2]Ajus!A$3:B$222,2,TRUE)","v":{"$error":"#N/A"}}]
[null,null,null,null,null,null,null,{"$f":"VLOOKUP(C:C,[2]Ajus!A$3:B$222,2,TRUE)","v":{"$error":"#N/A"}}]
[null,null,null,null,null,null,null,{"$f":"VLOOKUP(C:C,[2]Ajus!A$3:B$222,2,TRUE)","v":{"$error":"#N/A"}}]
[null,null,null,null,null,null,null,{"$f":"VLOOKUP(C:C,[2]Ajus!A$3:B$222,2,TRUE)","v":{"$error":"#N/A"}}]
[null,null,null,null,null,null,null,{"$f":"VLOOKUP(C:C,[2]Ajus!A$3:B$222,2,TRUE)","v":{"$error":"#N/A"}}]
[null,null,null,null,null,null,null,{"$f":"VLOOKUP(C:C,[2]Ajus!A$3:B$222,2,TRUE)","v":{"$error":"#N/A"}}]
[null,null,null,null,null,null,null,{"$f":"VLOOKUP(C:C,[2]Ajus!A$3:B$222,2,TRUE)","v":{"$error":"#N/A"}}]
[null,null,null,null,null,null,null,{"$f":"VLOOKUP(C:C,[2]Ajus!A$3:B$222,2,TRUE)","v":{"$error":"#N/A"}}]
[null,null,null,null,null,null,null,{"$f":"VLOOKUP(C:C,[2]Ajus!A$3:B$222,2,TRUE)","v":{"$error":"#N/A"}}]
[null,null,null,null,null,null,null,{"$f":"VLOOKUP(C:C,[2]Ajus!A$3:B$222,2,TRUE)","v":{"$error":"#N/A"}}]
[null,null,null,null,null,null,null,{"$f":"VLOOKUP(C:C,[2]Ajus!A$3:B$222,2,TRUE)","v":{"$error":"#N/A"}}]
[null,null,null,null,null,null,null,{"$f":"VLOOKUP(C:C,[2]Ajus!A$3:B$222,2,TRUE)","v":{"$error":"#N/A"}}]
[null,null,null,null,null,null,null,{"$f":"VLOOKUP(C:C,[2]Ajus!A$3:B$222,2,TRUE)","v":{"$error":"#N/A"}}]
[null,null,null,null,null,null,null,{"$f":"VLOOKUP(C:C,[2]Ajus!A$3:B$222,2,TRUE)","v":{"$error":"#N/A"}}]
[null,null,null,null,null,null,null,{"$f":"VLOOKUP(C:C,[2]Ajus!A$3:B$222,2,TRUE)","v":{"$error":"#N/A"}}]
[null,null,null,null,null,null,null,{"$f":"VLOOKUP(C:C,[2]Ajus!A$3:B$222,2,TRUE)","v":{"$error":"#N/A"}}]
[null,null,null,null,null,null,null,{"$f":"VLOOKUP(C:C,[2]Ajus!A$3:B$222,2,TRUE)","v":{"$error":"#N/A"}}]
[null,null,null,null,null,null,null,{"$f":"VLOOKUP(C:C,[2]Ajus!A$3:B$222,2,TRUE)","v":{"$error":"#N/A"}}]
[null,null,null,null,null,null,null,{"$f":"VLOOKUP(C:C,[2]Ajus!A$3:B$222,2,TRUE)","v":{"$error":"#N/A"}}]
[null,null,null,null,null,null,null,{"$f":"VLOOKUP(C:C,[2]Ajus!A$3:B$222,2,TRUE)","v":{"$error":"#N/A"}}]
[null,null,null,null,null,null,null,{"$f":"VLOOKUP(C:C,[2]Ajus!A$3:B$222,2,TRUE)","v":{"$error":"#N/A"}}]
[null,null,null,null,null,null,null,{"$f":"VLOOKUP(C:C,[2]Ajus!A$3:B$222,2,TRUE)","v":{"$error":"#N/A"}}]
[null,null,null,null,null,null,null,{"$f":"VLOOKUP(C:C,[2]Ajus!A$3:B$222,2,TRUE)","v":{"$error":"#N/A"}}]
[null,null,null,null,null,null,null,{"$f":"VLOOKUP(C:C,[2]Ajus!A$3:B$222,2,TRUE)","v":{"$error":"#N/A"}}]
[null,null,null,null,null,null,null,{"$f":"VLOOKUP(C:C,[2]Ajus!A$3:B$222,2,TRUE)","v":{"$error":"#N/A"}}]
[null,null,null,null,null,null,null,{"$f":"VLOOKUP(C:C,[2]Ajus!A$3:B$222,2,TRUE)","v":{"$error":"#N/A"}}]
[null,null,null,null,null,null,null,{"$f":"VLOOKUP(C:C,[2]Ajus!A$3:B$222,2,TRUE)","v":{"$error":"#N/A"}}]
[null,null,null,null,null,null,null,{"$f":"VLOOKUP(C:C,[2]Ajus!A$3:B$222,2,TRUE)","v":{"$error":"#N/A"}}]
[null,null,null,null,null,null,null,{"$f":"VLOOKUP(C:C,[2]Ajus!A$3:B$222,2,TRUE)","v":{"$error":"#N/A"}}]
[null,null,null,null,null,null,null,{"$f":"VLOOKUP(C:C,[2]Ajus!A$3:B$222,2,TRUE)","v":{"$error":"#N/A"}}]
[null,null,null,null,null,null,null,{"$f":"VLOOKUP(C:C,[2]Ajus!A$3:B$222,2,TRUE)","v":{"$error":"#N/A"}}]
[null,null,null,null,null,null,null,{"$f":"VLOOKUP(C:C,[2]Ajus!A$3:B$222,2,TRUE)","v":{"$error":"#N/A"}}]
[null,null,null,null,null,null,null,{"$f":"VLOOKUP(C:C,[2]Ajus!A$3:B$222,2,TRUE)","v":{"$error":"#N/A"}}]
[null,null,null,null,null,null,null,{"$f":"VLOOKUP(C:C,[2]Ajus!A$3:B$222,2,TRUE)","v":{"$error":"#N/A"}}]
[null,null,null,null,null,null,null,{"$f":"VLOOKUP(C:C,[2]Ajus!A$3:B$222,2,TRUE)","v":{"$error":"#N/A"}}]
[null,null,null,null,null,null,null,{"$f":"VLOOKUP(C:C,[2]Ajus!A$3:B$222,2,TRUE)","v":{"$error":"#N/A"}}]
[null,null,null,null,null,null,null,{"$f":"VLOOKUP(C:C,[2]Ajus!A$3:B$222,2,TRUE)","v":{"$error":"#N/A"}}]
[null,null,null,null,null,null,null,{"$f":"VLOOKUP(C:C,[2]Ajus!A$3:B$222,2,TRUE)","v":{"$error":"#N/A"}}]
[null,null,null,null,null,null,null,{"$f":"VLOOKUP(C:C,[2]Ajus!A$3:B$222,2,TRUE)","v":{"$error":"#N/A"}}]
[null,null,null,null,null,null,null,{"$f":"VLOOKUP(C:C,[2]Ajus!A$3:B$222,2,TRUE)","v":{"$error":"#N/A"}}]
[null,null,null,null,null,null,null,{"$f":"VLOOKUP(C:C,[2]Ajus!A$3:B$222,2,TRUE)","v":{"$error":"#N/A"}}]
[null,null,null,null,null,null,null,{"$f":"VLOOKUP(C:C,[2]Ajus!A$3:B$222,2,TRUE)","v":{"$error":"#N/A"}}]
[null,null,null,null,null,null,null,{"$f":"VLOOKUP(C:C,[2]Ajus!A$3:B$222,2,TRUE)","v":{"$error":"#N/A"}}]
[null,null,null,null,null,null,null,{"$f":"VLOOKUP(C:C,[2]Ajus!A$3:B$222,2,TRUE)","v":{"$error":"#N/A"}}]
[null,null,null,null,null,null,null,{"$f":"VLOOKUP(C:C,[2]Ajus!A$3:B$222,2,TRUE)","v":{"$error":"#N/A"}}]
[null,null,null,null,null,null,null,{"$f":"VLOOKUP(C:C,[2]Ajus!A$3:B$222,2,TRUE)","v":{"$error":"#N/A"}}]
[null,null,null,null,null,null,null,{"$f":"VLOOKUP(C:C,[2]Ajus!A$3:B$222,2,TRUE)","v":{"$error":"#N/A"}}]
[null,null,null,null,null,null,null,{"$f":"VLOOKUP(C:C,[2]Ajus!A$3:B$222,2,TRUE)","v":{"$error":"#N/A"}}]
[null,null,null,null,null,null,null,{"$f":"VLOOKUP(C:C,[2]Ajus!A$3:B$222,2,TRUE)","v":{"$error":"#N/A"}}]
[null,null,null,null,null,null,null,{"$f":"VLOOKUP(C:C,[2]Ajus!A$3:B$222,2,TRUE)","v":{"$error":"#N/A"}}]
[null,null,null,null,null,null,null,{"$f":"VLOOKUP(C:C,[2]Ajus!A$3:B$222,2,TRUE)","v":{"$error":"#N/A"}}]
[null,null,null,null,null,null,null,{"$f":"VLOOKUP(C:C,[2]Ajus!A$3:B$222,2,TRUE)","v":{"$error":"#N/A"}}]
[null,null,null,null,null,null,null,{"$f":"VLOOKUP(C:C,[2]Ajus!A$3:B$222,2,TRUE)","v":{"$error":"#N/A"}}]
[null,null,null,null,null,null,null,{"$f":"VLOOKUP(C:C,[2]Ajus!A$3:B$222,2,TRUE)","v":{"$error":"#N/A"}}]
[null,null,null,null,null,null,null,{"$f":"VLOOKUP(C:C,[2]Ajus!A$3:B$222,2,TRUE)","v":{"$error":"#N/A"}}]
[null,null,null,null,null,null,null,{"$f":"VLOOKUP(C:C,[2]Ajus!A$3:B$222,2,TRUE)","v":{"$error":"#N/A"}}]
[null,null,null,null,null,null,null,{"$f":"VLOOKUP(C:C,[2]Ajus!A$3:B$222,2,TRUE)","v":{"$error":"#N/A"}}]
[null,null,null,null,null,null,null,{"$f":"VLOOKUP(C:C,[2]Ajus!A$3:B$222,2,TRUE)","v":{"$error":"#N/A"}}]
[null,null,null,null,null,null,null,{"$f":"VLOOKUP(C:C,[2]Ajus!A$3:B$222,2,TRUE)","v":{"$error":"#N/A"}}]
[null,null,null,null,null,null,null,{"$f":"VLOOKUP(C:C,[2]Ajus!A$3:B$222,2,TRUE)","v":{"$error":"#N/A"}}]
[null,null,null,null,null,null,null,{"$f":"VLOOKUP(C:C,[2]Ajus!A$3:B$222,2,TRUE)","v":{"$error":"#N/A"}}]
[null,null,null,null,null,null,null,{"$f":"VLOOKUP(C:C,[2]Ajus!A$3:B$222,2,TRUE)","v":{"$error":"#N/A"}}]
[null,null,null,null,null,null,null,{"$f":"VLOOKUP(C:C,[2]Ajus!A$3:B$222,2,TRUE)","v":{"$error":"#N/A"}}]
[null,null,null,null,null,null,null,{"$f":"VLOOKUP(C:C,[2]Ajus!A$3:B$222,2,TRUE)","v":{"$error":"#N/A"}}]
[null,null,null,null,null,null,null,{"$f":"VLOOKUP(C:C,[2]Ajus!A$3:B$222,2,TRUE)","v":{"$error":"#N/A"}}]
[null,null,null,null,null,null,null,{"$f":"VLOOKUP(C:C,[2]Ajus!A$3:B$222,2,TRUE)","v":{"$error":"#N/A"}}]
[null,null,null,null,null,null,null,{"$f":"VLOOKUP(C:C,[2]Ajus!A$3:B$222,2,TRUE)","v":{"$error":"#N/A"}}]
[null,null,null,null,null,null,null,{"$f":"VLOOKUP(C:C,[2]Ajus!A$3:B$222,2,TRUE)","v":{"$error":"#N/A"}}]
[null,null,null,null,null,null,null,{"$f":"VLOOKUP(C:C,[2]Ajus!A$3:B$222,2,TRUE)","v":{"$error":"#N/A"}}]
[null,null,null,null,null,null,null,{"$f":"VLOOKUP(C:C,[2]Ajus!A$3:B$222,2,TRUE)","v":{"$error":"#N/A"}}]
[null,null,null,null,null,null,null,{"$f":"VLOOKUP(C:C,[2]Ajus!A$3:B$222,2,TRUE)","v":{"$error":"#N/A"}}]
[null,null,null,null,null,null,null,{"$f":"VLOOKUP(C:C,[2]Ajus!A$3:B$222,2,TRUE)","v":{"$error":"#N/A"}}]
[null,null,null,null,null,null,null,{"$f":"VLOOKUP(C:C,[2]Ajus!A$3:B$222,2,TRUE)","v":{"$error":"#N/A"}}]
[null,null,null,null,null,null,null,{"$f":"VLOOKUP(C:C,[2]Ajus!A$3:B$222,2,TRUE)","v":{"$error":"#N/A"}}]
[null,null,null,null,null,null,null,{"$f":"VLOOKUP(C:C,[2]Ajus!A$3:B$222,2,TRUE)","v":{"$error":"#N/A"}}]
[null,null,null,null,null,null,null,{"$f":"VLOOKUP(C:C,[2]Ajus!A$3:B$222,2,TRUE)","v":{"$error":"#N/A"}}]
[null,null,null,null,null,null,null,{"$f":"VLOOKUP(C:C,[2]Ajus!A$3:B$222,2,TRUE)","v":{"$error":"#N/A"}}]
[null,null,null,null,null,null,null,{"$f":"VLOOKUP(C:C,[2]Ajus!A$3:B$222,2,TRUE)","v":{"$error":"#N/A"}}]
[null,null,null,null,null,null,null,{"$f":"VLOOKUP(C:C,[2]Ajus!A$3:B$222,2,TRUE)","v":{"$error":"#N/A"}}]
[null,null,null,null,null,null,null,{"$f":"VLOOKUP(C:C,[2]Ajus!A$3:B$222,2,TRUE)","v":{"$error":"#N/A"}}]
[null,null,null,null,null,null,null,{"$f":"VLOOKUP(C:C,[2]Ajus!A$3:B$222,2,TRUE)","v":{"$error":"#N/A"}}]
[null,null,null,null,null,null,null,{"$f":"VLOOKUP(C:C,[2]Ajus!A$3:B$222,2,TRUE)","v":{"$error":"#N/A"}}]
[null,null,null,null,null,null,null,{"$f":"VLOOKUP(C:C,[2]Ajus!A$3:B$222,2,TRUE)","v":{"$error":"#N/A"}}]
[null,null,null,null,null,null,null,{"$f":"VLOOKUP(C:C,[2]Ajus!A$3:B$222,2,TRUE)","v":{"$error":"#N/A"}}]
[null,null,null,null,null,null,null,{"$f":"VLOOKUP(C:C,[2]Ajus!A$3:B$222,2,TRUE)","v":{"$error":"#N/A"}}]
[null,null,null,null,null,null,null,{"$f":"VLOOKUP(C:C,[2]Ajus!A$3:B$222,2,TRUE)","v":{"$error":"#N/A"}}]
[null,null,null,null,null,null,null,{"$f":"VLOOKUP(C:C,[2]Ajus!A$3:B$222,2,TRUE)","v":{"$error":"#N/A"}}]
[null,null,null,null,null,null,null,{"$f":"VLOOKUP(C:C,[2]Ajus!A$3:B$222,2,TRUE)","v":{"$error":"#N/A"}}]
[null,null,null,null,null,null,null,{"$f":"VLOOKUP(C:C,[2]Ajus!A$3:B$222,2,TRUE)","v":{"$error":"#N/A"}}]
[null,null,null,null,null,null,null,{"$f":"VLOOKUP(C:C,[2]Ajus!A$3:B$222,2,TRUE)","v":{"$error":"#N/A"}}]
[null,null,null,null,null,null,null,{"$f":"VLOOKUP(C:C,[2]Ajus!A$3:B$222,2,TRUE)","v":{"$error":"#N/A"}}]
[null,null,null,null,null,null,null,{"$f":"VLOOKUP(C:C,[2]Ajus!A$3:B$222,2,TRUE)","v":{"$error":"#N/A"}}]
[null,null,null,null,null,null,null,{"$f":"VLOOKUP(C:C,[2]Ajus!A$3:B$222,2,TRUE)","v":{"$error":"#N/A"}}]
[null,null,null,null,null,null,null,{"$f":"VLOOKUP(C:C,[2]Ajus!A$3:B$222,2,TRUE)","v":{"$error":"#N/A"}}]
[null,null,null,null,null,null,null,{"$f":"VLOOKUP(C:C,[2]Ajus!A$3:B$222,2,TRUE)","v":{"$error":"#N/A"}}]
[null,null,null,null,null,null,null,{"$f":"VLOOKUP(C:C,[2]Ajus!A$3:B$222,2,TRUE)","v":{"$error":"#N/A"}}]
[null,null,null,null,null,null,null,{"$f":"VLOOKUP(C:C,[2]Ajus!A$3:B$222,2,TRUE)","v":{"$error":"#N/A"}}]
[null,null,null,null,null,null,null,{"$f":"VLOOKUP(C:C,[2]Ajus!A$3:B$222,2,TRUE)","v":{"$error":"#N/A"}}]
[null,null,null,null,null,null,null,{"$f":"VLOOKUP(C:C,[2]Ajus!A$3:B$222,2,TRUE)","v":{"$error":"#N/A"}}]
[null,null,null,null,null,null,null,{"$f":"VLOOKUP(C:C,[2]Ajus!A$3:B$222,2,TRUE)","v":{"$error":"#N/A"}}]
[null,null,null,null,null,null,null,{"$f":"VLOOKUP(C:C,[2]Ajus!A$3:B$222,2,TRUE)","v":{"$error":"#N/A"}}]
[null,null,null,null,null,null,null,{"$f":"VLOOKUP(C:C,[2]Ajus!A$3:B$222,2,TRUE)","v":{"$error":"#N/A"}}]
[null,null,null,null,null,null,null,{"$f":"VLOOKUP(C:C,[2]Ajus!A$3:B$222,2,TRUE)","v":{"$error":"#N/A"}}]
[null,null,null,null,null,null,null,{"$f":"VLOOKUP(C:C,[2]Ajus!A$3:B$222,2,TRUE)","v":{"$error":"#N/A"}}]
[null,null,null,null,null,null,null,{"$f":"VLOOKUP(C:C,[2]Ajus!A$3:B$222,2,TRUE)","v":{"$error":"#N/A"}}]
[null,null,null,null,null,null,null,{"$f":"VLOOKUP(C:C,[2]Ajus!A$3:B$222,2,TRUE)","v":{"$error":"#N/A"}}]
[null,null,null,null,null,null,null,{"$f":"VLOOKUP(C:C,[2]Ajus!A$3:B$222,2,TRUE)","v":{"$error":"#N/A"}}]
[null,null,null,null,null,null,null,{"$f":"VLOOKUP(C:C,[2]Ajus!A$3:B$222,2,TRUE)","v":{"$error":"#N/A"}}]
[null,null,null,null,null,null,null,{"$f":"VLOOKUP(C:C,[2]Ajus!A$3:B$222,2,TRUE)","v":{"$error":"#N/A"}}]
[null,null,null,null,null,null,null,{"$f":"VLOOKUP(C:C,[2]Ajus!A$3:B$222,2,TRUE)","v":{"$error":"#N/A"}}]
[null,null,null,null,null,null,null,{"$f":"VLOOKUP(C:C,[2]Ajus!A$3:B$222,2,TRUE)","v":{"$error":"#N/A"}}]
[null,null,null,null,null,null,null,{"$f":"VLOOKUP(C:C,[2]Ajus!A$3:B$222,2,TRUE)","v":{"$error":"#N/A"}}]
[null,null,null,null,null,null,null,{"$f":"VLOOKUP(C:C,[2]Ajus!A$3:B$222,2,TRUE)","v":{"$error":"#N/A"}}]
[null,null,null,null,null,null,null,{"$f":"VLOOKUP(C:C,[2]Ajus!A$3:B$222,2,TRUE)","v":{"$error":"#N/A"}}]
[null,null,null,null,null,null,null,{"$f":"VLOOKUP(C:C,[2]Ajus!A$3:B$222,2,TRUE)","v":{"$error":"#N/A"}}]
[null,null,null,null,null,null,null,{"$f":"VLOOKUP(C:C,[2]Ajus!A$3:B$222,2,TRUE)","v":{"$error":"#N/A"}}]
[null,null,null,null,null,null,null,{"$f":"VLOOKUP(C:C,[2]Ajus!A$3:B$222,2,TRUE)","v":{"$error":"#N/A"}}]
[null,null,null,null,null,null,null,{"$f":"VLOOKUP(C:C,[2]Ajus!A$3:B$222,2,TRUE)","v":{"$error":"#N/A"}}]
[null,null,null,null,null,null,null,{"$f":"VLOOKUP(C:C,[2]Ajus!A$3:B$222,2,TRUE)","v":{"$error":"#N/A"}}]
[null,null,null,null,null,null,null,{"$f":"VLOOKUP(C:C,[2]Ajus!A$3:B$222,2,TRUE)","v":{"$error":"#N/A"}}]
[null,null,null,null,null,null,null,{"$f":"VLOOKUP(C:C,[2]Ajus!A$3:B$222,2,TRUE)","v":{"$error":"#N/A"}}]
[null,null,null,null,null,null,null,{"$f":"VLOOKUP(C:C,[2]Ajus!A$3:B$222,2,TRUE)","v":{"$error":"#N/A"}}]
[null,null,null,null,null,null,null,{"$f":"VLOOKUP(C:C,[2]Ajus!A$3:B$222,2,TRUE)","v":{"$error":"#N/A"}}]
[null,null,null,null,null,null,null,{"$f":"VLOOKUP(C:C,[2]Ajus!A$3:B$222,2,TRUE)","v":{"$error":"#N/A"}}]
[null,null,null,null,null,null,null,{"$f":"VLOOKUP(C:C,[2]Ajus!A$3:B$222,2,TRUE)","v":{"$error":"#N/A"}}]
[null,null,null,null,null,null,null,{"$f":"VLOOKUP(C:C,[2]Ajus!A$3:B$222,2,TRUE)","v":{"$error":"#N/A"}}]
[null,null,null,null,null,null,null,{"$f":"VLOOKUP(C:C,[2]Ajus!A$3:B$222,2,TRUE)","v":{"$error":"#N/A"}}]
[null,null,null,null,null,null,null,{"$f":"VLOOKUP(C:C,[2]Ajus!A$3:B$222,2,TRUE)","v":{"$error":"#N/A"}}]
[null,null,null,null,null,null,null,{"$f":"VLOOKUP(C:C,[2]Ajus!A$3:B$222,2,TRUE)","v":{"$error":"#N/A"}}]
[null,null,null,null,null,null,null,{"$f":"VLOOKUP(C:C,[2]Ajus!A$3:B$222,2,TRUE)","v":{"$error":"#N/A"}}]
[null,null,null,null,null,null,null,{"$f":"VLOOKUP(C:C,[2]Ajus!A$3:B$222,2,TRUE)","v":{"$error":"#N/A"}}]
[null,null,null,null,null,null,null,{"$f":"VLOOKUP(C:C,[2]Ajus!A$3:B$222,2,TRUE)","v":{"$error":"#N/A"}}]
[null,null,null,null,null,null,null,{"$f":"VLOOKUP(C:C,[2]Ajus!A$3:B$222,2,TRUE)","v":{"$error":"#N/A"}}]
[null,null,null,null,null,null,null,{"$f":"VLOOKUP(C:C,[2]Ajus!A$3:B$222,2,TRUE)","v":{"$error":"#N/A"}}]
[null,null,null,null,null,null,null,{"$f":"VLOOKUP(C:C,[2]Ajus!A$3:B$222,2,TRUE)","v":{"$error":"#N/A"}}]
[null,null,null,null,null,null,null,{"$f":"VLOOKUP(C:C,[2]Ajus!A$3:B$222,2,TRUE)","v":{"$error":"#N/A"}}]
[null,null,null,null,null,null,null,{"$f":"VLOOKUP(C:C,[2]Ajus!A$3:B$222,2,TRUE)","v":{"$error":"#N/A"}}]
[null,null,null,null,null,null,null,{"$f":"VLOOKUP(C:C,[2]Ajus!A$3:B$222,2,TRUE)","v":{"$error":"#N/A"}}]
[null,null,null,null,null,null,null,{"$f":"VLOOKUP(C:C,[2]Ajus!A$3:B$222,2,TRUE)","v":{"$error":"#N/A"}}]
[null,null,null,null,null,null,null,{"$f":"VLOOKUP(C:C,[2]Ajus!A$3:B$222,2,TRUE)","v":{"$error":"#N/A"}}]
[null,null,null,null,null,null,null,{"$f":"VLOOKUP(C:C,[2]Ajus!A$3:B$222,2,TRUE)","v":{"$error":"#N/A"}}]
[null,null,null,null,null,null,null,{"$f":"VLOOKUP(C:C,[2]Ajus!A$3:B$222,2,TRUE)","v":{"$error":"#N/A"}}]
[null,null,null,null,null,null,null,{"$f":"VLOOKUP(C:C,[2]Ajus!A$3:B$222,2,TRUE)","v":{"$error":"#N/A"}}]
[null,null,null,null,null,null,null,{"$f":"VLOOKUP(C:C,[2]Ajus!A$3:B$222,2,TRUE)","v":{"$error":"#N/A"}}]
[null,null,null,null,null,null,null,{"$f":"VLOOKUP(C:C,[2]Ajus!A$3:B$222,2,TRUE)","v":{"$error":"#N/A"}}]
[null,null,null,null,null,null,null,{"$f":"VLOOKUP(C:C,[2]Ajus!A$3:B$222,2,TRUE)","v":{"$error":"#N/A"}}]
[null,null,null,null,null,null,null,{"$f":"VLOOKUP(C:C,[2]Ajus!A$3:B$222,2,TRUE)","v":{"$error":"#N/A"}}]
[null,null,null,null,null,null,null,{"$f":"VLOOKUP(C:C,[2]Ajus!A$3:B$222,2,TRUE)","v":{"$error":"#N/A"}}]
[null,null,null,null,null,null,null,{"$f":"VLOOKUP(C:C,[2]Ajus!A$3:B$222,2,TRUE)","v":{"$error":"#N/A"}}]
[null,null,null,null,null,null,null,{"$f":"VLOOKUP(C:C,[2]Ajus!A$3:B$222,2,TRUE)","v":{"$error":"#N/A"}}]
[null,null,null,null,null,null,null,{"$f":"VLOOKUP(C:C,[2]Ajus!A$3:B$222,2,TRUE)","v":{"$error":"#N/A"}}]
[null,null,null,null,null,null,null,{"$f":"VLOOKUP(C:C,[2]Ajus!A$3:B$222,2,TRUE)","v":{"$error":"#N/A"}}]
[null,null,null,null,null,null,null,{"$f":"VLOOKUP(C:C,[2]Ajus!A$3:B$222,2,TRUE)","v":{"$error":"#N/A"}}]
[null,null,null,null,null,null,null,{"$f":"VLOOKUP(C:C,[2]Ajus!A$3:B$222,2,TRUE)","v":{"$error":"#N/A"}}]
[null,null,null,null,null,null,null,{"$f":"VLOOKUP(C:C,[2]Ajus!A$3:B$222,2,TRUE)","v":{"$error":"#N/A"}}]
[null,null,null,null,null,null,null,{"$f":"VLOOKUP(C:C,[2]Ajus!A$3:B$222,2,TRUE)","v":{"$error":"#N/A"}}]
[null,null,null,null,null,null,null,{"$f":"VLOOKUP(C:C,[2]Ajus!A$3:B$222,2,TRUE)","v":{"$error":"#N/A"}}]
[null,null,null,null,null,null,null,{"$f":"VLOOKUP(C:C,[2]Ajus!A$3:B$222,2,TRUE)","v":{"$error":"#N/A"}}]
[null,null,null,null,null,null,null,{"$f":"VLOOKUP(C:C,[2]Ajus!A$3:B$222,2,TRUE)","v":{"$error":"#N/A"}}]
[null,null,null,null,null,null,null,{"$f":"VLOOKUP(C:C,[2]Ajus!A$3:B$222,2,TRUE)","v":{"$error":"#N/A"}}]
[null,null,null,null,null,null,null,{"$f":"VLOOKUP(C:C,[2]Ajus!A$3:B$222,2,TRUE)","v":{"$error":"#N/A"}}]
[null,null,null,null,null,null,null,{"$f":"VLOOKUP(C:C,[2]Ajus!A$3:B$222,2,TRUE)","v":{"$error":"#N/A"}}]
[null,null,null,null,null,null,null,{"$f":"VLOOKUP(C:C,[2]Ajus!A$3:B$222,2,TRUE)","v":{"$error":"#N/A"}}]
[null,null,null,null,null,null,null,{"$f":"VLOOKUP(C:C,[2]Ajus!A$3:B$222,2,TRUE)","v":{"$error":"#N/A"}}]
[null,null,null,null,null,null,null,{"$f":"VLOOKUP(C:C,[2]Ajus!A$3:B$222,2,TRUE)","v":{"$error":"#N/A"}}]
[null,null,null,null,null,null,null,{"$f":"VLOOKUP(C:C,[2]Ajus!A$3:B$222,2,TRUE)","v":{"$error":"#N/A"}}]
[null,null,null,null,null,null,null,{"$f":"VLOOKUP(C:C,[2]Ajus!A$3:B$222,2,TRUE)","v":{"$error":"#N/A"}}]
[null,null,null,null,null,null,null,{"$f":"VLOOKUP(C:C,[2]Ajus!A$3:B$222,2,TRUE)","v":{"$error":"#N/A"}}]
[null,null,null,null,null,null,null,{"$f":"VLOOKUP(C:C,[2]Ajus!A$3:B$222,2,TRUE)","v":{"$error":"#N/A"}}]
[null,null,null,null,null,null,null,{"$f":"VLOOKUP(C:C,[2]Ajus!A$3:B$222,2,TRUE)","v":{"$error":"#N/A"}}]
[null,null,null,null,null,null,null,{"$f":"VLOOKUP(C:C,[2]Ajus!A$3:B$222,2,TRUE)","v":{"$error":"#N/A"}}]
[null,null,null,null,null,null,null,{"$f":"VLOOKUP(C:C,[2]Ajus!A$3:B$222,2,TRUE)","v":{"$error":"#N/A"}}]
[null,null,null,null,null,null,null,{"$f":"VLOOKUP(C:C,[2]Ajus!A$3:B$222,2,TRUE)","v":{"$error":"#N/A"}}]
[null,null,null,null,null,null,null,{"$f":"VLOOKUP(C:C,[2]Ajus!A$3:B$222,2,TRUE)","v":{"$error":"#N/A"}}]
[null,null,null,null,null,null,null,{"$f":"VLOOKUP(C:C,[2]Ajus!A$3:B$222,2,TRUE)","v":{"$error":"#N/A"}}]
[null,null,null,null,null,null,null,{"$f":"VLOOKUP(C:C,[2]Ajus!A$3:B$222,2,TRUE)","v":{"$error":"#N/A"}}]
[null,null,null,null,null,null,null,{"$f":"VLOOKUP(C:C,[2]Ajus!A$3:B$222,2,TRUE)","v":{"$error":"#N/A"}}]
[null,null,null,null,null,null,null,{"$f":"VLOOKUP(C:C,[2]Ajus!A$3:B$222,2,TRUE)","v":{"$error":"#N/A"}}]
[null,null,null,null,null,null,null,{"$f":"VLOOKUP(C:C,[2]Ajus!A$3:B$222,2,TRUE)","v":{"$error":"#N/A"}}]
[null,null,null,null,null,null,null,{"$f":"VLOOKUP(C:C,[2]Ajus!A$3:B$222,2,TRUE)","v":{"$error":"#N/A"}}]
[null,null,null,null,null,null,null,{"$f":"VLOOKUP(C:C,[2]Ajus!A$3:B$222,2,TRUE)","v":{"$error":"#N/A"}}]
[null,null,null,null,null,null,null,{"$f":"VLOOKUP(C:C,[2]Ajus!A$3:B$222,2,TRUE)","v":{"$error":"#N/A"}}]
[null,null,null,null,null,null,null,{"$f":"VLOOKUP(C:C,[2]Ajus!A$3:B$222,2,TRUE)","v":{"$error":"#N/A"}}]
[null,null,null,null,null,null,null,{"$f":"VLOOKUP(C:C,[2]Ajus!A$3:B$222,2,TRUE)","v":{"$error":"#N/A"}}]
[null,null,null,null,null,null,null,{"$f":"VLOOKUP(C:C,[2]Ajus!A$3:B$222,2,TRUE)","v":{"$error":"#N/A"}}]
[null,null,null,null,null,null,null,{"$f":"VLOOKUP(C:C,[2]Ajus!A$3:B$222,2,TRUE)","v":{"$error":"#N/A"}}]
[null,null,null,null,null,null,null,{"$f":"VLOOKUP(C:C,[2]Ajus!A$3:B$222,2,TRUE)","v":{"$error":"#N/A"}}]
[null,null,null,null,null,null,null,{"$f":"VLOOKUP(C:C,[2]Ajus!A$3:B$222,2,TRUE)","v":{"$error":"#N/A"}}]
[null,null,null,null,null,null,null,{"$f":"VLOOKUP(C:C,[2]Ajus!A$3:B$222,2,TRUE)","v":{"$error":"#N/A"}}]
[null,null,null,null,null,null,null,{"$f":"VLOOKUP(C:C,[2]Ajus!A$3:B$222,2,TRUE)","v":{"$error":"#N/A"}}]
[null,null,null,null,null,null,null,{"$f":"VLOOKUP(C:C,[2]Ajus!A$3:B$222,2,TRUE)","v":{"$error":"#N/A"}}]
[null,null,null,null,null,null,null,{"$f":"VLOOKUP(C:C,[2]Ajus!A$3:B$222,2,TRUE)","v":{"$error":"#N/A"}}]
[null,null,null,null,null,null,null,{"$f":"VLOOKUP(C:C,[2]Ajus!A$3:B$222,2,TRUE)","v":{"$error":"#N/A"}}]
[null,null,null,null,null,null,null,{"$f":"VLOOKUP(C:C,[2]Ajus!A$3:B$222,2,TRUE)","v":{"$error":"#N/A"}}]
[null,null,null,null,null,null,null,{"$f":"VLOOKUP(C:C,[2]Ajus!A$3:B$222,2,TRUE)","v":{"$error":"#N/A"}}]
[null,null,null,null,null,null,null,{"$f":"VLOOKUP(C:C,[2]Ajus!A$3:B$222,2,TRUE)","v":{"$error":"#N/A"}}]
[null,null,null,null,null,null,null,{"$f":"VLOOKUP(C:C,[2]Ajus!A$3:B$222,2,TRUE)","v":{"$error":"#N/A"}}]
[null,null,null,null,null,null,null,{"$f":"VLOOKUP(C:C,[2]Ajus!A$3:B$222,2,TRUE)","v":{"$error":"#N/A"}}]
[null,null,null,null,null,null,null,{"$f":"VLOOKUP(C:C,[2]Ajus!A$3:B$222,2,TRUE)","v":{"$error":"#N/A"}}]
[null,null,null,null,null,null,null,{"$f":"VLOOKUP(C:C,[2]Ajus!A$3:B$222,2,TRUE)","v":{"$error":"#N/A"}}]
[null,null,null,null,null,null,null,{"$f":"VLOOKUP(C:C,[2]Ajus!A$3:B$222,2,TRUE)","v":{"$error":"#N/A"}}]
[null,null,null,null,null,null,null,{"$f":"VLOOKUP(C:C,[2]Ajus!A$3:B$222,2,TRUE)","v":{"$error":"#N/A"}}]
[null,null,null,null,null,null,null,{"$f":"VLOOKUP(C:C,[2]Ajus!A$3:B$222,2,TRUE)","v":{"$error":"#N/A"}}]
[null,null,null,null,null,null,null,{"$f":"VLOOKUP(C:C,[2]Ajus!A$3:B$222,2,TRUE)","v":{"$error":"#N/A"}}]
[null,null,null,null,null,null,null,{"$f":"VLOOKUP(C:C,[2]Ajus!A$3:B$222,2,TRUE)","v":{"$error":"#N/A"}}]
[null,null,null,null,null,null,null,{"$f":"VLOOKUP(C:C,[2]Ajus!A$3:B$222,2,TRUE)","v":{"$error":"#N/A"}}]
[null,null,null,null,null,null,null,{"$f":"VLOOKUP(C:C,[2]Ajus!A$3:B$222,2,TRUE)","v":{"$error":"#N/A"}}]
[null,null,null,null,null,null,null,{"$f":"VLOOKUP(C:C,[2]Ajus!A$3:B$222,2,TRUE)","v":{"$error":"#N/A"}}]
[null,null,null,null,null,null,null,{"$f":"VLOOKUP(C:C,[2]Ajus!A$3:B$222,2,TRUE)","v":{"$error":"#N/A"}}]
[null,null,null,null,null,null,null,{"$f":"VLOOKUP(C:C,[2]Ajus!A$3:B$222,2,TRUE)","v":{"$error":"#N/A"}}]
[null,null,null,null,null,null,null,{"$f":"VLOOKUP(C:C,[2]Ajus!A$3:B$222,2,TRUE)","v":{"$error":"#N/A"}}]
[null,null,null,null,null,null,null,{"$f":"VLOOKUP(C:C,[2]Ajus!A$3:B$222,2,TRUE)","v":{"$error":"#N/A"}}]
[null,null,null,null,null,null,null,{"$f":"VLOOKUP(C:C,[2]Ajus!A$3:B$222,2,TRUE)","v":{"$error":"#N/A"}}]
[null,null,null,null,null,null,null,{"$f":"VLOOKUP(C:C,[2]Ajus!A$3:B$222,2,TRUE)","v":{"$error":"#N/A"}}]
[null,null,null,null,null,null,null,{"$f":"VLOOKUP(C:C,[2]Ajus!A$3:B$222,2,TRUE)","v":{"$error":"#N/A"}}]
[null,null,null,null,null,null,null,{"$f":"VLOOKUP(C:C,[2]Ajus!A$3:B$222,2,TRUE)","v":{"$error":"#N/A"}}]
[null,null,null,null,null,null,null,{"$f":"VLOOKUP(C:C,[2]Ajus!A$3:B$222,2,TRUE)","v":{"$error":"#N/A"}}]
[null,null,null,null,null,null,null,{"$f":"VLOOKUP(C:C,[2]Ajus!A$3:B$222,2,TRUE)","v":{"$error":"#N/A"}}]
[null,null,null,null,null,null,null,{"$f":"VLOOKUP(C:C,[2]Ajus!A$3:B$222,2,TRUE)","v":{"$error":"#N/A"}}]
[null,null,null,null,null,null,null,{"$f":"VLOOKUP(C:C,[2]Ajus!A$3:B$222,2,TRUE)","v":{"$error":"#N/A"}}]
[null,null,null,null,null,null,null,{"$f":"VLOOKUP(C:C,[2]Ajus!A$3:B$222,2,TRUE)","v":{"$error":"#N/A"}}]
[null,null,null,null,null,null,null,{"$f":"VLOOKUP(C:C,[2]Ajus!A$3:B$222,2,TRUE)","v":{"$error":"#N/A"}}]
[null,null,null,null,null,null,null,{"$f":"VLOOKUP(C:C,[2]Ajus!A$3:B$222,2,TRUE)","v":{"$error":"#N/A"}}]
[null,null,null,null,null,null,null,{"$f":"VLOOKUP(C:C,[2]Ajus!A$3:B$222,2,TRUE)","v":{"$error":"#N/A"}}]
[null,null,null,null,null,null,null,{"$f":"VLOOKUP(C:C,[2]Ajus!A$3:B$222,2,TRUE)","v":{"$error":"#N/A"}}]
[null,null,null,null,null,null,null,{"$f":"VLOOKUP(C:C,[2]Ajus!A$3:B$222,2,TRUE)","v":{"$error":"#N/A"}}]
[null,null,null,null,null,null,null,{"$f":"VLOOKUP(C:C,[2]Ajus!A$3:B$222,2,TRUE)","v":{"$error":"#N/A"}}]
[null,null,null,null,null,null,null,{"$f":"VLOOKUP(C:C,[2]Ajus!A$3:B$222,2,TRUE)","v":{"$error":"#N/A"}}]
[null,null,null,null,null,null,null,{"$f":"VLOOKUP(C:C,[2]Ajus!A$3:B$222,2,TRUE)","v":{"$error":"#N/A"}}]
[null,null,null,null,null,null,null,{"$f":"VLOOKUP(C:C,[2]Ajus!A$3:B$222,2,TRUE)","v":{"$error":"#N/A"}}]
[null,null,null,null,null,null,null,{"$f":"VLOOKUP(C:C,[2]Ajus!A$3:B$222,2,TRUE)","v":{"$error":"#N/A"}}]
[null,null,null,null,null,null,null,{"$f":"VLOOKUP(C:C,[2]Ajus!A$3:B$222,2,TRUE)","v":{"$error":"#N/A"}}]
[null,null,null,null,null,null,null,{"$f":"VLOOKUP(C:C,[2]Ajus!A$3:B$222,2,TRUE)","v":{"$error":"#N/A"}}]
[null,null,null,null,null,null,null,{"$f":"VLOOKUP(C:C,[2]Ajus!A$3:B$222,2,TRUE)","v":{"$error":"#N/A"}}]
[null,null,null,null,null,null,null,{"$f":"VLOOKUP(C:C,[2]Ajus!A$3:B$222,2,TRUE)","v":{"$error":"#N/A"}}]
[null,null,null,null,null,null,null,{"$f":"VLOOKUP(C:C,[2]Ajus!A$3:B$222,2,TRUE)","v":{"$error":"#N/A"}}]
[null,null,null,null,null,null,null,{"$f":"VLOOKUP(C:C,[2]Ajus!A$3:B$222,2,TRUE)","v":{"$error":"#N/A"}}]
[null,null,null,null,null,null,null,{"$f":"VLOOKUP(C:C,[2]Ajus!A$3:B$222,2,TRUE)","v":{"$error":"#N/A"}}]
[null,null,null,null,null,null,null,{"$f":"VLOOKUP(C:C,[2]Ajus!A$3:B$222,2,TRUE)","v":{"$error":"#N/A"}}]
[null,null,null,null,null,null,null,{"$f":"VLOOKUP(C:C,[2]Ajus!A$3:B$222,2,TRUE)","v":{"$error":"#N/A"}}]
[null,null,null,null,null,null,null,{"$f":"VLOOKUP(C:C,[2]Ajus!A$3:B$222,2,TRUE)","v":{"$error":"#N/A"}}]
[null,null,null,null,null,null,null,{"$f":"VLOOKUP(C:C,[2]Ajus!A$3:B$222,2,TRUE)","v":{"$error":"#N/A"}}]
[null,null,null,null,null,null,null,{"$f":"VLOOKUP(C:C,[2]Ajus!A$3:B$222,2,TRUE)","v":{"$error":"#N/A"}}]
[null,null,null,null,null,null,null,{"$f":"VLOOKUP(C:C,[2]Ajus!A$3:B$222,2,TRUE)","v":{"$error":"#N/A"}}]
[null,null,null,null,null,null,null,{"$f":"VLOOKUP(C:C,[2]Ajus!A$3:B$222,2,TRUE)","v":{"$error":"#N/A"}}]
[null,null,null,null,null,null,null,{"$f":"VLOOKUP(C:C,[2]Ajus!A$3:B$222,2,TRUE)","v":{"$error":"#N/A"}}]
[null,null,null,null,null,null,null,{"$f":"VLOOKUP(C:C,[2]Ajus!A$3:B$222,2,TRUE)","v":{"$error":"#N/A"}}]
[null,null,null,null,null,null,null,{"$f":"VLOOKUP(C:C,[2]Ajus!A$3:B$222,2,TRUE)","v":{"$error":"#N/A"}}]
[null,null,null,null,null,null,null,{"$f":"VLOOKUP(C:C,[2]Ajus!A$3:B$222,2,TRUE)","v":{"$error":"#N/A"}}]
[null,null,null,null,null,null,null,{"$f":"VLOOKUP(C:C,[2]Ajus!A$3:B$222,2,TRUE)","v":{"$error":"#N/A"}}]
[null,null,null,null,null,null,null,{"$f":"VLOOKUP(C:C,[2]Ajus!A$3:B$222,2,TRUE)","v":{"$error":"#N/A"}}]
[null,null,null,null,null,null,null,{"$f":"VLOOKUP(C:C,[2]Ajus!A$3:B$222,2,TRUE)","v":{"$error":"#N/A"}}]
[null,null,null,null,null,null,null,{"$f":"VLOOKUP(C:C,[2]Ajus!A$3:B$222,2,TRUE)","v":{"$error":"#N/A"}}]
[null,null,null,null,null,null,null,{"$f":"VLOOKUP(C:C,[2]Ajus!A$3:B$222,2,TRUE)","v":{"$error":"#N/A"}}]

{"sheet":"personnel","index":2,"n_rows":4,"n_cols":1,"rows_kept":4,"cut":false,"hidden":false,"merged":[]}
["pierre"]
["laurent"]
["jacques"]
["julie"]